Department Family,Entity,Payment Date,Expense Type,Expense Area,Supplier,Transaction Number,Amount,Description
BEIS,Skills Funding Agency,29/07/2016,Conferences & Workshops,Central Delivery Service - European Social Fund - Audit Compliance,CAPITA TRAVEL AND EVENTS LTD,IPINVELECT3_2089,"3,727.44",Purchase Invoice
BEIS,Skills Funding Agency,29/07/2016,Health and Safety Executive Supplies,HR - Human Resources,HEALTH MANAGEMENT LTD,SPINVB_32118,120,Purchase Invoice
BEIS,Skills Funding Agency,29/07/2016,Health and Safety Executive Supplies,HR - Human Resources,HEALTH MANAGEMENT LTD,SPINVB_32119,9.6,Purchase Invoice
BEIS,Skills Funding Agency,29/07/2016,Health and Safety Executive Supplies,HR - Human Resources,HEALTH MANAGEMENT LTD,SPINVB_32121,120,Purchase Invoice
BEIS,Skills Funding Agency,29/07/2016,Licences,Operations ICT - Technical Design Authority,TRUSTMARQUE SOLUTIONS LIMITED,SPINVB_32106,"6,108.00",Purchase Invoice
BEIS,Skills Funding Agency,29/07/2016,Managed IT Service,Data Science,CENTRE4 RESOURCES LIMITED,SPINVB_32109,"10,800.00",Purchase Invoice
BEIS,Skills Funding Agency,29/07/2016,Professional Services,Data Science,CENTRE4 RESOURCES LIMITED,SPINVB_32110,"10,032.00",Purchase Invoice
BEIS,Skills Funding Agency,29/07/2016,Professional Services,HR - Human Resources,HEALTH MANAGEMENT LTD,SPINVB_32117,28.8,Purchase Invoice
BEIS,Skills Funding Agency,29/07/2016,Professional Services,HR - Human Resources,HEALTH MANAGEMENT LTD,SPINVB_32120,120,Purchase Invoice
BEIS,Skills Funding Agency,29/07/2016,Professional Services,Operations ICT - Mission IT / Business As Usual Major Releases,INFOR GLOBAL SOLUTIONS (MIDLANDS IV) LTD,SPINVB_32115,"1,970.14",Purchase Invoice
BEIS,Skills Funding Agency,29/07/2016,Rates,Chief Executive Office - Executive Office,THE INSOLVENCY SERVICE,SPINVB_32123,"10,711.99",Purchase Invoice
BEIS,Skills Funding Agency,29/07/2016,Rates,Operations Finance - Financial Management,COVENTRY CITY COUNCIL,RATES_1172,"3,181.00",Rates Demand
BEIS,Skills Funding Agency,29/07/2016,Rates,Operations Finance - Financial Management,COVENTRY CITY COUNCIL,RATES_1182,"55,664.00",Rates Demand
BEIS,Skills Funding Agency,29/07/2016,Rates,Operations Finance - Financial Management,COVENTRY CITY COUNCIL,RATES_1192,"5,566.00",Rates Demand
BEIS,Skills Funding Agency,29/07/2016,Rates,Operations Finance - Financial Management,COVENTRY CITY COUNCIL,RATES_1202,"8,499.00",Rates Demand
BEIS,Skills Funding Agency,29/07/2016,Rent,Chief Executive Office - Executive Office,THE INSOLVENCY SERVICE,SPINVB_32123,"33,184.77",Purchase Invoice
BEIS,Skills Funding Agency,29/07/2016,Room Hire,Apprenticeships & Delivery Services - Executive Office,CAPITA TRAVEL AND EVENTS LTD,IPINVELECT3_2089,"1,277.44",Purchase Invoice
BEIS,Skills Funding Agency,29/07/2016,Service Charges,Chief Executive Office - Executive Office,THE INSOLVENCY SERVICE,SPINVB_32123,"18,922.24",Purchase Invoice
BEIS,Skills Funding Agency,29/07/2016,Software Maintenance & Repair,Operations ICT - Service Integration & Management,BAE SYSTEMS APPLIED INTELLIGENCE LIMITED,SPINVB_32116,"64,221.32",Purchase Invoice
BEIS,Skills Funding Agency,29/07/2016,Sundry Items,Accounting Services,LEVEL 3 COMMUNICATIONS UK LIMITED,SPINVB_32104,-0.6,Purchase Invoice
BEIS,Skills Funding Agency,29/07/2016,Sundry Items,Accounting Services,THE INSOLVENCY SERVICE,SPINVB_32123,0.2,Purchase Invoice
BEIS,Skills Funding Agency,29/07/2016,Support Services,Data Science,LOCKHEED MARTIN BUSINESS TECHNOLOGY SOLUTIONS LIMITED,SPINVB_32034,170.66,Purchase Invoice
BEIS,Skills Funding Agency,29/07/2016,Temporary Staff,Apprenticeships & Delivery Services - Executive Office,CAPITA BUSINESS SERVICES LTD,IPINVELECT3_2088,"3,159.30",Purchase Invoice
BEIS,Skills Funding Agency,29/07/2016,Temporary Staff,Data Science,CAPITA BUSINESS SERVICES LTD,IPINVELECT3_2088,"2,802.48",Purchase Invoice
BEIS,Skills Funding Agency,29/07/2016,Temporary Staff,Funding & Programmes - Executive Office,CAPITA BUSINESS SERVICES LTD,IPINVELECT3_2088,"29,246.76",Purchase Invoice
BEIS,Skills Funding Agency,29/07/2016,Temporary Staff,Operations ICT - Information & Communication Technology - Technical,BAE SYSTEMS APPLIED INTELLIGENCE LIMITED,SPINVB_31994,"4,932.00",Purchase Invoice
BEIS,Skills Funding Agency,29/07/2016,Temporary Staff,Operations ICT - Information & Communication Technology - Technical,CAPITA BUSINESS SERVICES LTD,IPINVELECT3_2088,"10,581.30",Purchase Invoice
BEIS,Skills Funding Agency,29/07/2016,Temporary Staff,Operations ICT - Information & Communication Technology - Technical,KELLY SERVICES UK LTD,SPINVB_32093,818.63,Purchase Invoice
BEIS,Skills Funding Agency,29/07/2016,Temporary Staff,Operations ICT - Projects,CAPITA BUSINESS SERVICES LTD,IPINVELECT3_2088,"5,932.50",Purchase Invoice
BEIS,Skills Funding Agency,29/07/2016,Temporary Staff,Operations ICT - Technical Design Authority,CAPITA BUSINESS SERVICES LTD,IPINVELECT3_2088,"33,202.56",Purchase Invoice
BEIS,Skills Funding Agency,29/07/2016,Temporary Staff,Operations ICT - Technical Design Authority,LA INTERNATIONAL,SPINVB_32095,"14,790.00",Purchase Invoice
BEIS,Skills Funding Agency,29/07/2016,Temporary Staff,Transformation & Corporate Strategy,PERTEMPS RECRUITMENT PARTNERSHIP LTD,SPINVB_31685,726.94,Purchase Invoice
BEIS,Skills Funding Agency,29/07/2016,Temporary Staff,Transformation & Corporate Strategy,PERTEMPS RECRUITMENT PARTNERSHIP LTD,SPINVB_32055,872.78,Purchase Invoice
BEIS,Skills Funding Agency,29/07/2016,Wide Area Networks,Operations ICT - Technical Design Authority,LEVEL 3 COMMUNICATIONS UK LIMITED,SPCRNB_1159,"-19,800.00",Purchase Credit Note
BEIS,Skills Funding Agency,29/07/2016,Wide Area Networks,Operations ICT - Technical Design Authority,LEVEL 3 COMMUNICATIONS UK LIMITED,SPINVB_32103,"1,048.76",Purchase Invoice
BEIS,Skills Funding Agency,29/07/2016,Wide Area Networks,Operations ICT - Technical Design Authority,LEVEL 3 COMMUNICATIONS UK LIMITED,SPINVB_32104,"20,127.30",Purchase Invoice
BEIS,Skills Funding Agency,29/07/2016,Wide Area Networks,Operations ICT - Technical Design Authority,LEVEL 3 COMMUNICATIONS UK LIMITED,SPINVB_32105,"63,561.13",Purchase Invoice
BEIS,Skills Funding Agency,01/08/2016,Professional Services,Finance Division - Accounting Services,COMPANIES HOUSE,DD_367,4,Purchase Invoice
BEIS,Skills Funding Agency,02/08/2016,16-18 Apprenticeship Grant for Employers,Main Funding,Private Individual,SPINVCHQ_590,"1,500.00",Purchase Invoice
BEIS,Skills Funding Agency,02/08/2016,16-18 Apprenticeship Grant for Employers,Main Funding,Private Individual,SPINVCHQ_591,"1,500.00",Purchase Invoice
BEIS,Skills Funding Agency,02/08/2016,Additional Car Parking,Chief Executive Office - Executive Office,DEPARTMENT FOR BUSINESS INNOVATION & SKILLS (NEWPORT),SPINVB_32079,196,Purchase Invoice
BEIS,Skills Funding Agency,02/08/2016,Building Insurance,Chief Executive Office - Executive Office,DEPARTMENT FOR BUSINESS INNOVATION & SKILLS (NEWPORT),SPINVB_32079,50,Purchase Invoice
BEIS,Skills Funding Agency,02/08/2016,Catering Contracts,Chief Executive Office - Executive Office,WESTBURY STREET HOLDINGS,SPINVB_32047,733.34,Purchase Invoice
BEIS,Skills Funding Agency,02/08/2016,Computer Hardware,Operations ICT - Technical Design Authority,SPECIALIST COMPUTER CENTRES PLC,SPINVB_31871,"5,972.95",Purchase Invoice
BEIS,Skills Funding Agency,02/08/2016,Electricity,Chief Executive Office - Executive Office,DEPARTMENT FOR BUSINESS INNOVATION & SKILLS (NEWPORT),SPINVB_32079,"1,024.00",Purchase Invoice
BEIS,Skills Funding Agency,02/08/2016,Facilities Management,Chief Executive Office - Executive Office,DEPARTMENT FOR BUSINESS INNOVATION & SKILLS (NEWPORT),SPINVB_32158,"93,804.41",Purchase Invoice
BEIS,Skills Funding Agency,02/08/2016,Funding Advances,None,BOURNVILLE COLLEGE OF HIGHER EDUCATION,NQDV_752,"400,000.00",Programme Template
BEIS,Skills Funding Agency,02/08/2016,General Maintenance,Chief Executive Office - Executive Office,DEPARTMENT FOR BUSINESS INNOVATION & SKILLS (NEWPORT),SPINVB_32079,76,Purchase Invoice
BEIS,Skills Funding Agency,02/08/2016,Health & Safety,Chief Executive Office - Executive Office,IAM FLEET TRAINING LTD,SPINVB_32156,"3,168.00",Purchase Invoice
BEIS,Skills Funding Agency,02/08/2016,Health & Safety,Chief Executive Office - Executive Office,IAM FLEET TRAINING LTD,SPINVB_32157,"1,620.00",Purchase Invoice
BEIS,Skills Funding Agency,02/08/2016,Hosting,Operations ICT - Technical Design Authority,SPECIALIST COMPUTER CENTRES PLC,SPINVB_32141,"194,002.97",Purchase Invoice
BEIS,Skills Funding Agency,02/08/2016,Hosting,Operations ICT - Technical Design Authority,SPECIALIST COMPUTER CENTRES PLC,SPINVB_32142,"28,800.00",Purchase Invoice
BEIS,Skills Funding Agency,02/08/2016,Hosting,Operations ICT - Technical Design Authority,SPECIALIST COMPUTER CENTRES PLC,SPINVB_32143,"19,999.99",Purchase Invoice
BEIS,Skills Funding Agency,02/08/2016,Landline Telephone Service,Operations ICT - Technical Design Authority,UNIFY ENTERPRISE COMMUNICATIONS LTD,SPINVB_32145,"20,707.74",Purchase Invoice
BEIS,Skills Funding Agency,02/08/2016,Managed IT Service,Apprenticeships & Delivery Services - Executive Office,CAPGEMINI UK PLC,SPINVB_32136,"11,772.00",Purchase Invoice
BEIS,Skills Funding Agency,02/08/2016,Managed IT Service,Operations ICT - Provider Digital Service,CAPGEMINI UK PLC,SPINVB_32129,"23,403.10",Purchase Invoice
BEIS,Skills Funding Agency,02/08/2016,Managed IT Service,Operations ICT - Solution Design & Innovation,LOCKHEED MARTIN BUSINESS TECHNOLOGY SOLUTIONS LIMITED,SPINVB_32084,"30,322.14",Purchase Invoice
BEIS,Skills Funding Agency,02/08/2016,"National Apprenticeship Service - Business, Innovation & Skills - Non-Participation",Main Funding,BARNSLEY COLLEGE,SPINVB_31517,"2,400.00",Purchase Invoice
BEIS,Skills Funding Agency,02/08/2016,Postage,Chief Executive Office - Executive Office,DEPARTMENT FOR BUSINESS INNOVATION & SKILLS (NEWPORT),SPINVB_32077,77.88,Purchase Invoice
BEIS,Skills Funding Agency,02/08/2016,Professional Services,Operations ICT - Technical Design Authority,SPECIALIST COMPUTER CENTRES PLC,SPINVB_32139,858,Purchase Invoice
BEIS,Skills Funding Agency,02/08/2016,Rates,Chief Executive Office - Executive Office,DEPARTMENT FOR BUSINESS INNOVATION & SKILLS (NEWPORT),SPINVB_32057,"7,355.59",Purchase Invoice
BEIS,Skills Funding Agency,02/08/2016,Rates,Chief Executive Office - Executive Office,DEPARTMENT FOR BUSINESS INNOVATION & SKILLS (NEWPORT),SPINVB_32079,"1,910.00",Purchase Invoice
BEIS,Skills Funding Agency,02/08/2016,Rent,Chief Executive Office - Executive Office,DEPARTMENT FOR BUSINESS INNOVATION & SKILLS (NEWPORT),SPINVB_32057,"30,877.71",Purchase Invoice
BEIS,Skills Funding Agency,02/08/2016,Rent,Chief Executive Office - Executive Office,DEPARTMENT FOR BUSINESS INNOVATION & SKILLS (NEWPORT),SPINVB_32079,"5,075.00",Purchase Invoice
BEIS,Skills Funding Agency,02/08/2016,Service Charges,Chief Executive Office - Executive Office,DEPARTMENT FOR BUSINESS INNOVATION & SKILLS (NEWPORT),SPINVB_32057,"15,481.04",Purchase Invoice
BEIS,Skills Funding Agency,02/08/2016,Service Charges,Chief Executive Office - Executive Office,DEPARTMENT FOR BUSINESS INNOVATION & SKILLS (NEWPORT),SPINVB_32079,142,Purchase Invoice
BEIS,Skills Funding Agency,02/08/2016,Software Maintenance & Repair,Operations ICT - Business IT - Agency Services,CAPGEMINI UK PLC,SPINVB_32127,"57,213.60",Purchase Invoice
BEIS,Skills Funding Agency,02/08/2016,Software Maintenance & Repair,Operations ICT - Business IT - Agency Services,CAPGEMINI UK PLC,SPINVB_32130,"38,190.00",Purchase Invoice
BEIS,Skills Funding Agency,02/08/2016,Software Maintenance & Repair,Operations ICT - Business IT - Agency Services,CAPGEMINI UK PLC,SPINVB_32131,"60,241.20",Purchase Invoice
BEIS,Skills Funding Agency,02/08/2016,Software Maintenance & Repair,Operations ICT - Mission IT / Business As Usual Major Releases,CAPGEMINI UK PLC,SPINVB_32126,"14,335.20",Purchase Invoice
BEIS,Skills Funding Agency,02/08/2016,Sundry Items,Accounting Services,SPECIALIST COMPUTER CENTRES PLC,SPINVB_32141,-0.12,Purchase Invoice
BEIS,Skills Funding Agency,02/08/2016,Temporary Staff,Funding & Programmes - Executive Office,PARITY RESOURCES LTD,SPINVB_31996,"3,083.33",Purchase Invoice
BEIS,Skills Funding Agency,02/08/2016,Temporary Staff,Funding & Programmes - Executive Office,SMART SOURCING PLC,SPINVB_32042,"12,405.12",Purchase Invoice
BEIS,Skills Funding Agency,02/08/2016,Temporary Staff,Operations ICT - Information & Communication Technology - Technical,KELLY SERVICES UK LTD,SPINVB_32146,"1,002.02",Purchase Invoice
BEIS,Skills Funding Agency,02/08/2016,Water,Chief Executive Office - Executive Office,DEPARTMENT FOR BUSINESS INNOVATION & SKILLS (NEWPORT),SPINVB_32079,54,Purchase Invoice
BEIS,Skills Funding Agency,02/08/2016,Young People's Helpline,Main Funding,MANAGEMENT LEARNING RESOURCES LTD,SPINVB_32151,"4,493.93",Purchase Invoice
BEIS,Skills Funding Agency,03/08/2016,Diesel Car Mileage Passenger Supplement,Central Delivery Service - Leeds,Agency Staff Member,SCLAIM_46215,4,Staff Expenses Claim
BEIS,Skills Funding Agency,03/08/2016,Diesel Car Mileage,Apprenticeships & Delivery Services - Marketing,Agency Staff Member,SCLAIM_46230,45,Staff Expenses Claim
BEIS,Skills Funding Agency,03/08/2016,Diesel Car Mileage,Central Delivery Service - European Social Fund - Audit Compliance,Agency Staff Member,SCLAIM_46208,153.9,Staff Expenses Claim
BEIS,Skills Funding Agency,03/08/2016,Diesel Car Mileage,Central Delivery Service - European Social Fund - Audit Compliance,Agency Staff Member,SCLAIM_46233,258.3,Staff Expenses Claim
BEIS,Skills Funding Agency,03/08/2016,Diesel Car Mileage,Central Delivery Service - Leeds,Agency Staff Member,SCLAIM_46206,369.9,Staff Expenses Claim
BEIS,Skills Funding Agency,03/08/2016,Diesel Car Mileage,Central Delivery Service - Leeds,Agency Staff Member,SCLAIM_46215,153,Staff Expenses Claim
BEIS,Skills Funding Agency,03/08/2016,Diesel Car Mileage,Employer & Provider Services South East,Agency Staff Member,SCLAIM_46207,49.5,Staff Expenses Claim
BEIS,Skills Funding Agency,03/08/2016,Diesel Car Mileage,Finance Division - Provider Finance,Agency Staff Member,SCLAIM_46229,156.6,Staff Expenses Claim
BEIS,Skills Funding Agency,03/08/2016,Diesel Car Mileage,Funding & Programmes - Executive Office,Agency Staff Member,SCLAIM_46228,594,Staff Expenses Claim
BEIS,Skills Funding Agency,03/08/2016,Diesel Car Mileage,Funding & Programmes - Localism Policy Implementation,Agency Staff Member,SCLAIM_46234,76.5,Staff Expenses Claim
BEIS,Skills Funding Agency,03/08/2016,Diesel Car Mileage,Funding & Programmes - Localism Policy Implementation,Agency Staff Member,SCLAIM_46235,30.6,Staff Expenses Claim
BEIS,Skills Funding Agency,03/08/2016,Diesel Car Mileage,Funding & Programmes - Provider Management & Intervention North,Agency Staff Member,SCLAIM_46223,171.9,Staff Expenses Claim
BEIS,Skills Funding Agency,03/08/2016,Diesel Car Mileage,Funding & Programmes - Provider Management & Intervention South,Agency Staff Member,SCLAIM_46222,473.85,Staff Expenses Claim
BEIS,Skills Funding Agency,03/08/2016,Diesel Car Mileage,Large Companies Unit,Agency Staff Member,SCLAIM_46201,247.95,Staff Expenses Claim
BEIS,Skills Funding Agency,03/08/2016,Diesel Car Mileage,Large Companies Unit,Agency Staff Member,SCLAIM_46212,162,Staff Expenses Claim
BEIS,Skills Funding Agency,03/08/2016,Diesel Car Mileage,National Careers & Learner Services,Agency Staff Member,SCLAIM_46202,241.2,Staff Expenses Claim
BEIS,Skills Funding Agency,03/08/2016,Diesel Car Mileage,National Careers & Learner Services,Agency Staff Member,SCLAIM_46236,338.4,Staff Expenses Claim
BEIS,Skills Funding Agency,03/08/2016,Diesel Car Mileage,Operations ICT - Information & Communication Technology - Technical,Agency Staff Member,SCLAIM_46224,100.8,Staff Expenses Claim
BEIS,Skills Funding Agency,03/08/2016,Hosting,Operations ICT - Technical Design Authority,CGI IT UK LIMITED,SPINVB_32164,"172,958.27",Purchase Invoice
BEIS,Skills Funding Agency,03/08/2016,Information Technology Systems Development,Funding & Programmes - Executive Office,VALTECH LIMITED,SPINVB_31921,639.55,Purchase Invoice
BEIS,Skills Funding Agency,03/08/2016,Information Technology Systems Development,Operations ICT - Projects,LOCKHEED MARTIN BUSINESS TECHNOLOGY SOLUTIONS LIMITED,SPINVB_32065,"1,338.01",Purchase Invoice
BEIS,Skills Funding Agency,03/08/2016,Information Technology Systems Development,Operations ICT - Projects,VALTECH LIMITED,SPINVB_31918,693.28,Purchase Invoice
BEIS,Skills Funding Agency,03/08/2016,"National Apprenticeship Service - Business, Innovation & Skills - Non-Participation",Main Funding,SQUARE IMAGE LTD,SPINVB_32170,513.24,Purchase Invoice
BEIS,Skills Funding Agency,03/08/2016,Other Travel,Apprenticeships & Delivery Services - Apprenticeships & Employer Policy Implementation,Agency Staff Member,SCLAIM_46204,11.53,Staff Expenses Claim
BEIS,Skills Funding Agency,03/08/2016,Other Travel,Apprenticeships & Delivery Services - Apprenticeships & Employer Policy Implementation,Agency Staff Member,SCLAIM_46211,4,Staff Expenses Claim
BEIS,Skills Funding Agency,03/08/2016,Other Travel,Apprenticeships & Delivery Services - Apprenticeships & Employer Policy Implementation,Agency Staff Member,SCLAIM_46225,14,Staff Expenses Claim
BEIS,Skills Funding Agency,03/08/2016,Other Travel,Apprenticeships & Delivery Services - Executive Office,Agency Staff Member,SCLAIM_46218,8,Staff Expenses Claim
BEIS,Skills Funding Agency,03/08/2016,Other Travel,Apprenticeships & Delivery Services - Marketing,Agency Staff Member,SCLAIM_46221,17,Staff Expenses Claim
BEIS,Skills Funding Agency,03/08/2016,Other Travel,Apprenticeships & Delivery Services - Marketing,Agency Staff Member,SCLAIM_46230,11.4,Staff Expenses Claim
BEIS,Skills Funding Agency,03/08/2016,Other Travel,Central Delivery Service - European Social Fund - Audit Compliance,Agency Staff Member,SCLAIM_46208,55.8,Staff Expenses Claim
BEIS,Skills Funding Agency,03/08/2016,Other Travel,Central Delivery Service - European Social Fund - Audit Compliance,Agency Staff Member,SCLAIM_46216,30.1,Staff Expenses Claim
BEIS,Skills Funding Agency,03/08/2016,Other Travel,Central Delivery Service - European Social Fund - Audit Compliance,Agency Staff Member,SCLAIM_46217,6.9,Staff Expenses Claim
BEIS,Skills Funding Agency,03/08/2016,Other Travel,Central Delivery Service - European Social Fund - Audit Compliance,Agency Staff Member,SCLAIM_46231,46.6,Staff Expenses Claim
BEIS,Skills Funding Agency,03/08/2016,Other Travel,Central Delivery Service - European Social Fund - Audit Compliance,Agency Staff Member,SCLAIM_46233,47,Staff Expenses Claim
BEIS,Skills Funding Agency,03/08/2016,Other Travel,Central Delivery Service - Leeds,Agency Staff Member,SCLAIM_46206,9.5,Staff Expenses Claim
BEIS,Skills Funding Agency,03/08/2016,Other Travel,Central Delivery Service - Leeds,Agency Staff Member,SCLAIM_46215,7,Staff Expenses Claim
BEIS,Skills Funding Agency,03/08/2016,Other Travel,Central Delivery Service - Leeds,Agency Staff Member,SCLAIM_46227,5,Staff Expenses Claim
BEIS,Skills Funding Agency,03/08/2016,Other Travel,Chief Executive Office - Communications,Agency Staff Member,SCLAIM_46240,92.5,Staff Expenses Claim
BEIS,Skills Funding Agency,03/08/2016,Other Travel,Employer & Provider Services North East & Yorkshire,Agency Staff Member,SCLAIM_46232,22,Staff Expenses Claim
BEIS,Skills Funding Agency,03/08/2016,Other Travel,Employer & Provider Services South East,Agency Staff Member,SCLAIM_46207,8.5,Staff Expenses Claim
BEIS,Skills Funding Agency,03/08/2016,Other Travel,Employer & Provider Services South East,Agency Staff Member,SCLAIM_46214,77.1,Staff Expenses Claim
BEIS,Skills Funding Agency,03/08/2016,Other Travel,Finance Division - Provider Finance,Agency Staff Member,SCLAIM_46229,31.5,Staff Expenses Claim
BEIS,Skills Funding Agency,03/08/2016,Other Travel,Funding & Programmes - Executive Office,Agency Staff Member,SCLAIM_46198,81.15,Staff Expenses Claim
BEIS,Skills Funding Agency,03/08/2016,Other Travel,Funding & Programmes - Executive Office,Agency Staff Member,SCLAIM_46199,45.7,Staff Expenses Claim
BEIS,Skills Funding Agency,03/08/2016,Other Travel,Funding & Programmes - Localism Policy Implementation,Agency Staff Member,SCLAIM_46235,11,Staff Expenses Claim
BEIS,Skills Funding Agency,03/08/2016,Other Travel,Funding & Programmes - Provider Management & Intervention North,Agency Staff Member,SCLAIM_46223,32.3,Staff Expenses Claim
BEIS,Skills Funding Agency,03/08/2016,Other Travel,Funding & Programmes - Provider Management & Intervention South,Agency Staff Member,SCLAIM_46222,20.1,Staff Expenses Claim
BEIS,Skills Funding Agency,03/08/2016,Other Travel,Large Companies Unit,Agency Staff Member,SCLAIM_46201,39.48,Staff Expenses Claim
BEIS,Skills Funding Agency,03/08/2016,Other Travel,National Careers & Learner Services,Agency Staff Member,SCLAIM_46202,53,Staff Expenses Claim
BEIS,Skills Funding Agency,03/08/2016,Other Travel,National Careers & Learner Services,Agency Staff Member,SCLAIM_46236,25.7,Staff Expenses Claim
BEIS,Skills Funding Agency,03/08/2016,Other Travel,Operations Finance - Executive Office,Agency Staff Member,SCLAIM_46219,6,Staff Expenses Claim
BEIS,Skills Funding Agency,03/08/2016,Other Travel,Operations Finance - Executive Office,Agency Staff Member,SCLAIM_46238,24,Staff Expenses Claim
BEIS,Skills Funding Agency,03/08/2016,Other Travel,Operations ICT - Information & Communication Technology - Technical,Agency Staff Member,SCLAIM_46203,31.08,Staff Expenses Claim
BEIS,Skills Funding Agency,03/08/2016,Other Travel,Operations ICT - Information & Communication Technology - Technical,Agency Staff Member,SCLAIM_46224,8,Staff Expenses Claim
BEIS,Skills Funding Agency,03/08/2016,Petrol Car Mileage,Apprenticeships & Delivery Services - Apprenticeships & Employer Policy Implementation,Agency Staff Member,SCLAIM_46211,185.4,Staff Expenses Claim
BEIS,Skills Funding Agency,03/08/2016,Petrol Car Mileage,Apprenticeships & Delivery Services - Apprenticeships & Employer Policy Implementation,Agency Staff Member,SCLAIM_46237,191.7,Staff Expenses Claim
BEIS,Skills Funding Agency,03/08/2016,Petrol Car Mileage,Central Delivery Service - European Social Fund - Audit Compliance,Agency Staff Member,SCLAIM_46216,24.3,Staff Expenses Claim
BEIS,Skills Funding Agency,03/08/2016,Petrol Car Mileage,Central Delivery Service - European Social Fund - Audit Compliance,Agency Staff Member,SCLAIM_46217,81,Staff Expenses Claim
BEIS,Skills Funding Agency,03/08/2016,Petrol Car Mileage,Employer & Provider Services North East & Yorkshire,Agency Staff Member,SCLAIM_46209,312.75,Staff Expenses Claim
BEIS,Skills Funding Agency,03/08/2016,Petrol Car Mileage,Employer & Provider Services North East & Yorkshire,Agency Staff Member,SCLAIM_46232,140.4,Staff Expenses Claim
BEIS,Skills Funding Agency,03/08/2016,Petrol Car Mileage,Funding & Programmes - Executive Office,Agency Staff Member,SCLAIM_46198,80.1,Staff Expenses Claim
BEIS,Skills Funding Agency,03/08/2016,Petrol Car Mileage,Operations Finance - Executive Office,Agency Staff Member,SCLAIM_46210,58.5,Staff Expenses Claim
BEIS,Skills Funding Agency,03/08/2016,Petrol Car Mileage,Operations Finance - Executive Office,Agency Staff Member,SCLAIM_46219,219.15,Staff Expenses Claim
BEIS,Skills Funding Agency,03/08/2016,Petrol Car Mileage,Operations Finance - Executive Office,Agency Staff Member,SCLAIM_46220,130.5,Staff Expenses Claim
BEIS,Skills Funding Agency,03/08/2016,Petrol Car Mileage,Operations ICT - Information & Communication Technology - Technical,Agency Staff Member,SCLAIM_46203,131.4,Staff Expenses Claim
BEIS,Skills Funding Agency,03/08/2016,Postage,Chief Executive Office - Executive Office,ROYAL MAIL GROUP LTD,SPINVNO_3867,180,Purchase Invoice
BEIS,Skills Funding Agency,03/08/2016,Postage,Chief Executive Office - Executive Office,ROYAL MAIL HOLDINGS PLC,SPINVNO_3868,"1,273.23",Purchase Invoice
BEIS,Skills Funding Agency,03/08/2016,Rail Warrants & Tickets,Apprenticeships & Delivery Services - Apprenticeships & Employer Policy Implementation,Agency Staff Member,SCLAIM_46204,36,Staff Expenses Claim
BEIS,Skills Funding Agency,03/08/2016,Rail Warrants & Tickets,Central Delivery Service - European Social Fund - Audit Compliance,Agency Staff Member,SCLAIM_46216,23,Staff Expenses Claim
BEIS,Skills Funding Agency,03/08/2016,Rail Warrants & Tickets,Central Delivery Service - European Social Fund - Audit Compliance,Agency Staff Member,SCLAIM_46217,8.2,Staff Expenses Claim
BEIS,Skills Funding Agency,03/08/2016,Rail Warrants & Tickets,Central Delivery Service - Leeds,Agency Staff Member,SCLAIM_46206,4.7,Staff Expenses Claim
BEIS,Skills Funding Agency,03/08/2016,Rail Warrants & Tickets,Employer & Provider Services South East,Agency Staff Member,SCLAIM_46214,40.8,Staff Expenses Claim
BEIS,Skills Funding Agency,03/08/2016,Rail Warrants & Tickets,Operations Finance - Executive Office,Agency Staff Member,SCLAIM_46219,9.6,Staff Expenses Claim
BEIS,Skills Funding Agency,03/08/2016,Rail Warrants & Tickets,Operations Finance - Executive Office,Agency Staff Member,SCLAIM_46220,3.55,Staff Expenses Claim
BEIS,Skills Funding Agency,03/08/2016,Rail Warrants & Tickets,Operations Finance - Executive Office,Agency Staff Member,SCLAIM_46226,6.8,Staff Expenses Claim
BEIS,Skills Funding Agency,03/08/2016,Rail Warrants & Tickets,Operations ICT - Information & Communication Technology - Technical,Agency Staff Member,SCLAIM_46203,10.8,Staff Expenses Claim
BEIS,Skills Funding Agency,03/08/2016,Self-Drive Car Hire,Central Delivery Service - European Social Fund - Audit Compliance,Agency Staff Member,SCLAIM_46213,14.34,Staff Expenses Claim
BEIS,Skills Funding Agency,03/08/2016,Self-Drive Car Hire,Finance Division - Provider Finance,Agency Staff Member,SCLAIM_46229,23.71,Staff Expenses Claim
BEIS,Skills Funding Agency,03/08/2016,Self-Drive Car Hire,Funding & Programmes - Provider Management & Intervention South,Agency Staff Member,SCLAIM_46222,43.35,Staff Expenses Claim
BEIS,Skills Funding Agency,03/08/2016,Self-Drive Car Hire,Large Companies Unit,Agency Staff Member,SCLAIM_46201,61.09,Staff Expenses Claim
BEIS,Skills Funding Agency,03/08/2016,Service Charges,Chief Executive Office - Executive Office,DEPARTMENT FOR BUSINESS INNOVATION & SKILLS (NEWPORT),SPINVB_32076,58.92,Purchase Invoice
BEIS,Skills Funding Agency,03/08/2016,Service Charges,Chief Executive Office - Executive Office,DEPARTMENT FOR BUSINESS INNOVATION & SKILLS (NEWPORT),SPINVB_32187,38.88,Purchase Invoice
BEIS,Skills Funding Agency,03/08/2016,Software Maintenance & Repair,Operations ICT - Mission IT / Business As Usual Major Releases,CAPGEMINI UK PLC,SPINVB_32128,"17,656.09",Purchase Invoice
BEIS,Skills Funding Agency,03/08/2016,Software Maintenance & Repair,Operations ICT - Project Delivery,BOTTOMLINE TECHNOLOGIES EUROPE LTD,SPINVB_32155,"1,320.00",Purchase Invoice
BEIS,Skills Funding Agency,03/08/2016,Software Maintenance & Repair,Operations ICT - Technical Design Authority,CAPGEMINI UK PLC,SPINVB_32132,"8,164.80",Purchase Invoice
BEIS,Skills Funding Agency,03/08/2016,Subsistence,Apprenticeships & Delivery Services - Apprenticeships & Employer Policy Implementation,Agency Staff Member,SCLAIM_46211,9.6,Staff Expenses Claim
BEIS,Skills Funding Agency,03/08/2016,Subsistence,Apprenticeships & Delivery Services - Apprenticeships & Employer Policy Implementation,Agency Staff Member,SCLAIM_46225,48.04,Staff Expenses Claim
BEIS,Skills Funding Agency,03/08/2016,Subsistence,Apprenticeships & Delivery Services - Apprenticeships & Employer Policy Implementation,Agency Staff Member,SCLAIM_46237,2.72,Staff Expenses Claim
BEIS,Skills Funding Agency,03/08/2016,Subsistence,Apprenticeships & Delivery Services - Executive Office,Agency Staff Member,SCLAIM_46218,34.56,Staff Expenses Claim
BEIS,Skills Funding Agency,03/08/2016,Subsistence,Apprenticeships & Delivery Services - Marketing,Agency Staff Member,SCLAIM_46221,57.79,Staff Expenses Claim
BEIS,Skills Funding Agency,03/08/2016,Subsistence,Central Delivery Service - European Social Fund - Audit Compliance,Agency Staff Member,SCLAIM_46208,9.3,Staff Expenses Claim
BEIS,Skills Funding Agency,03/08/2016,Subsistence,Central Delivery Service - European Social Fund - Audit Compliance,Agency Staff Member,SCLAIM_46213,4.5,Staff Expenses Claim
BEIS,Skills Funding Agency,03/08/2016,Subsistence,Central Delivery Service - European Social Fund - Audit Compliance,Agency Staff Member,SCLAIM_46216,14.2,Staff Expenses Claim
BEIS,Skills Funding Agency,03/08/2016,Subsistence,Central Delivery Service - European Social Fund - Audit Compliance,Agency Staff Member,SCLAIM_46217,22.5,Staff Expenses Claim
BEIS,Skills Funding Agency,03/08/2016,Subsistence,Central Delivery Service - European Social Fund - Audit Compliance,Agency Staff Member,SCLAIM_46233,30.64,Staff Expenses Claim
BEIS,Skills Funding Agency,03/08/2016,Subsistence,Central Delivery Service - Leeds,Agency Staff Member,SCLAIM_46206,20.19,Staff Expenses Claim
BEIS,Skills Funding Agency,03/08/2016,Subsistence,Central Delivery Service - Leeds,Agency Staff Member,SCLAIM_46227,7.55,Staff Expenses Claim
BEIS,Skills Funding Agency,03/08/2016,Subsistence,Central Delivery Service - Leeds,Agency Staff Member,SCLAIM_46239,24.47,Staff Expenses Claim
BEIS,Skills Funding Agency,03/08/2016,Subsistence,Employer & Provider Services North East & Yorkshire,Agency Staff Member,SCLAIM_46232,10.79,Staff Expenses Claim
BEIS,Skills Funding Agency,03/08/2016,Subsistence,Finance Division - Provider Finance,Agency Staff Member,SCLAIM_46229,53.38,Staff Expenses Claim
BEIS,Skills Funding Agency,03/08/2016,Subsistence,Funding & Programmes - Executive Office,Agency Staff Member,SCLAIM_46228,73.58,Staff Expenses Claim
BEIS,Skills Funding Agency,03/08/2016,Subsistence,Funding & Programmes - Provider Management & Intervention North,Agency Staff Member,SCLAIM_46223,10.33,Staff Expenses Claim
BEIS,Skills Funding Agency,03/08/2016,Subsistence,Funding & Programmes - Provider Management & Intervention South,Agency Staff Member,SCLAIM_46222,13.8,Staff Expenses Claim
BEIS,Skills Funding Agency,03/08/2016,Subsistence,Large Companies Unit,Agency Staff Member,SCLAIM_46201,31.73,Staff Expenses Claim
BEIS,Skills Funding Agency,03/08/2016,Subsistence,Large Companies Unit,Agency Staff Member,SCLAIM_46212,18.4,Staff Expenses Claim
BEIS,Skills Funding Agency,03/08/2016,Subsistence,National Careers & Learner Services,Agency Staff Member,SCLAIM_46202,11.84,Staff Expenses Claim
BEIS,Skills Funding Agency,03/08/2016,Subsistence,Operations Finance - Executive Office,Agency Staff Member,SCLAIM_46210,95.2,Staff Expenses Claim
BEIS,Skills Funding Agency,03/08/2016,Subsistence,Operations Finance - Executive Office,Agency Staff Member,SCLAIM_46226,45,Staff Expenses Claim
BEIS,Skills Funding Agency,03/08/2016,Sundry Items,Funding & Programmes - Executive Office,Agency Staff Member,SCLAIM_46199,43.89,Staff Expenses Claim
BEIS,Skills Funding Agency,03/08/2016,Taxis,Apprenticeships & Delivery Services - Apprenticeships & Employer Policy Implementation,Agency Staff Member,SCLAIM_46204,59.9,Staff Expenses Claim
BEIS,Skills Funding Agency,03/08/2016,Taxis,Apprenticeships & Delivery Services - Marketing,Agency Staff Member,SCLAIM_46221,42,Staff Expenses Claim
BEIS,Skills Funding Agency,03/08/2016,Taxis,Central Delivery Service - Leeds,Agency Staff Member,SCLAIM_46239,22,Staff Expenses Claim
BEIS,Skills Funding Agency,03/08/2016,Taxis,Employer & Provider Services South East,Agency Staff Member,SCLAIM_46207,16.5,Staff Expenses Claim
BEIS,Skills Funding Agency,03/08/2016,Taxis,Funding & Programmes - Localism Policy Implementation,Agency Staff Member,SCLAIM_46234,14.5,Staff Expenses Claim
BEIS,Skills Funding Agency,03/08/2016,Taxis,Large Companies Unit,Agency Staff Member,SCLAIM_46201,10,Staff Expenses Claim
BEIS,Skills Funding Agency,03/08/2016,Taxis,Operations Finance - Executive Office,Agency Staff Member,SCLAIM_46210,132.2,Staff Expenses Claim
BEIS,Skills Funding Agency,03/08/2016,Taxis,Operations Finance - Executive Office,Agency Staff Member,SCLAIM_46238,13.6,Staff Expenses Claim
BEIS,Skills Funding Agency,03/08/2016,Temporary Staff,Operations ICT - Projects,METHODS ADVISORY LTD,SPINVB_32160,"6,672.77",Purchase Invoice
BEIS,Skills Funding Agency,03/08/2016,Training Materials,Operations ICT - Information & Communication Technology - Technical,Agency Staff Member,SCLAIM_46203,4,Staff Expenses Claim
BEIS,Skills Funding Agency,03/08/2016,Training Venue & Refreshments,Funding & Programmes - Executive Office,PROFESSIONAL CONFERENCES LTD,SPINVB_32173,142.8,Purchase Invoice
BEIS,Skills Funding Agency,03/08/2016,Young People's Helpline,Main Funding,CONSUMERS' ASSOCIATION,SPINVB_32171,"3,776.53",Purchase Invoice
BEIS,Skills Funding Agency,05/08/2016,Archiving,Chief Executive Office - Executive Office,IRON MOUNTAIN UK LTD,IPINVELECT3_2091,"20,563.50",Purchase Invoice
BEIS,Skills Funding Agency,05/08/2016,Career Development Loans - Programme Support Costs,Main Funding,EDUCATION FUNDING AGENCY,SPINVB_31756,"153,000.00",Purchase Invoice
BEIS,Skills Funding Agency,05/08/2016,Catering Contracts,Chief Executive Office - Executive Office,WESTBURY STREET HOLDINGS,SPINVB_32196,338.23,Purchase Invoice
BEIS,Skills Funding Agency,05/08/2016,Classroom Based Colleges - Non Centralised Contract Management,Main Funding,EDUCATION FUNDING AGENCY,SPINVB_31756,"1,287,998.00",Purchase Invoice
BEIS,Skills Funding Agency,05/08/2016,Communications Team Expenditure,Chief Executive Office - Media & Public Affairs,PRECISE MEDIA MONITORING LTD,SPINVB_32198,"1,800.00",Purchase Invoice
BEIS,Skills Funding Agency,05/08/2016,Dance and Drama,Main Funding,EDUCATION FUNDING AGENCY,SPINVB_31756,"2,443,309.00",Purchase Invoice
BEIS,Skills Funding Agency,05/08/2016,Facilities Management,Chief Executive Office - Executive Office,DEPARTMENT FOR BUSINESS INNOVATION & SKILLS (NEWPORT),SPINVB_31516,"20,996.40",Purchase Invoice
BEIS,Skills Funding Agency,05/08/2016,Hosting,Operations ICT - Technical Design Authority,CGI IT UK LIMITED,SPINVB_32166,"8,534.40",Purchase Invoice
BEIS,Skills Funding Agency,05/08/2016,Hosting,Operations ICT - Technical Design Authority,FORDWAY SOLUTIONS LIMITED,SPINVB_32176,"8,400.00",Purchase Invoice
BEIS,Skills Funding Agency,05/08/2016,Hosting,Operations ICT - Technical Design Authority,FORDWAY SOLUTIONS LIMITED,SPINVB_32178,"2,821.50",Purchase Invoice
BEIS,Skills Funding Agency,05/08/2016,Hosting,Operations ICT - Technical Design Authority,FORDWAY SOLUTIONS LIMITED,SPINVB_32180,"31,356.46",Purchase Invoice
BEIS,Skills Funding Agency,05/08/2016,Hosting,Operations ICT - Technical Design Authority,FORDWAY SOLUTIONS LIMITED,SPINVB_32181,"6,588.00",Purchase Invoice
BEIS,Skills Funding Agency,05/08/2016,Hosting,Operations ICT - Technical Design Authority,FORDWAY SOLUTIONS LIMITED,SPINVB_32182,27.6,Purchase Invoice
BEIS,Skills Funding Agency,05/08/2016,Hosting,Operations ICT - Technical Design Authority,FORDWAY SOLUTIONS LIMITED,SPINVB_32183,"2,709.01",Purchase Invoice
BEIS,Skills Funding Agency,05/08/2016,Hosting,Operations ICT - Technical Design Authority,FORDWAY SOLUTIONS LIMITED,SPINVB_32185,"9,899.58",Purchase Invoice
BEIS,Skills Funding Agency,05/08/2016,Hosting,Operations ICT - Technical Design Authority,FORDWAY SOLUTIONS LIMITED,SPINVB_32186,"9,016.50",Purchase Invoice
BEIS,Skills Funding Agency,05/08/2016,Hosting,Operations ICT - Technical Design Authority,SPECIALIST COMPUTER CENTRES PLC,SPINVB_32174,"9,882.48",Purchase Invoice
BEIS,Skills Funding Agency,05/08/2016,Information Technology Systems Development,Funding & Programmes - Executive Office,PANLOGIC LTD,SPINVB_31958,"15,864.00",Purchase Invoice
BEIS,Skills Funding Agency,05/08/2016,Landline Telephone Service,Operations ICT - Information & Communication Technology - Technical,IDN TELECOM LTD,IPINVELECT3_2093,464.75,Purchase Invoice
BEIS,Skills Funding Agency,05/08/2016,Licences,Operations ICT - Business IT - Agency Services,SCARISTA LTD,SPINVB_32197,227.46,Purchase Invoice
BEIS,Skills Funding Agency,05/08/2016,Managed IT Service,Funding & Programmes - Executive Office,FORDWAY SOLUTIONS LIMITED,SPINVB_32175,720,Purchase Invoice
BEIS,Skills Funding Agency,05/08/2016,Managed IT Service,Funding & Programmes - Executive Office,LOCKHEED MARTIN BUSINESS TECHNOLOGY SOLUTIONS LIMITED,SPINVB_32012,"12,000.00",Purchase Invoice
BEIS,Skills Funding Agency,05/08/2016,Managed IT Service,Funding & Programmes - Executive Office,TRIAD GROUP PLC,SPINVB_32097,"7,020.00",Purchase Invoice
BEIS,Skills Funding Agency,05/08/2016,Managed IT Service,Funding & Programmes - Executive Office,TRIAD GROUP PLC,SPINVB_32098,"14,040.00",Purchase Invoice
BEIS,Skills Funding Agency,05/08/2016,Managed IT Service,Funding & Programmes - Executive Office,TRIAD GROUP PLC,SPINVB_32099,"12,090.00",Purchase Invoice
BEIS,Skills Funding Agency,05/08/2016,Managed IT Service,Operations ICT - Information & Communication Technology - Technical,LOCKHEED MARTIN BUSINESS TECHNOLOGY SOLUTIONS LIMITED,SPINVB_32006,"12,356.08",Purchase Invoice
BEIS,Skills Funding Agency,05/08/2016,Managed IT Service,Operations ICT - Mission IT / Business As Usual Major Releases,INFOR GLOBAL SOLUTIONS MIDLANDS V CO,SPINVB_32147,"23,955.00",Purchase Invoice
BEIS,Skills Funding Agency,05/08/2016,Managed IT Service,Operations ICT - Projects,SPECIALIST COMPUTER CENTRES PLC,SPINVB_30137,"10,098.00",Purchase Invoice
BEIS,Skills Funding Agency,05/08/2016,Managed IT Service,Operations ICT - Projects,UNIT 4 BUSINESS SOFTWARE LTD,SPINVB_29029,"2,880.00",Purchase Invoice
BEIS,Skills Funding Agency,05/08/2016,Professional Services,HR - Human Resources,TREASURY SOLICITORS,SPINVB_32209,74.88,Purchase Invoice
BEIS,Skills Funding Agency,05/08/2016,Professional Services,Operations ICT - Business IT - Agency Services,CAPGEMINI UK PLC,SPINVB_32134,"20,581.92",Purchase Invoice
BEIS,Skills Funding Agency,05/08/2016,Professional Services,Operations ICT - Information & Communication Technology - Technical,CAPGEMINI UK PLC,SPINVB_32135,"72,000.83",Purchase Invoice
BEIS,Skills Funding Agency,05/08/2016,Software Maintenance & Repair,Operations ICT - Business IT - Agency Services,CAPGEMINI UK PLC,SPINVB_32194,"18,712.80",Purchase Invoice
BEIS,Skills Funding Agency,05/08/2016,Software Maintenance & Repair,Operations ICT - Business IT - Agency Services,CGI IT UK LIMITED,SPINVB_32165,"187,384.80",Purchase Invoice
BEIS,Skills Funding Agency,05/08/2016,Software Maintenance & Repair,Operations ICT - Business IT - Agency Services,FORDWAY SOLUTIONS LIMITED,SPINVB_32184,"13,305.60",Purchase Invoice
BEIS,Skills Funding Agency,05/08/2016,Software Maintenance & Repair,Operations ICT - Technical Design Authority,NCC GROUP SECURITY SERVICES LTD,SPINVB_32114,"5,400.00",Purchase Invoice
BEIS,Skills Funding Agency,05/08/2016,Temporary Staff,Apprenticeships & Delivery Services - Executive Office,CAPITA BUSINESS SERVICES LTD,IPINVELECT3_2090,"2,552.88",Purchase Invoice
BEIS,Skills Funding Agency,05/08/2016,Temporary Staff,Funding & Programmes - Executive Office,CAPITA BUSINESS SERVICES LTD,IPINVELECT3_2090,"10,811.22",Purchase Invoice
BEIS,Skills Funding Agency,05/08/2016,Temporary Staff,Operations ICT - Information & Communication Technology - Technical,CADENCE PARTNERSHIP LLP,SPINVB_32189,"19,845.00",Purchase Invoice
BEIS,Skills Funding Agency,05/08/2016,Temporary Staff,Operations ICT - Information & Communication Technology - Technical,CAPITA BUSINESS SERVICES LTD,IPINVELECT3_2090,"6,082.38",Purchase Invoice
BEIS,Skills Funding Agency,05/08/2016,Temporary Staff,Operations ICT - Information & Communication Technology - Technical,LA INTERNATIONAL,SPINVB_32205,"3,300.00",Purchase Invoice
BEIS,Skills Funding Agency,05/08/2016,Temporary Staff,Operations ICT - Projects,CAPITA BUSINESS SERVICES LTD,IPINVELECT3_2090,"25,477.14",Purchase Invoice
BEIS,Skills Funding Agency,05/08/2016,Temporary Staff,Operations ICT - Technical Design Authority,CAPITA BUSINESS SERVICES LTD,IPINVELECT3_2090,"5,187.90",Purchase Invoice
BEIS,Skills Funding Agency,05/08/2016,Temporary Staff,Operations ICT - Technical Design Authority,PARITY RESOURCES LTD,SPINVB_32191,"5,958.90",Purchase Invoice
BEIS,Skills Funding Agency,05/08/2016,Temporary Staff,Transaction Unit,PRICE WATERHOUSE COOPER LLP,SPCRNB_1160,"-21,667.00",Purchase Credit Note
BEIS,Skills Funding Agency,05/08/2016,Temporary Staff,Transaction Unit,PRICE WATERHOUSE COOPER LLP,SPINVB_32138,"26,000.40",Purchase Invoice
BEIS,Skills Funding Agency,05/08/2016,Young People's Helpline,Main Funding,SPORTCEL MARKETING LTD,SPINVB_32195,"6,000.00",Purchase Invoice
BEIS,Skills Funding Agency,09/08/2016,Career Development Loans - Programme Support Costs,Main Funding,EXPERIAN LTD,SPINVB_32090,107.1,Purchase Invoice
BEIS,Skills Funding Agency,09/08/2016,Career Development Loans - Programme Support Costs,Main Funding,EXPERIAN LTD,SPINVB_32172,94.14,Purchase Invoice
BEIS,Skills Funding Agency,09/08/2016,Hosting,Operations ICT - Technical Design Authority,FORDWAY SOLUTIONS LIMITED,SPINVB_32177,"95,350.27",Purchase Invoice
BEIS,Skills Funding Agency,09/08/2016,Hosting,Operations ICT - Technical Design Authority,FORDWAY SOLUTIONS LIMITED,SPINVB_32179,"87,693.64",Purchase Invoice
BEIS,Skills Funding Agency,09/08/2016,Hosting,Operations ICT - Technical Design Authority,SPECIALIST COMPUTER CENTRES PLC,SPINVB_32144,360,Purchase Invoice
BEIS,Skills Funding Agency,09/08/2016,Managed IT Service,Operations ICT - Projects,TEST-DIRECT LTD,SPINVB_32213,"11,520.00",Purchase Invoice
BEIS,Skills Funding Agency,09/08/2016,Software Maintenance & Repair,Operations ICT - Business IT - Agency Services,ORACLE CORP UK LTD,SPINVB_32210,"2,822.63",Purchase Invoice
BEIS,Skills Funding Agency,09/08/2016,Software Maintenance & Repair,Operations ICT - Business IT - Citizen Services,HOTCOURSES DATA LTD,SPINVB_32193,"17,648.40",Purchase Invoice
BEIS,Skills Funding Agency,09/08/2016,Software Maintenance & Repair,Operations ICT - Business IT - Citizen Services,LOCKHEED MARTIN BUSINESS TECHNOLOGY SOLUTIONS LIMITED,SPINVB_32161,"118,643.86",Purchase Invoice
BEIS,Skills Funding Agency,09/08/2016,Temporary Staff,Data Science,PARITY RESOURCES LTD,SPINVB_31906,"7,377.60",Purchase Invoice
BEIS,Skills Funding Agency,09/08/2016,Temporary Staff,Operations ICT - Information & Communication Technology - Technical,EXPERIS LIMITED,SPINVB_32212,"17,876.54",Purchase Invoice
BEIS,Skills Funding Agency,09/08/2016,Temporary Staff,Operations ICT - Information & Communication Technology - Technical,KELLY SERVICES UK LTD,SPINVB_32217,"1,015.09",Purchase Invoice
BEIS,Skills Funding Agency,09/08/2016,Temporary Staff,Operations ICT - Projects,SMART SOURCING PLC,SPINVB_32206,"7,296.00",Purchase Invoice
BEIS,Skills Funding Agency,09/08/2016,Temporary Staff,Operations ICT - Technical Design Authority,SMART SOURCING PLC,SPINVB_32207,"13,366.32",Purchase Invoice
BEIS,Skills Funding Agency,10/08/2016,Application for Payment,None,DE LAGE LANDEN LEASING LIMITED,SPAYONACCT_347,"263,587.50",Payment on Account
BEIS,Skills Funding Agency,10/08/2016,Diesel Car Mileage Passenger Supplement,National Careers & Learner Services,Agency Staff Member,SCLAIM_46272,0.8,Staff Expenses Claim
BEIS,Skills Funding Agency,10/08/2016,Diesel Car Mileage,Apprenticeships & Delivery Services - Executive Office,Agency Staff Member,SCLAIM_46265,203.4,Staff Expenses Claim
BEIS,Skills Funding Agency,10/08/2016,Diesel Car Mileage,Central Delivery Service - European Social Fund - Audit Compliance,Agency Staff Member,SCLAIM_46255,156.6,Staff Expenses Claim
BEIS,Skills Funding Agency,10/08/2016,Diesel Car Mileage,Central Delivery Service - Leeds,Agency Staff Member,SCLAIM_46297,272.7,Staff Expenses Claim
BEIS,Skills Funding Agency,10/08/2016,Diesel Car Mileage,Employer & Provider Services North East & Yorkshire,Agency Staff Member,SCLAIM_46300,98.1,Staff Expenses Claim
BEIS,Skills Funding Agency,10/08/2016,Diesel Car Mileage,Employer & Provider Services North East & Yorkshire,Agency Staff Member,SCLAIM_46301,184.5,Staff Expenses Claim
BEIS,Skills Funding Agency,10/08/2016,Diesel Car Mileage,Employer & Provider Services North West,Agency Staff Member,SCLAIM_46259,188.1,Staff Expenses Claim
BEIS,Skills Funding Agency,10/08/2016,Diesel Car Mileage,Employer & Provider Services South East,Agency Staff Member,SCLAIM_45908,-208,Staff Expenses Claim
BEIS,Skills Funding Agency,10/08/2016,Diesel Car Mileage,Employer & Provider Services South East,Agency Staff Member,SCLAIM_46283,521.1,Staff Expenses Claim
BEIS,Skills Funding Agency,10/08/2016,Diesel Car Mileage,Employer & Provider Services South East,Agency Staff Member,SCLAIM_46284,21.6,Staff Expenses Claim
BEIS,Skills Funding Agency,10/08/2016,Diesel Car Mileage,Employer & Provider Services South East,Agency Staff Member,SCLAIM_46285,156.6,Staff Expenses Claim
BEIS,Skills Funding Agency,10/08/2016,Diesel Car Mileage,Employer & Provider Services South East,Agency Staff Member,SCLAIM_46286,162.9,Staff Expenses Claim
BEIS,Skills Funding Agency,10/08/2016,Diesel Car Mileage,Funding & Programmes - Funding Systems and Information,Agency Staff Member,SCLAIM_46245,121.5,Staff Expenses Claim
BEIS,Skills Funding Agency,10/08/2016,Diesel Car Mileage,Funding & Programmes - Localism Policy Implementation,Agency Staff Member,SCLAIM_46261,105.3,Staff Expenses Claim
BEIS,Skills Funding Agency,10/08/2016,Diesel Car Mileage,Funding & Programmes - Provider Management & Intervention North,Agency Staff Member,SCLAIM_46243,237.3,Staff Expenses Claim
BEIS,Skills Funding Agency,10/08/2016,Diesel Car Mileage,Funding & Programmes - Provider Management & Intervention North,Agency Staff Member,SCLAIM_46270,263.4,Staff Expenses Claim
BEIS,Skills Funding Agency,10/08/2016,Diesel Car Mileage,Funding & Programmes - Provider Management & Intervention North,Agency Staff Member,SCLAIM_46291,90.45,Staff Expenses Claim
BEIS,Skills Funding Agency,10/08/2016,Diesel Car Mileage,Intervention,Agency Staff Member,SCLAIM_46266,86.4,Staff Expenses Claim
BEIS,Skills Funding Agency,10/08/2016,Diesel Car Mileage,Large Companies Unit,Agency Staff Member,SCLAIM_46279,280.8,Staff Expenses Claim
BEIS,Skills Funding Agency,10/08/2016,Diesel Car Mileage,National Careers & Learner Services,Agency Staff Member,SCLAIM_46257,485.1,Staff Expenses Claim
BEIS,Skills Funding Agency,10/08/2016,Diesel Car Mileage,National Careers & Learner Services,Agency Staff Member,SCLAIM_46272,180.9,Staff Expenses Claim
BEIS,Skills Funding Agency,10/08/2016,Diesel Car Mileage,National Careers & Learner Services,Agency Staff Member,SCLAIM_46303,160.2,Staff Expenses Claim
BEIS,Skills Funding Agency,10/08/2016,Diesel Car Mileage,Operations Finance - Executive Office,Agency Staff Member,SCLAIM_46248,71.1,Staff Expenses Claim
BEIS,Skills Funding Agency,10/08/2016,Diesel Car Mileage,Operations Finance - Executive Office,Agency Staff Member,SCLAIM_46274,61.2,Staff Expenses Claim
BEIS,Skills Funding Agency,10/08/2016,Diesel Car Mileage,Operations Finance - Executive Office,Agency Staff Member,SCLAIM_46275,22.5,Staff Expenses Claim
BEIS,Skills Funding Agency,10/08/2016,Diesel Car Mileage,Operations Finance - Executive Office,Agency Staff Member,SCLAIM_46277,36,Staff Expenses Claim
BEIS,Skills Funding Agency,10/08/2016,Diesel Car Mileage,Operations Finance - Executive Office,Agency Staff Member,SCLAIM_46288,59.4,Staff Expenses Claim
BEIS,Skills Funding Agency,10/08/2016,Eye Tests,Chief Executive Office - Executive Office,Agency Staff Member,SCLAIM_46250,20,Staff Expenses Claim
BEIS,Skills Funding Agency,10/08/2016,Information Technology Systems Development,Operations ICT - Projects,LOCKHEED MARTIN BUSINESS TECHNOLOGY SOLUTIONS LIMITED,SPINVB_32211,498.35,Purchase Invoice
BEIS,Skills Funding Agency,10/08/2016,Landline Telephone Service,Operations ICT - Technical Design Authority,CGI IT UK LIMITED,SPINVB_32231,"8,224.68",Purchase Invoice
BEIS,Skills Funding Agency,10/08/2016,Licences,Operations ICT - Business IT - Agency Services,SERVICENOW NEDERLAND B.V.,SPINVB_32153,"10,944.00",Purchase Invoice
BEIS,Skills Funding Agency,10/08/2016,Other Fuel Car Mileage,Intervention,Agency Staff Member,SCLAIM_46254,-9.9,Staff Expenses Claim
BEIS,Skills Funding Agency,10/08/2016,Other Fuel Car Mileage,Operations Finance - Executive Office,Agency Staff Member,SCLAIM_46287,33,Staff Expenses Claim
BEIS,Skills Funding Agency,10/08/2016,Other Travel,Apprenticeships & Delivery Services - Executive Office,Agency Staff Member,SCLAIM_46246,2.5,Staff Expenses Claim
BEIS,Skills Funding Agency,10/08/2016,Other Travel,Apprenticeships & Delivery Services - Executive Office,Agency Staff Member,SCLAIM_46265,29.1,Staff Expenses Claim
BEIS,Skills Funding Agency,10/08/2016,Other Travel,Central Delivery Service - European Social Fund - Audit Compliance,Agency Staff Member,SCLAIM_46263,41,Staff Expenses Claim
BEIS,Skills Funding Agency,10/08/2016,Other Travel,Central Delivery Service - European Social Fund - Audit Compliance,Agency Staff Member,SCLAIM_46267,22,Staff Expenses Claim
BEIS,Skills Funding Agency,10/08/2016,Other Travel,Central Delivery Service - European Social Fund - Audit Compliance,Agency Staff Member,SCLAIM_46269,11.4,Staff Expenses Claim
BEIS,Skills Funding Agency,10/08/2016,Other Travel,Central Delivery Service - European Social Fund - Audit Compliance,Agency Staff Member,SCLAIM_46273,26,Staff Expenses Claim
BEIS,Skills Funding Agency,10/08/2016,Other Travel,Central Delivery Service - European Social Fund - Audit Compliance,Agency Staff Member,SCLAIM_46292,23,Staff Expenses Claim
BEIS,Skills Funding Agency,10/08/2016,Other Travel,Chief Executive Office - Executive Office,Agency Staff Member,SCLAIM_46250,11,Staff Expenses Claim
BEIS,Skills Funding Agency,10/08/2016,Other Travel,Employer & Provider Services London Apprenticeships Development,Agency Staff Member,SCLAIM_46305,6,Staff Expenses Claim
BEIS,Skills Funding Agency,10/08/2016,Other Travel,Employer & Provider Services North East & Yorkshire,Agency Staff Member,SCLAIM_46293,7,Staff Expenses Claim
BEIS,Skills Funding Agency,10/08/2016,Other Travel,Employer & Provider Services North East & Yorkshire,Agency Staff Member,SCLAIM_46299,41.33,Staff Expenses Claim
BEIS,Skills Funding Agency,10/08/2016,Other Travel,Employer & Provider Services North East & Yorkshire,Agency Staff Member,SCLAIM_46300,60,Staff Expenses Claim
BEIS,Skills Funding Agency,10/08/2016,Other Travel,Employer & Provider Services North East & Yorkshire,Agency Staff Member,SCLAIM_46301,45,Staff Expenses Claim
BEIS,Skills Funding Agency,10/08/2016,Other Travel,Employer & Provider Services North East & Yorkshire,Agency Staff Member,SCLAIM_46302,73.8,Staff Expenses Claim
BEIS,Skills Funding Agency,10/08/2016,Other Travel,Employer & Provider Services North West,Agency Staff Member,SCLAIM_46259,21,Staff Expenses Claim
BEIS,Skills Funding Agency,10/08/2016,Other Travel,Employer & Provider Services North West,Agency Staff Member,SCLAIM_46260,69.5,Staff Expenses Claim
BEIS,Skills Funding Agency,10/08/2016,Other Travel,Employer & Provider Services South East,Agency Staff Member,SCLAIM_46283,32.8,Staff Expenses Claim
BEIS,Skills Funding Agency,10/08/2016,Other Travel,Employer & Provider Services South East,Agency Staff Member,SCLAIM_46284,24,Staff Expenses Claim
BEIS,Skills Funding Agency,10/08/2016,Other Travel,Employer & Provider Services South East,Agency Staff Member,SCLAIM_46285,6,Staff Expenses Claim
BEIS,Skills Funding Agency,10/08/2016,Other Travel,Funding & Programmes - Executive Office,Agency Staff Member,SCLAIM_46268,22,Staff Expenses Claim
BEIS,Skills Funding Agency,10/08/2016,Other Travel,Funding & Programmes - Executive Office,Agency Staff Member,SCLAIM_46298,135.4,Staff Expenses Claim
BEIS,Skills Funding Agency,10/08/2016,Other Travel,Funding & Programmes - Provider Management & Intervention North,Agency Staff Member,SCLAIM_46243,6,Staff Expenses Claim
BEIS,Skills Funding Agency,10/08/2016,Other Travel,Funding & Programmes - Provider Management & Intervention North,Agency Staff Member,SCLAIM_46244,16,Staff Expenses Claim
BEIS,Skills Funding Agency,10/08/2016,Other Travel,Funding & Programmes - Provider Management & Intervention North,Agency Staff Member,SCLAIM_46270,3,Staff Expenses Claim
BEIS,Skills Funding Agency,10/08/2016,Other Travel,Funding & Programmes - Provider Management & Intervention North,Agency Staff Member,SCLAIM_46291,8.5,Staff Expenses Claim
BEIS,Skills Funding Agency,10/08/2016,Other Travel,Funding & Programmes - Provider Management & Intervention South,Agency Staff Member,SCLAIM_46281,7.1,Staff Expenses Claim
BEIS,Skills Funding Agency,10/08/2016,Other Travel,Intervention,Agency Staff Member,SCLAIM_46247,41.2,Staff Expenses Claim
BEIS,Skills Funding Agency,10/08/2016,Other Travel,Intervention,Agency Staff Member,SCLAIM_46290,10.5,Staff Expenses Claim
BEIS,Skills Funding Agency,10/08/2016,Other Travel,Intervention,Agency Staff Member,SCLAIM_46304,6,Staff Expenses Claim
BEIS,Skills Funding Agency,10/08/2016,Other Travel,Intervention,Agency Staff Member,SCLAIM_46306,4.5,Staff Expenses Claim
BEIS,Skills Funding Agency,10/08/2016,Other Travel,Large Companies Unit,Agency Staff Member,SCLAIM_46279,16.25,Staff Expenses Claim
BEIS,Skills Funding Agency,10/08/2016,Other Travel,National Careers & Learner Services,Agency Staff Member,SCLAIM_46257,11,Staff Expenses Claim
BEIS,Skills Funding Agency,10/08/2016,Other Travel,National Careers & Learner Services,Agency Staff Member,SCLAIM_46272,33,Staff Expenses Claim
BEIS,Skills Funding Agency,10/08/2016,Other Travel,National Careers & Learner Services,Agency Staff Member,SCLAIM_46303,77,Staff Expenses Claim
BEIS,Skills Funding Agency,10/08/2016,Other Travel,Operations Finance - Executive Office,Agency Staff Member,SCLAIM_46248,64.2,Staff Expenses Claim
BEIS,Skills Funding Agency,10/08/2016,Other Travel,Operations Finance - Executive Office,Agency Staff Member,SCLAIM_46256,25.94,Staff Expenses Claim
BEIS,Skills Funding Agency,10/08/2016,Other Travel,Operations Finance - Executive Office,Agency Staff Member,SCLAIM_46274,14,Staff Expenses Claim
BEIS,Skills Funding Agency,10/08/2016,Other Travel,Operations Finance - Executive Office,Agency Staff Member,SCLAIM_46275,13.9,Staff Expenses Claim
BEIS,Skills Funding Agency,10/08/2016,Other Travel,Operations Finance - Executive Office,Agency Staff Member,SCLAIM_46296,18,Staff Expenses Claim
BEIS,Skills Funding Agency,10/08/2016,Petrol Car Mileage Passenger Supplement,Intervention,Agency Staff Member,SCLAIM_46254,0.4,Staff Expenses Claim
BEIS,Skills Funding Agency,10/08/2016,Petrol Car Mileage Passenger Supplement,Operations Finance - Executive Office,Agency Staff Member,SCLAIM_46256,3.8,Staff Expenses Claim
BEIS,Skills Funding Agency,10/08/2016,Petrol Car Mileage,Central Delivery Service - European Social Fund - Audit Compliance,Agency Staff Member,SCLAIM_46263,42.3,Staff Expenses Claim
BEIS,Skills Funding Agency,10/08/2016,Petrol Car Mileage,Central Delivery Service - European Social Fund - Audit Compliance,Agency Staff Member,SCLAIM_46269,130.5,Staff Expenses Claim
BEIS,Skills Funding Agency,10/08/2016,Petrol Car Mileage,Central Delivery Service - European Social Fund - Audit Compliance,Agency Staff Member,SCLAIM_46273,207,Staff Expenses Claim
BEIS,Skills Funding Agency,10/08/2016,Petrol Car Mileage,Central Delivery Service - European Social Fund - Audit Compliance,Agency Staff Member,SCLAIM_46292,92.7,Staff Expenses Claim
BEIS,Skills Funding Agency,10/08/2016,Petrol Car Mileage,Chief Executive Office - Communications,Agency Staff Member,SCLAIM_46264,39.6,Staff Expenses Claim
BEIS,Skills Funding Agency,10/08/2016,Petrol Car Mileage,Employer & Provider Services North East & Yorkshire,Agency Staff Member,SCLAIM_46258,184.5,Staff Expenses Claim
BEIS,Skills Funding Agency,10/08/2016,Petrol Car Mileage,Employer & Provider Services North East & Yorkshire,Agency Staff Member,SCLAIM_46293,680.4,Staff Expenses Claim
BEIS,Skills Funding Agency,10/08/2016,Petrol Car Mileage,Employer & Provider Services North West,Agency Staff Member,SCLAIM_46260,482.4,Staff Expenses Claim
BEIS,Skills Funding Agency,10/08/2016,Petrol Car Mileage,Funding & Programmes - Executive Office,Agency Staff Member,SCLAIM_46268,358.2,Staff Expenses Claim
BEIS,Skills Funding Agency,10/08/2016,Petrol Car Mileage,Funding & Programmes - Provider Management & Intervention North,Agency Staff Member,SCLAIM_46244,90,Staff Expenses Claim
BEIS,Skills Funding Agency,10/08/2016,Petrol Car Mileage,Funding & Programmes - Provider Management & Intervention South,Agency Staff Member,SCLAIM_46281,223.2,Staff Expenses Claim
BEIS,Skills Funding Agency,10/08/2016,Petrol Car Mileage,Intervention,Agency Staff Member,SCLAIM_46247,376.65,Staff Expenses Claim
BEIS,Skills Funding Agency,10/08/2016,Petrol Car Mileage,Intervention,Agency Staff Member,SCLAIM_46254,101.25,Staff Expenses Claim
BEIS,Skills Funding Agency,10/08/2016,Petrol Car Mileage,Intervention,Agency Staff Member,SCLAIM_46290,371.7,Staff Expenses Claim
BEIS,Skills Funding Agency,10/08/2016,Petrol Car Mileage,Operations Finance - Executive Office,Agency Staff Member,SCLAIM_46241,39.6,Staff Expenses Claim
BEIS,Skills Funding Agency,10/08/2016,Petrol Car Mileage,Operations Finance - Executive Office,Agency Staff Member,SCLAIM_46256,34.2,Staff Expenses Claim
BEIS,Skills Funding Agency,10/08/2016,Petrol Car Mileage,Operations Finance - Executive Office,Agency Staff Member,SCLAIM_46276,116.1,Staff Expenses Claim
BEIS,Skills Funding Agency,10/08/2016,Petrol Car Mileage,Operations Finance - Executive Office,Agency Staff Member,SCLAIM_46282,252,Staff Expenses Claim
BEIS,Skills Funding Agency,10/08/2016,Petrol Car Mileage,Operations Finance - Executive Office,Agency Staff Member,SCLAIM_46295,182.7,Staff Expenses Claim
BEIS,Skills Funding Agency,10/08/2016,Petrol Car Mileage,Operations Finance - Executive Office,Agency Staff Member,SCLAIM_46296,79.2,Staff Expenses Claim
BEIS,Skills Funding Agency,10/08/2016,Rail Warrants & Tickets,Central Delivery Service - European Social Fund - Audit Compliance,Agency Staff Member,SCLAIM_46292,31.8,Staff Expenses Claim
BEIS,Skills Funding Agency,10/08/2016,Rail Warrants & Tickets,Chief Executive Office - Executive Office,Agency Staff Member,SCLAIM_46250,82,Staff Expenses Claim
BEIS,Skills Funding Agency,10/08/2016,Rail Warrants & Tickets,Employer & Provider Services London Apprenticeships Development,Agency Staff Member,SCLAIM_46305,18.6,Staff Expenses Claim
BEIS,Skills Funding Agency,10/08/2016,Rail Warrants & Tickets,Employer & Provider Services London,Agency Staff Member,SCLAIM_46307,50.1,Staff Expenses Claim
BEIS,Skills Funding Agency,10/08/2016,Rail Warrants & Tickets,Employer & Provider Services South East,Agency Staff Member,SCLAIM_46284,111.7,Staff Expenses Claim
BEIS,Skills Funding Agency,10/08/2016,Rail Warrants & Tickets,Funding & Programmes - Localism Policy Implementation,Agency Staff Member,SCLAIM_46289,8.6,Staff Expenses Claim
BEIS,Skills Funding Agency,10/08/2016,Rail Warrants & Tickets,Intervention,Agency Staff Member,SCLAIM_46254,3.6,Staff Expenses Claim
BEIS,Skills Funding Agency,10/08/2016,Rail Warrants & Tickets,Intervention,Agency Staff Member,SCLAIM_46304,22.8,Staff Expenses Claim
BEIS,Skills Funding Agency,10/08/2016,Rail Warrants & Tickets,Intervention,Agency Staff Member,SCLAIM_46306,16.6,Staff Expenses Claim
BEIS,Skills Funding Agency,10/08/2016,Rail Warrants & Tickets,Large Companies Unit,Agency Staff Member,SCLAIM_46251,75,Staff Expenses Claim
BEIS,Skills Funding Agency,10/08/2016,Rail Warrants & Tickets,Operations Finance - Executive Office,Agency Staff Member,SCLAIM_46241,84.9,Staff Expenses Claim
BEIS,Skills Funding Agency,10/08/2016,Rail Warrants & Tickets,Operations Finance - Executive Office,Agency Staff Member,SCLAIM_46256,54.1,Staff Expenses Claim
BEIS,Skills Funding Agency,10/08/2016,Rail Warrants & Tickets,Operations Finance - Executive Office,Agency Staff Member,SCLAIM_46287,86.4,Staff Expenses Claim
BEIS,Skills Funding Agency,10/08/2016,Self-Drive Car Hire,Central Delivery Service - European Social Fund - Audit Compliance,Agency Staff Member,SCLAIM_46267,40.43,Staff Expenses Claim
BEIS,Skills Funding Agency,10/08/2016,Self-Drive Car Hire,Central Delivery Service - European Social Fund - Audit Compliance,Agency Staff Member,SCLAIM_46271,26.49,Staff Expenses Claim
BEIS,Skills Funding Agency,10/08/2016,Self-Drive Car Hire,Funding & Programmes - Provider Management & Intervention North,Agency Staff Member,SCLAIM_46243,44.67,Staff Expenses Claim
BEIS,Skills Funding Agency,10/08/2016,Self-Drive Car Hire,Funding & Programmes - Provider Management & Intervention North,Agency Staff Member,SCLAIM_46270,28.65,Staff Expenses Claim
BEIS,Skills Funding Agency,10/08/2016,Self-Drive Car Hire,Large Companies Unit,Agency Staff Member,SCLAIM_46279,81.74,Staff Expenses Claim
BEIS,Skills Funding Agency,10/08/2016,Self-Drive Car Hire,Operations Finance - Executive Office,Agency Staff Member,SCLAIM_46274,29.16,Staff Expenses Claim
BEIS,Skills Funding Agency,10/08/2016,Self-Drive Car Hire,Operations Finance - Executive Office,Agency Staff Member,SCLAIM_46288,41.05,Staff Expenses Claim
BEIS,Skills Funding Agency,10/08/2016,Subsistence,Apprenticeships & Delivery Services - Executive Office,Agency Staff Member,SCLAIM_46246,37.81,Staff Expenses Claim
BEIS,Skills Funding Agency,10/08/2016,Subsistence,Apprenticeships & Delivery Services - Executive Office,Agency Staff Member,SCLAIM_46265,20.95,Staff Expenses Claim
BEIS,Skills Funding Agency,10/08/2016,Subsistence,Central Delivery Service - European Social Fund - Audit Compliance,Agency Staff Member,SCLAIM_46255,23.95,Staff Expenses Claim
BEIS,Skills Funding Agency,10/08/2016,Subsistence,Central Delivery Service - European Social Fund - Audit Compliance,Agency Staff Member,SCLAIM_46263,114.65,Staff Expenses Claim
BEIS,Skills Funding Agency,10/08/2016,Subsistence,Central Delivery Service - European Social Fund - Audit Compliance,Agency Staff Member,SCLAIM_46267,3.45,Staff Expenses Claim
BEIS,Skills Funding Agency,10/08/2016,Subsistence,Central Delivery Service - European Social Fund - Audit Compliance,Agency Staff Member,SCLAIM_46269,84.42,Staff Expenses Claim
BEIS,Skills Funding Agency,10/08/2016,Subsistence,Central Delivery Service - European Social Fund - Audit Compliance,Agency Staff Member,SCLAIM_46271,4.75,Staff Expenses Claim
BEIS,Skills Funding Agency,10/08/2016,Subsistence,Central Delivery Service - European Social Fund - Audit Compliance,Agency Staff Member,SCLAIM_46273,26.2,Staff Expenses Claim
BEIS,Skills Funding Agency,10/08/2016,Subsistence,Central Delivery Service - European Social Fund - Audit Compliance,Agency Staff Member,SCLAIM_46292,7.05,Staff Expenses Claim
BEIS,Skills Funding Agency,10/08/2016,Subsistence,Finance Division - Provider Finance,Agency Staff Member,SCLAIM_46294,75,Staff Expenses Claim
BEIS,Skills Funding Agency,10/08/2016,Subsistence,Funding & Programmes - Executive Office,Agency Staff Member,SCLAIM_46268,7.3,Staff Expenses Claim
BEIS,Skills Funding Agency,10/08/2016,Subsistence,Funding & Programmes - Localism Policy Implementation,Agency Staff Member,SCLAIM_46261,10,Staff Expenses Claim
BEIS,Skills Funding Agency,10/08/2016,Subsistence,Funding & Programmes - Provider Management & Intervention South,Agency Staff Member,SCLAIM_46281,7.13,Staff Expenses Claim
BEIS,Skills Funding Agency,10/08/2016,Subsistence,Large Companies Unit,Agency Staff Member,SCLAIM_46279,13.1,Staff Expenses Claim
BEIS,Skills Funding Agency,10/08/2016,Subsistence,National Careers & Learner Services,Agency Staff Member,SCLAIM_46242,27.35,Staff Expenses Claim
BEIS,Skills Funding Agency,10/08/2016,Subsistence,National Careers & Learner Services,Agency Staff Member,SCLAIM_46262,17.18,Staff Expenses Claim
BEIS,Skills Funding Agency,10/08/2016,Subsistence,National Careers & Learner Services,Agency Staff Member,SCLAIM_46272,12.35,Staff Expenses Claim
BEIS,Skills Funding Agency,10/08/2016,Subsistence,National Careers & Learner Services,Agency Staff Member,SCLAIM_46303,4.6,Staff Expenses Claim
BEIS,Skills Funding Agency,10/08/2016,Subsistence,Operations Finance - Executive Office,Agency Staff Member,SCLAIM_46241,13.02,Staff Expenses Claim
BEIS,Skills Funding Agency,10/08/2016,Subsistence,Operations Finance - Executive Office,Agency Staff Member,SCLAIM_46248,42.24,Staff Expenses Claim
BEIS,Skills Funding Agency,10/08/2016,Subsistence,Operations Finance - Executive Office,Agency Staff Member,SCLAIM_46256,30.19,Staff Expenses Claim
BEIS,Skills Funding Agency,10/08/2016,Subsistence,Operations Finance - Executive Office,Agency Staff Member,SCLAIM_46274,20.87,Staff Expenses Claim
BEIS,Skills Funding Agency,10/08/2016,Subsistence,Operations Finance - Executive Office,Agency Staff Member,SCLAIM_46277,8.65,Staff Expenses Claim
BEIS,Skills Funding Agency,10/08/2016,Subsistence,Operations Finance - Executive Office,Agency Staff Member,SCLAIM_46278,25,Staff Expenses Claim
BEIS,Skills Funding Agency,10/08/2016,Subsistence,Operations Finance - Executive Office,Agency Staff Member,SCLAIM_46282,50.45,Staff Expenses Claim
BEIS,Skills Funding Agency,10/08/2016,Subsistence,Operations Finance - Executive Office,Agency Staff Member,SCLAIM_46288,57.77,Staff Expenses Claim
BEIS,Skills Funding Agency,10/08/2016,Subsistence,Operations Finance - Executive Office,Agency Staff Member,SCLAIM_46295,5.5,Staff Expenses Claim
BEIS,Skills Funding Agency,10/08/2016,Subsistence,Operations Finance - Executive Office,Agency Staff Member,SCLAIM_46296,64.67,Staff Expenses Claim
BEIS,Skills Funding Agency,10/08/2016,Sundry Items,Large Companies Unit,Agency Staff Member,SCLAIM_46249,174,Staff Expenses Claim
BEIS,Skills Funding Agency,10/08/2016,Sundry Items,Large Companies Unit,Agency Staff Member,SCLAIM_46251,35.39,Staff Expenses Claim
BEIS,Skills Funding Agency,10/08/2016,Taxis,Apprenticeships & Delivery Services - Executive Office,Agency Staff Member,SCLAIM_46246,39.4,Staff Expenses Claim
BEIS,Skills Funding Agency,10/08/2016,Taxis,Central Delivery Service - European Social Fund - Audit Compliance,Agency Staff Member,SCLAIM_46269,60,Staff Expenses Claim
BEIS,Skills Funding Agency,10/08/2016,Taxis,Central Delivery Service - European Social Fund - Audit Compliance,Agency Staff Member,SCLAIM_46273,4,Staff Expenses Claim
BEIS,Skills Funding Agency,10/08/2016,Taxis,Chief Executive Office - Executive Office,Agency Staff Member,SCLAIM_46250,12,Staff Expenses Claim
BEIS,Skills Funding Agency,10/08/2016,Taxis,Finance Division - Provider Finance,Agency Staff Member,SCLAIM_46294,19,Staff Expenses Claim
BEIS,Skills Funding Agency,10/08/2016,Taxis,Intervention,Agency Staff Member,SCLAIM_46306,6,Staff Expenses Claim
BEIS,Skills Funding Agency,10/08/2016,Taxis,Large Companies Unit,Agency Staff Member,SCLAIM_46251,25,Staff Expenses Claim
BEIS,Skills Funding Agency,10/08/2016,Taxis,Operations Finance - Executive Office,Agency Staff Member,SCLAIM_46256,4.2,Staff Expenses Claim
BEIS,Skills Funding Agency,10/08/2016,Temporary Staff,Transaction Unit,PARITY RESOURCES LTD,SPINVB_31651,"10,197.55",Purchase Invoice
BEIS,Skills Funding Agency,10/08/2016,Temporary Staff,Transaction Unit,PARITY RESOURCES LTD,SPINVB_31652,"14,396.54",Purchase Invoice
BEIS,Skills Funding Agency,10/08/2016,Temporary Staff,Transformation & Corporate Strategy,PERTEMPS RECRUITMENT PARTNERSHIP LTD,SPINVB_32159,845.14,Purchase Invoice
BEIS,Skills Funding Agency,11/08/2016,16-18 Apprenticeship Grant for Employers - Centralised Contract Management,Main Funding,ACCESS TRAINING EAST MIDLANDS LTD,AGER_6861,"1,500.00",Programme System File
BEIS,Skills Funding Agency,11/08/2016,16-18 Apprenticeship Grant for Employers - Centralised Contract Management,Main Funding,ACCESS TRAINING EAST MIDLANDS LTD,AGER_7465,"-1,500.00",Programme System File
BEIS,Skills Funding Agency,11/08/2016,16-18 Apprenticeship Grant for Employers - Centralised Contract Management,Main Funding,APPRENTICESHIPS & TRAINING SERVICES CONSORTIUM LIMITED,AGEC_2615,"-6,000.00",Programme System File
BEIS,Skills Funding Agency,11/08/2016,16-18 Apprenticeship Grant for Employers - Centralised Contract Management,Main Funding,APPRENTICESHIPS & TRAINING SERVICES CONSORTIUM LIMITED,AGER_7516,"6,000.00",Programme System File
BEIS,Skills Funding Agency,11/08/2016,16-18 Apprenticeship Grant for Employers - Centralised Contract Management,Main Funding,ASPIRATION TRAINING LTD,AGER_7130,"-1,500.00",Programme System File
BEIS,Skills Funding Agency,11/08/2016,16-18 Apprenticeship Grant for Employers - Centralised Contract Management,Main Funding,BARNARDOS,AGER_3393,"4,500.00",Programme System File
BEIS,Skills Funding Agency,11/08/2016,16-18 Apprenticeship Grant for Employers - Centralised Contract Management,Main Funding,BARNARDOS,AGER_4064,"4,500.00",Programme System File
BEIS,Skills Funding Agency,11/08/2016,16-18 Apprenticeship Grant for Employers - Centralised Contract Management,Main Funding,BARNARDOS,AGER_5368,"6,000.00",Programme System File
BEIS,Skills Funding Agency,11/08/2016,16-18 Apprenticeship Grant for Employers - Centralised Contract Management,Main Funding,BARNARDOS,AGER_6709,"1,500.00",Programme System File
BEIS,Skills Funding Agency,11/08/2016,16-18 Apprenticeship Grant for Employers - Centralised Contract Management,Main Funding,BARNET AND SOUTHGATE COLLEGE,AGER_6446,"1,500.00",Programme System File
BEIS,Skills Funding Agency,11/08/2016,16-18 Apprenticeship Grant for Employers - Centralised Contract Management,Main Funding,BARNET AND SOUTHGATE COLLEGE,AGER_7206,"-6,000.00",Programme System File
BEIS,Skills Funding Agency,11/08/2016,16-18 Apprenticeship Grant for Employers - Centralised Contract Management,Main Funding,BPP HOLDINGS PLC,AGEC_2579,"-9,000.00",Programme System File
BEIS,Skills Funding Agency,11/08/2016,16-18 Apprenticeship Grant for Employers - Centralised Contract Management,Main Funding,BPP HOLDINGS PLC,AGER_6731,"1,500.00",Programme System File
BEIS,Skills Funding Agency,11/08/2016,16-18 Apprenticeship Grant for Employers - Centralised Contract Management,Main Funding,BPP HOLDINGS PLC,AGER_7466,"9,000.00",Programme System File
BEIS,Skills Funding Agency,11/08/2016,16-18 Apprenticeship Grant for Employers - Centralised Contract Management,Main Funding,BRISTOL CITY COUNCIL,AGEC_2656,"-34,500.00",Programme System File
BEIS,Skills Funding Agency,11/08/2016,16-18 Apprenticeship Grant for Employers - Centralised Contract Management,Main Funding,BRISTOL CITY COUNCIL,AGER_6883,"3,000.00",Programme System File
BEIS,Skills Funding Agency,11/08/2016,16-18 Apprenticeship Grant for Employers - Centralised Contract Management,Main Funding,BRISTOL CITY COUNCIL,AGER_7022,"34,500.00",Programme System File
BEIS,Skills Funding Agency,11/08/2016,16-18 Apprenticeship Grant for Employers - Centralised Contract Management,Main Funding,BROADLAND DISTRICT COUNCIL,AGER_6971,"-1,500.00",Programme System File
BEIS,Skills Funding Agency,11/08/2016,16-18 Apprenticeship Grant for Employers - Centralised Contract Management,Main Funding,BROADLAND DISTRICT COUNCIL,AGER_7029,"-1,500.00",Programme System File
BEIS,Skills Funding Agency,11/08/2016,16-18 Apprenticeship Grant for Employers - Centralised Contract Management,Main Funding,BROMLEY COLLEGE OF FURTHER & HIGHER EDUCATION,AGEC_2231,"-4,500.00",Programme System File
BEIS,Skills Funding Agency,11/08/2016,16-18 Apprenticeship Grant for Employers - Centralised Contract Management,Main Funding,BROMLEY COLLEGE OF FURTHER & HIGHER EDUCATION,AGER_7025,"4,500.00",Programme System File
BEIS,Skills Funding Agency,11/08/2016,16-18 Apprenticeship Grant for Employers - Centralised Contract Management,Main Funding,BROOKSBY MELTON COLLEGE,AGEC_2235,"-13,500.00",Programme System File
BEIS,Skills Funding Agency,11/08/2016,16-18 Apprenticeship Grant for Employers - Centralised Contract Management,Main Funding,BROOKSBY MELTON COLLEGE,AGER_7000,"-1,500.00",Programme System File
BEIS,Skills Funding Agency,11/08/2016,16-18 Apprenticeship Grant for Employers - Centralised Contract Management,Main Funding,BROOKSBY MELTON COLLEGE,AGER_7028,"13,500.00",Programme System File
BEIS,Skills Funding Agency,11/08/2016,16-18 Apprenticeship Grant for Employers - Centralised Contract Management,Main Funding,CHAPMAN BENNETT ASSOCIATES LIMITED,AGEC_2219,"-3,000.00",Programme System File
BEIS,Skills Funding Agency,11/08/2016,16-18 Apprenticeship Grant for Employers - Centralised Contract Management,Main Funding,CHAPMAN BENNETT ASSOCIATES LIMITED,AGER_6925,"3,000.00",Programme System File
BEIS,Skills Funding Agency,11/08/2016,16-18 Apprenticeship Grant for Employers - Centralised Contract Management,Main Funding,CHILTERN TRAINING LTD,AGEC_2257,"-1,500.00",Programme System File
BEIS,Skills Funding Agency,11/08/2016,16-18 Apprenticeship Grant for Employers - Centralised Contract Management,Main Funding,CHILTERN TRAINING LTD,AGER_7060,"1,500.00",Programme System File
BEIS,Skills Funding Agency,11/08/2016,16-18 Apprenticeship Grant for Employers - Centralised Contract Management,Main Funding,COLLEGE OF NORTH WEST LONDON,AGEC_2202,"-3,000.00",Programme System File
BEIS,Skills Funding Agency,11/08/2016,16-18 Apprenticeship Grant for Employers - Centralised Contract Management,Main Funding,COLLEGE OF NORTH WEST LONDON,AGEC_2263,"-1,500.00",Programme System File
BEIS,Skills Funding Agency,11/08/2016,16-18 Apprenticeship Grant for Employers - Centralised Contract Management,Main Funding,COLLEGE OF NORTH WEST LONDON,AGER_6386,"3,000.00",Programme System File
BEIS,Skills Funding Agency,11/08/2016,16-18 Apprenticeship Grant for Employers - Centralised Contract Management,Main Funding,COLLEGE OF NORTH WEST LONDON,AGER_7068,"1,500.00",Programme System File
BEIS,Skills Funding Agency,11/08/2016,16-18 Apprenticeship Grant for Employers - Centralised Contract Management,Main Funding,EALING HAMMERSMITH & WEST LONDON COLLEGE,AGEC_2206,"-1,500.00",Programme System File
BEIS,Skills Funding Agency,11/08/2016,16-18 Apprenticeship Grant for Employers - Centralised Contract Management,Main Funding,EALING HAMMERSMITH & WEST LONDON COLLEGE,AGEC_2635,"-4,500.00",Programme System File
BEIS,Skills Funding Agency,11/08/2016,16-18 Apprenticeship Grant for Employers - Centralised Contract Management,Main Funding,EALING HAMMERSMITH & WEST LONDON COLLEGE,AGER_6423,"1,500.00",Programme System File
BEIS,Skills Funding Agency,11/08/2016,16-18 Apprenticeship Grant for Employers - Centralised Contract Management,Main Funding,EALING HAMMERSMITH & WEST LONDON COLLEGE,AGER_7545,"4,500.00",Programme System File
BEIS,Skills Funding Agency,11/08/2016,16-18 Apprenticeship Grant for Employers - Centralised Contract Management,Main Funding,EDEN TRAINING SOLUTIONS LTD,AGEC_2223,"-1,500.00",Programme System File
BEIS,Skills Funding Agency,11/08/2016,16-18 Apprenticeship Grant for Employers - Centralised Contract Management,Main Funding,EDEN TRAINING SOLUTIONS LTD,AGER_6939,"1,500.00",Programme System File
BEIS,Skills Funding Agency,11/08/2016,16-18 Apprenticeship Grant for Employers - Centralised Contract Management,Main Funding,EPPING FOREST COLLEGE,AGEC_2295,"-1,500.00",Programme System File
BEIS,Skills Funding Agency,11/08/2016,16-18 Apprenticeship Grant for Employers - Centralised Contract Management,Main Funding,EPPING FOREST COLLEGE,AGER_7104,"1,500.00",Programme System File
BEIS,Skills Funding Agency,11/08/2016,16-18 Apprenticeship Grant for Employers - Centralised Contract Management,Main Funding,FNTC TRAINING & CONSULTANCY LTD,AGER_6439,"1,500.00",Programme System File
BEIS,Skills Funding Agency,11/08/2016,16-18 Apprenticeship Grant for Employers - Centralised Contract Management,Main Funding,FRANCESCO GROUP HOLDINGS LTD,AGEC_2305,"-4,500.00",Programme System File
BEIS,Skills Funding Agency,11/08/2016,16-18 Apprenticeship Grant for Employers - Centralised Contract Management,Main Funding,FRANCESCO GROUP HOLDINGS LTD,AGER_7117,"4,500.00",Programme System File
BEIS,Skills Funding Agency,11/08/2016,16-18 Apprenticeship Grant for Employers - Centralised Contract Management,Main Funding,FRANKLIN COLLEGE,AGER_6445,"-1,500.00",Programme System File
BEIS,Skills Funding Agency,11/08/2016,16-18 Apprenticeship Grant for Employers - Centralised Contract Management,Main Funding,GEN II ENGINEERING & TECHNOLOGY TRAINING LTD,AGEC_2311,"-6,000.00",Programme System File
BEIS,Skills Funding Agency,11/08/2016,16-18 Apprenticeship Grant for Employers - Centralised Contract Management,Main Funding,GEN II ENGINEERING & TECHNOLOGY TRAINING LTD,AGER_7122,"6,000.00",Programme System File
BEIS,Skills Funding Agency,11/08/2016,16-18 Apprenticeship Grant for Employers - Centralised Contract Management,Main Funding,HACKNEY COMMUNITY COLLEGE,AGEC_2317,"-13,500.00",Programme System File
BEIS,Skills Funding Agency,11/08/2016,16-18 Apprenticeship Grant for Employers - Centralised Contract Management,Main Funding,HACKNEY COMMUNITY COLLEGE,AGER_6459,"-1,500.00",Programme System File
BEIS,Skills Funding Agency,11/08/2016,16-18 Apprenticeship Grant for Employers - Centralised Contract Management,Main Funding,HACKNEY COMMUNITY COLLEGE,AGER_7129,"13,500.00",Programme System File
BEIS,Skills Funding Agency,11/08/2016,16-18 Apprenticeship Grant for Employers - Centralised Contract Management,Main Funding,HARTLEPOOL BOROUGH COUNCIL,AGEC_2636,"-3,000.00",Programme System File
BEIS,Skills Funding Agency,11/08/2016,16-18 Apprenticeship Grant for Employers - Centralised Contract Management,Main Funding,HARTLEPOOL BOROUGH COUNCIL,AGER_7547,"3,000.00",Programme System File
BEIS,Skills Funding Agency,11/08/2016,16-18 Apprenticeship Grant for Employers - Centralised Contract Management,Main Funding,HAVERING COLLEGE OF FURTHER & HIGHER EDUCATION,AGEC_2330,"-37,500.00",Programme System File
BEIS,Skills Funding Agency,11/08/2016,16-18 Apprenticeship Grant for Employers - Centralised Contract Management,Main Funding,HAVERING COLLEGE OF FURTHER & HIGHER EDUCATION,AGER_6470,"1,500.00",Programme System File
BEIS,Skills Funding Agency,11/08/2016,16-18 Apprenticeship Grant for Employers - Centralised Contract Management,Main Funding,HAVERING COLLEGE OF FURTHER & HIGHER EDUCATION,AGER_7146,"37,500.00",Programme System File
BEIS,Skills Funding Agency,11/08/2016,16-18 Apprenticeship Grant for Employers - Centralised Contract Management,Main Funding,HENLEY COLLEGE COVENTRY,AGER_7144,"1,500.00",Programme System File
BEIS,Skills Funding Agency,11/08/2016,16-18 Apprenticeship Grant for Employers - Centralised Contract Management,Main Funding,HILLINGDON TRAINING LTD,AGEC_2336,"-6,000.00",Programme System File
BEIS,Skills Funding Agency,11/08/2016,16-18 Apprenticeship Grant for Employers - Centralised Contract Management,Main Funding,HILLINGDON TRAINING LTD,AGER_7155,"6,000.00",Programme System File
BEIS,Skills Funding Agency,11/08/2016,16-18 Apprenticeship Grant for Employers - Centralised Contract Management,Main Funding,HUDSON & HUGHES TRAINING LTD,AGEC_2193,"-1,500.00",Programme System File
BEIS,Skills Funding Agency,11/08/2016,16-18 Apprenticeship Grant for Employers - Centralised Contract Management,Main Funding,HUDSON & HUGHES TRAINING LTD,AGEC_2637,"-1,500.00",Programme System File
BEIS,Skills Funding Agency,11/08/2016,16-18 Apprenticeship Grant for Employers - Centralised Contract Management,Main Funding,HUDSON & HUGHES TRAINING LTD,AGER_6348,"1,500.00",Programme System File
BEIS,Skills Funding Agency,11/08/2016,16-18 Apprenticeship Grant for Employers - Centralised Contract Management,Main Funding,HUDSON & HUGHES TRAINING LTD,AGER_7548,"1,500.00",Programme System File
BEIS,Skills Funding Agency,11/08/2016,16-18 Apprenticeship Grant for Employers - Centralised Contract Management,Main Funding,HUMBER LEARNING CONSORTIUM,AGEC_2349,"-9,000.00",Programme System File
BEIS,Skills Funding Agency,11/08/2016,16-18 Apprenticeship Grant for Employers - Centralised Contract Management,Main Funding,HUMBER LEARNING CONSORTIUM,AGER_7169,"9,000.00",Programme System File
BEIS,Skills Funding Agency,11/08/2016,16-18 Apprenticeship Grant for Employers - Centralised Contract Management,Main Funding,ICON VOCATIONAL TRAINING LTD,AGEC_2352,"-13,500.00",Programme System File
BEIS,Skills Funding Agency,11/08/2016,16-18 Apprenticeship Grant for Employers - Centralised Contract Management,Main Funding,ICON VOCATIONAL TRAINING LTD,AGER_7172,"13,500.00",Programme System File
BEIS,Skills Funding Agency,11/08/2016,16-18 Apprenticeship Grant for Employers - Centralised Contract Management,Main Funding,INSTITUTE OF SWIMMING LTD,AGER_2076,"3,000.00",Programme System File
BEIS,Skills Funding Agency,11/08/2016,16-18 Apprenticeship Grant for Employers - Centralised Contract Management,Main Funding,INSTITUTE OF SWIMMING LTD,AGER_4996,"6,000.00",Programme System File
BEIS,Skills Funding Agency,11/08/2016,16-18 Apprenticeship Grant for Employers - Centralised Contract Management,Main Funding,INSTITUTE OF SWIMMING LTD,AGER_6274,"1,500.00",Programme System File
BEIS,Skills Funding Agency,11/08/2016,16-18 Apprenticeship Grant for Employers - Centralised Contract Management,Main Funding,INSTITUTE OF SWIMMING LTD,AGER_7474,"1,500.00",Programme System File
BEIS,Skills Funding Agency,11/08/2016,16-18 Apprenticeship Grant for Employers - Centralised Contract Management,Main Funding,JOBWISE TRAINING LTD,AGEC_2354,"-4,500.00",Programme System File
BEIS,Skills Funding Agency,11/08/2016,16-18 Apprenticeship Grant for Employers - Centralised Contract Management,Main Funding,JOBWISE TRAINING LTD,AGER_7175,"4,500.00",Programme System File
BEIS,Skills Funding Agency,11/08/2016,16-18 Apprenticeship Grant for Employers - Centralised Contract Management,Main Funding,JOHN LEGGOTT SIXTH FORM COLLEGE,AGEC_2640,"-1,500.00",Programme System File
BEIS,Skills Funding Agency,11/08/2016,16-18 Apprenticeship Grant for Employers - Centralised Contract Management,Main Funding,JOHN LEGGOTT SIXTH FORM COLLEGE,AGER_7551,"1,500.00",Programme System File
BEIS,Skills Funding Agency,11/08/2016,16-18 Apprenticeship Grant for Employers - Centralised Contract Management,Main Funding,JOINT LEARNING PARTNERSHIP LTD,AGER_6530,"-1,500.00",Programme System File
BEIS,Skills Funding Agency,11/08/2016,16-18 Apprenticeship Grant for Employers - Centralised Contract Management,Main Funding,KINGSTON COLLEGE,AGEC_2360,"-24,000.00",Programme System File
BEIS,Skills Funding Agency,11/08/2016,16-18 Apprenticeship Grant for Employers - Centralised Contract Management,Main Funding,KINGSTON COLLEGE,AGER_7183,"24,000.00",Programme System File
BEIS,Skills Funding Agency,11/08/2016,16-18 Apprenticeship Grant for Employers - Centralised Contract Management,Main Funding,KINGSTON MAURWARD COLLEGE,AGEC_2361,"-16,500.00",Programme System File
BEIS,Skills Funding Agency,11/08/2016,16-18 Apprenticeship Grant for Employers - Centralised Contract Management,Main Funding,KINGSTON MAURWARD COLLEGE,AGER_7185,"16,500.00",Programme System File
BEIS,Skills Funding Agency,11/08/2016,16-18 Apprenticeship Grant for Employers - Centralised Contract Management,Main Funding,LAWN TENNIS ASSOCIATION LTD,AGEC_2606,"-1,500.00",Programme System File
BEIS,Skills Funding Agency,11/08/2016,16-18 Apprenticeship Grant for Employers - Centralised Contract Management,Main Funding,LAWN TENNIS ASSOCIATION LTD,AGER_7500,"1,500.00",Programme System File
BEIS,Skills Funding Agency,11/08/2016,16-18 Apprenticeship Grant for Employers - Centralised Contract Management,Main Funding,LEARNING CURVE JAA LIMITED,AGER_6858,"3,000.00",Programme System File
BEIS,Skills Funding Agency,11/08/2016,16-18 Apprenticeship Grant for Employers - Centralised Contract Management,Main Funding,LEARNING CURVE JAA LIMITED,AGER_7463,"1,500.00",Programme System File
BEIS,Skills Funding Agency,11/08/2016,16-18 Apprenticeship Grant for Employers - Centralised Contract Management,Main Funding,LIGA (UK) LTD,AGEC_2627,"-27,000.00",Programme System File
BEIS,Skills Funding Agency,11/08/2016,16-18 Apprenticeship Grant for Employers - Centralised Contract Management,Main Funding,LIGA (UK) LTD,AGER_6959,"9,000.00",Programme System File
BEIS,Skills Funding Agency,11/08/2016,16-18 Apprenticeship Grant for Employers - Centralised Contract Management,Main Funding,LIGA (UK) LTD,AGER_7534,"27,000.00",Programme System File
BEIS,Skills Funding Agency,11/08/2016,16-18 Apprenticeship Grant for Employers - Centralised Contract Management,Main Funding,LONDON BOROUGH OF WALTHAM FOREST,AGEC_2639,"-3,000.00",Programme System File
BEIS,Skills Funding Agency,11/08/2016,16-18 Apprenticeship Grant for Employers - Centralised Contract Management,Main Funding,LONDON BOROUGH OF WALTHAM FOREST,AGER_7550,"3,000.00",Programme System File
BEIS,Skills Funding Agency,11/08/2016,16-18 Apprenticeship Grant for Employers - Centralised Contract Management,Main Funding,LONDON COLLEGE OF BEAUTY THERAPY LTD,AGEC_2384,"-3,000.00",Programme System File
BEIS,Skills Funding Agency,11/08/2016,16-18 Apprenticeship Grant for Employers - Centralised Contract Management,Main Funding,LONDON COLLEGE OF BEAUTY THERAPY LTD,AGER_7219,"3,000.00",Programme System File
BEIS,Skills Funding Agency,11/08/2016,16-18 Apprenticeship Grant for Employers - Centralised Contract Management,Main Funding,MANCHESTER COLLEGE,AGER_6916,"3,000.00",Programme System File
BEIS,Skills Funding Agency,11/08/2016,16-18 Apprenticeship Grant for Employers - Centralised Contract Management,Main Funding,MI COMPUTSOLUTIONS INCORPORATED,AGEC_2595,"-1,500.00",Programme System File
BEIS,Skills Funding Agency,11/08/2016,16-18 Apprenticeship Grant for Employers - Centralised Contract Management,Main Funding,MI COMPUTSOLUTIONS INCORPORATED,AGER_7483,"1,500.00",Programme System File
BEIS,Skills Funding Agency,11/08/2016,16-18 Apprenticeship Grant for Employers - Centralised Contract Management,Main Funding,MIDDLESBROUGH COUNCIL,AGER_7225,"-1,500.00",Programme System File
BEIS,Skills Funding Agency,11/08/2016,16-18 Apprenticeship Grant for Employers - Centralised Contract Management,Main Funding,MIDLAND GROUP TRAINING SERVICES LTD,AGEC_2392,"-3,000.00",Programme System File
BEIS,Skills Funding Agency,11/08/2016,16-18 Apprenticeship Grant for Employers - Centralised Contract Management,Main Funding,MIDLAND GROUP TRAINING SERVICES LTD,AGER_7229,"3,000.00",Programme System File
BEIS,Skills Funding Agency,11/08/2016,16-18 Apprenticeship Grant for Employers - Centralised Contract Management,Main Funding,NATIONAL BUSINESS COLLEGE LIMITED,AGER_6000,"-1,500.00",Programme System File
BEIS,Skills Funding Agency,11/08/2016,16-18 Apprenticeship Grant for Employers - Centralised Contract Management,Main Funding,NELSON & COLNE COLLEGE,AGEC_2397,"-9,000.00",Programme System File
BEIS,Skills Funding Agency,11/08/2016,16-18 Apprenticeship Grant for Employers - Centralised Contract Management,Main Funding,NELSON & COLNE COLLEGE,AGER_7239,"9,000.00",Programme System File
BEIS,Skills Funding Agency,11/08/2016,16-18 Apprenticeship Grant for Employers - Centralised Contract Management,Main Funding,NLT TRAINING SERVICES LTD,AGER_6602,"3,000.00",Programme System File
BEIS,Skills Funding Agency,11/08/2016,16-18 Apprenticeship Grant for Employers - Centralised Contract Management,Main Funding,NORTH HERTFORDSHIRE COLLEGE,AGER_6608,"6,000.00",Programme System File
BEIS,Skills Funding Agency,11/08/2016,16-18 Apprenticeship Grant for Employers - Centralised Contract Management,Main Funding,NORTH LIVERPOOL REGENERATION COMPANY LTD,AGEC_2653,"-1,500.00",Programme System File
BEIS,Skills Funding Agency,11/08/2016,16-18 Apprenticeship Grant for Employers - Centralised Contract Management,Main Funding,NORTH LIVERPOOL REGENERATION COMPANY LTD,AGER_7568,"1,500.00",Programme System File
BEIS,Skills Funding Agency,11/08/2016,16-18 Apprenticeship Grant for Employers - Centralised Contract Management,Main Funding,NORTHUMBERLAND COUNTY COUNCIL,AGEC_2420,"-10,500.00",Programme System File
BEIS,Skills Funding Agency,11/08/2016,16-18 Apprenticeship Grant for Employers - Centralised Contract Management,Main Funding,NORTHUMBERLAND COUNTY COUNCIL,AGER_7268,"10,500.00",Programme System File
BEIS,Skills Funding Agency,11/08/2016,16-18 Apprenticeship Grant for Employers - Centralised Contract Management,Main Funding,OUTSOURCE VOCATIONAL LEARNING LTD,AGEC_2603,"-13,500.00",Programme System File
BEIS,Skills Funding Agency,11/08/2016,16-18 Apprenticeship Grant for Employers - Centralised Contract Management,Main Funding,OUTSOURCE VOCATIONAL LEARNING LTD,AGER_6912,"-1,500.00",Programme System File
BEIS,Skills Funding Agency,11/08/2016,16-18 Apprenticeship Grant for Employers - Centralised Contract Management,Main Funding,OUTSOURCE VOCATIONAL LEARNING LTD,AGER_7496,"13,500.00",Programme System File
BEIS,Skills Funding Agency,11/08/2016,16-18 Apprenticeship Grant for Employers - Centralised Contract Management,Main Funding,PARTNERSHIP DEVELOPMENT SOLUTIONS LTD,AGEC_2655,"-1,500.00",Programme System File
BEIS,Skills Funding Agency,11/08/2016,16-18 Apprenticeship Grant for Employers - Centralised Contract Management,Main Funding,PARTNERSHIP DEVELOPMENT SOLUTIONS LTD,AGER_7571,"1,500.00",Programme System File
BEIS,Skills Funding Agency,11/08/2016,16-18 Apprenticeship Grant for Employers - Centralised Contract Management,Main Funding,PERA TRAINING LTD,AGEC_2625,"-1,500.00",Programme System File
BEIS,Skills Funding Agency,11/08/2016,16-18 Apprenticeship Grant for Employers - Centralised Contract Management,Main Funding,PERA TRAINING LTD,AGER_7531,"1,500.00",Programme System File
BEIS,Skills Funding Agency,11/08/2016,16-18 Apprenticeship Grant for Employers - Centralised Contract Management,Main Funding,RELEASE POTENTIAL LIMITED,AGEC_2221,"-1,500.00",Programme System File
BEIS,Skills Funding Agency,11/08/2016,16-18 Apprenticeship Grant for Employers - Centralised Contract Management,Main Funding,RELEASE POTENTIAL LIMITED,AGER_6937,"1,500.00",Programme System File
BEIS,Skills Funding Agency,11/08/2016,16-18 Apprenticeship Grant for Employers - Centralised Contract Management,Main Funding,ROCHDALE TRAINING ASSOCIATION LTD,AGEC_2443,"-9,000.00",Programme System File
BEIS,Skills Funding Agency,11/08/2016,16-18 Apprenticeship Grant for Employers - Centralised Contract Management,Main Funding,ROCHDALE TRAINING ASSOCIATION LTD,AGER_7300,"9,000.00",Programme System File
BEIS,Skills Funding Agency,11/08/2016,16-18 Apprenticeship Grant for Employers - Centralised Contract Management,Main Funding,SANDWELL TRAINING ASSOCIATION LTD,AGEC_2444,"-10,500.00",Programme System File
BEIS,Skills Funding Agency,11/08/2016,16-18 Apprenticeship Grant for Employers - Centralised Contract Management,Main Funding,SANDWELL TRAINING ASSOCIATION LTD,AGER_7302,"10,500.00",Programme System File
BEIS,Skills Funding Agency,11/08/2016,16-18 Apprenticeship Grant for Employers - Centralised Contract Management,Main Funding,SEETEC BUSINESS TECHNOLOGY CENTRE LTD,AGEC_2446,"-1,500.00",Programme System File
BEIS,Skills Funding Agency,11/08/2016,16-18 Apprenticeship Grant for Employers - Centralised Contract Management,Main Funding,SEETEC BUSINESS TECHNOLOGY CENTRE LTD,AGER_7305,"1,500.00",Programme System File
BEIS,Skills Funding Agency,11/08/2016,16-18 Apprenticeship Grant for Employers - Centralised Contract Management,Main Funding,TDR TRAINING LTD,AGEC_2499,"-1,500.00",Programme System File
BEIS,Skills Funding Agency,11/08/2016,16-18 Apprenticeship Grant for Employers - Centralised Contract Management,Main Funding,TDR TRAINING LTD,AGER_7366,"1,500.00",Programme System File
BEIS,Skills Funding Agency,11/08/2016,16-18 Apprenticeship Grant for Employers - Centralised Contract Management,Main Funding,TRAINING STRATEGIES LTD,AGEC_2224,"-6,000.00",Programme System File
BEIS,Skills Funding Agency,11/08/2016,16-18 Apprenticeship Grant for Employers - Centralised Contract Management,Main Funding,TRAINING STRATEGIES LTD,AGER_6940,"6,000.00",Programme System File
BEIS,Skills Funding Agency,11/08/2016,16-18 Apprenticeship Grant for Employers - Centralised Contract Management,Main Funding,UNIVERSITY OF SHEFFIELD,AGEC_1789,"-1,500.00",Programme System File
BEIS,Skills Funding Agency,11/08/2016,16-18 Apprenticeship Grant for Employers - Centralised Contract Management,Main Funding,UNIVERSITY OF SHEFFIELD,AGEC_2652,"-1,500.00",Programme System File
BEIS,Skills Funding Agency,11/08/2016,16-18 Apprenticeship Grant for Employers - Centralised Contract Management,Main Funding,UNIVERSITY OF SHEFFIELD,AGER_5772,"1,500.00",Programme System File
BEIS,Skills Funding Agency,11/08/2016,16-18 Apprenticeship Grant for Employers - Centralised Contract Management,Main Funding,UNIVERSITY OF SHEFFIELD,AGER_7567,"1,500.00",Programme System File
BEIS,Skills Funding Agency,11/08/2016,16-18 Apprenticeship Grant for Employers - Centralised Contract Management,Main Funding,VOCATIONAL COLLEGE LTD,AGER_6777,"1,500.00",Programme System File
BEIS,Skills Funding Agency,11/08/2016,16-18 Apprenticeship Grant for Employers - Centralised Contract Management,Main Funding,WAKEFIELD CITY COUNCIL,AGEC_2638,"-3,000.00",Programme System File
BEIS,Skills Funding Agency,11/08/2016,16-18 Apprenticeship Grant for Employers - Centralised Contract Management,Main Funding,WAKEFIELD CITY COUNCIL,AGER_7549,"3,000.00",Programme System File
BEIS,Skills Funding Agency,11/08/2016,16-18 Apprenticeship Grant for Employers - Centralised Contract Management,Main Funding,WEYMOUTH COLLEGE,AGEC_2540,"-34,500.00",Programme System File
BEIS,Skills Funding Agency,11/08/2016,16-18 Apprenticeship Grant for Employers - Centralised Contract Management,Main Funding,WEYMOUTH COLLEGE,AGER_7414,"34,500.00",Programme System File
BEIS,Skills Funding Agency,11/08/2016,16-18 Apprenticeship Grant for Employers - Centralised Contract Management,Main Funding,WIGAN METRO BOROUGH COUNCIL,AGEC_2547,"-4,500.00",Programme System File
BEIS,Skills Funding Agency,11/08/2016,16-18 Apprenticeship Grant for Employers - Centralised Contract Management,Main Funding,WIGAN METRO BOROUGH COUNCIL,AGER_7423,"4,500.00",Programme System File
BEIS,Skills Funding Agency,11/08/2016,16-18 Apprenticeship Grant for Employers - Centralised Contract Management,Main Funding,YMCA TRAINING,AGEC_2534,"-3,000.00",Programme System File
BEIS,Skills Funding Agency,11/08/2016,16-18 Apprenticeship Grant for Employers - Centralised Contract Management,Main Funding,YMCA TRAINING,AGER_7408,"3,000.00",Programme System File
BEIS,Skills Funding Agency,11/08/2016,16-18 Apprenticeship Grant for Employers - Centralised Contract Management,Main Funding,YORK COLLEGE,AGEC_2559,"-1,500.00",Programme System File
BEIS,Skills Funding Agency,11/08/2016,16-18 Apprenticeship Grant for Employers - Centralised Contract Management,Main Funding,YORK COLLEGE,AGER_7438,"1,500.00",Programme System File
BEIS,Skills Funding Agency,11/08/2016,16-18 Apprenticeship Grant for Employers,Main Funding,BARNARDOS,NUPS16_3172,"-4,500.00",Programme Template
BEIS,Skills Funding Agency,11/08/2016,16-18 Apprenticeship Grant for Employers,Main Funding,BARNARDOS,NUPS16_998,"4,500.00",Programme Template
BEIS,Skills Funding Agency,11/08/2016,16-18 Apprenticeship Grant for Employers,Main Funding,BRISTOL CITY COUNCIL,NUPS16_5337,"-1,500.00",Programme Template
BEIS,Skills Funding Agency,11/08/2016,16-18 Apprenticeship Grant for Employers,Main Funding,INSTITUTE OF SWIMMING LTD,NUPS15_19109,"-1,500.00",Programme Template
BEIS,Skills Funding Agency,11/08/2016,16-18 Apprenticeship Grant for Employers,Main Funding,MANCHESTER COLLEGE,NUPS16_5313,"-4,500.00",Programme Template
BEIS,Skills Funding Agency,11/08/2016,16-18 Apprenticeship Grant for Employers,Main Funding,NATIONAL BUSINESS COLLEGE LIMITED,NUPS16_5266,"1,500.00",Programme Template
BEIS,Skills Funding Agency,11/08/2016,16-18 Apprenticeship Grant for Employers,Main Funding,NLT TRAINING SERVICES LTD,NUPS16_5269,"-3,000.00",Programme Template
BEIS,Skills Funding Agency,11/08/2016,16-18 Apprenticeship Grant for Employers,Main Funding,YMCA TRAINING,NUPS16_5267,"-1,500.00",Programme Template
BEIS,Skills Funding Agency,11/08/2016,16-18 Apprenticeships - Centralised Contract Management,Main Funding,5 E LTD,AP16C_3500,"-2,521.95",Programme System File
BEIS,Skills Funding Agency,11/08/2016,16-18 Apprenticeships - Centralised Contract Management,Main Funding,5 E LTD,AP16R_14562,"8,577.03",Programme System File
BEIS,Skills Funding Agency,11/08/2016,16-18 Apprenticeships - Centralised Contract Management,Main Funding,ABINGDON & WITNEY COLLEGE,AP16R_13361,"46,256.84",Programme System File
BEIS,Skills Funding Agency,11/08/2016,16-18 Apprenticeships - Centralised Contract Management,Main Funding,ACACIA TRAINING & DEVELOPMENT LTD,AP16R_14557,"42,760.27",Programme System File
BEIS,Skills Funding Agency,11/08/2016,16-18 Apprenticeships - Centralised Contract Management,Main Funding,ACACIA TRAINING LTD,AP16C_3498,"-11,272.81",Programme System File
BEIS,Skills Funding Agency,11/08/2016,16-18 Apprenticeships - Centralised Contract Management,Main Funding,ACACIA TRAINING LTD,AP16R_14560,"24,588.23",Programme System File
BEIS,Skills Funding Agency,11/08/2016,16-18 Apprenticeships - Centralised Contract Management,Main Funding,ACADEMIES ENTERPRISE,AP16C_3212,"-1,050.94",Programme System File
BEIS,Skills Funding Agency,11/08/2016,16-18 Apprenticeships - Centralised Contract Management,Main Funding,ACADEMIES ENTERPRISE,AP16R_13968,"2,548.02",Programme System File
BEIS,Skills Funding Agency,11/08/2016,16-18 Apprenticeships - Centralised Contract Management,Main Funding,ACADEMY HAIR & BEAUTY LTD,AP16R_13643,"11,574.15",Programme System File
BEIS,Skills Funding Agency,11/08/2016,16-18 Apprenticeships - Centralised Contract Management,Main Funding,ACADEMY TRANSFORMATION TRUST,AP16C_3221,"-7,049.52",Programme System File
BEIS,Skills Funding Agency,11/08/2016,16-18 Apprenticeships - Centralised Contract Management,Main Funding,ACADEMY TRANSFORMATION TRUST,AP16R_14004,"10,474.72",Programme System File
BEIS,Skills Funding Agency,11/08/2016,16-18 Apprenticeships - Centralised Contract Management,Main Funding,ACCESS TRAINING EAST MIDLANDS LTD,AP16R_13738,"54,511.43",Programme System File
BEIS,Skills Funding Agency,11/08/2016,16-18 Apprenticeships - Centralised Contract Management,Main Funding,ACCESS TRAINING LTD,AP16R_13720,"62,164.11",Programme System File
BEIS,Skills Funding Agency,11/08/2016,16-18 Apprenticeships - Centralised Contract Management,Main Funding,ACCRINGTON & ROSSENDALE COLLEGE,AP16R_14161,"68,302.02",Programme System File
BEIS,Skills Funding Agency,11/08/2016,16-18 Apprenticeships - Centralised Contract Management,Main Funding,ACHIEVEMENT TRAINING LIMITED,AP16R_14565,"38,443.09",Programme System File
BEIS,Skills Funding Agency,11/08/2016,16-18 Apprenticeships - Centralised Contract Management,Main Funding,ALDER TRAINING LTD,AP16R_14575,"45,562.04",Programme System File
BEIS,Skills Funding Agency,11/08/2016,16-18 Apprenticeships - Centralised Contract Management,Main Funding,ALL TRADES TRAINING LIMITED,AP16R_13912,375.58,Programme System File
BEIS,Skills Funding Agency,11/08/2016,16-18 Apprenticeships - Centralised Contract Management,Main Funding,ALLIANCE LEARNING LTD,AP16R_14586,"81,515.23",Programme System File
BEIS,Skills Funding Agency,11/08/2016,16-18 Apprenticeships - Centralised Contract Management,Main Funding,AMERSHAM & WYCOMBE COLLEGE,AP16C_3511,"-74,717.25",Programme System File
BEIS,Skills Funding Agency,11/08/2016,16-18 Apprenticeships - Centralised Contract Management,Main Funding,AMERSHAM & WYCOMBE COLLEGE,AP16R_13362,"85,712.15",Programme System File
BEIS,Skills Funding Agency,11/08/2016,16-18 Apprenticeships - Centralised Contract Management,Main Funding,ANDERSON STOCKLEY ACCREDITED TRAINING LTD,AP16R_13879,"21,023.27",Programme System File
BEIS,Skills Funding Agency,11/08/2016,16-18 Apprenticeships - Centralised Contract Management,Main Funding,ANDREW COLLINGE TRAINING LTD,AP16R_14573,"80,985.04",Programme System File
BEIS,Skills Funding Agency,11/08/2016,16-18 Apprenticeships - Centralised Contract Management,Main Funding,ANNE CLARKE ASSOCIATES LTD,AP16R_13835,"5,710.50",Programme System File
BEIS,Skills Funding Agency,11/08/2016,16-18 Apprenticeships - Centralised Contract Management,Main Funding,APPRENTICE FUNDING ASSISTANT LTD,AP16R_13921,"82,004.52",Programme System File
BEIS,Skills Funding Agency,11/08/2016,16-18 Apprenticeships - Centralised Contract Management,Main Funding,APPRENTICE SCHOOL CHARITABLE TRUST,AP16C_3520,"-31,532.52",Programme System File
BEIS,Skills Funding Agency,11/08/2016,16-18 Apprenticeships - Centralised Contract Management,Main Funding,APPRENTICE SCHOOL CHARITABLE TRUST,AP16R_14624,"61,842.58",Programme System File
BEIS,Skills Funding Agency,11/08/2016,16-18 Apprenticeships - Centralised Contract Management,Main Funding,APPRENTICESHIPS & TRAINING SERVICES CONSORTIUM LIMITED,AP16R_13955,"142,442.20",Programme System File
BEIS,Skills Funding Agency,11/08/2016,16-18 Apprenticeships - Centralised Contract Management,Main Funding,APPRIS CHARITY LIMITED,AP16C_3521,"-4,401.29",Programme System File
BEIS,Skills Funding Agency,11/08/2016,16-18 Apprenticeships - Centralised Contract Management,Main Funding,APPRIS CHARITY LIMITED,AP16R_14628,"87,954.29",Programme System File
BEIS,Skills Funding Agency,11/08/2016,16-18 Apprenticeships - Centralised Contract Management,Main Funding,ASHTON UNDER LYNE SIXTH FORM COLLEGE,AP16R_14082,85.49,Programme System File
BEIS,Skills Funding Agency,11/08/2016,16-18 Apprenticeships - Centralised Contract Management,Main Funding,ASKHAM BRYAN COLLEGE,AP16C_3100,"-97,996.61",Programme System File
BEIS,Skills Funding Agency,11/08/2016,16-18 Apprenticeships - Centralised Contract Management,Main Funding,ASKHAM BRYAN COLLEGE,AP16R_13707,"100,708.97",Programme System File
BEIS,Skills Funding Agency,11/08/2016,16-18 Apprenticeships - Centralised Contract Management,Main Funding,ASPIRATION TRAINING LTD,AP16R_14580,"61,533.75",Programme System File
BEIS,Skills Funding Agency,11/08/2016,16-18 Apprenticeships - Centralised Contract Management,Main Funding,ASPIRE ACHIEVE ADVANCE LIMITED,AP16R_13943,"1,831,510.47",Programme System File
BEIS,Skills Funding Agency,11/08/2016,16-18 Apprenticeships - Centralised Contract Management,Main Funding,ASPIRE TRAINING TEAM,AP16C_3118,"-1,164.48",Programme System File
BEIS,Skills Funding Agency,11/08/2016,16-18 Apprenticeships - Centralised Contract Management,Main Funding,ASPIRE TRAINING TEAM,AP16R_13668,"34,001.91",Programme System File
BEIS,Skills Funding Agency,11/08/2016,16-18 Apprenticeships - Centralised Contract Management,Main Funding,ASSET TRAINING & CONSULTANCY LTD,AP16R_14582,"45,861.17",Programme System File
BEIS,Skills Funding Agency,11/08/2016,16-18 Apprenticeships - Centralised Contract Management,Main Funding,ASTUTE MINDS LTD,AP16R_13815,"109,281.00",Programme System File
BEIS,Skills Funding Agency,11/08/2016,16-18 Apprenticeships - Centralised Contract Management,Main Funding,AURELIA TRAINING LTD,AP16R_14593,"6,593.91",Programme System File
BEIS,Skills Funding Agency,11/08/2016,16-18 Apprenticeships - Centralised Contract Management,Main Funding,AVANT PARTNERSHIP LTD,AP16R_13851,"42,777.24",Programme System File
BEIS,Skills Funding Agency,11/08/2016,16-18 Apprenticeships - Centralised Contract Management,Main Funding,AVANTA ENTERPRISE LTD,AP16C_3218,-43.96,Programme System File
BEIS,Skills Funding Agency,11/08/2016,16-18 Apprenticeships - Centralised Contract Management,Main Funding,AVANTA ENTERPRISE LTD,AP16R_13998,"81,837.85",Programme System File
BEIS,Skills Funding Agency,11/08/2016,16-18 Apprenticeships - Centralised Contract Management,Main Funding,AXIA SOLUTIONS LTD,AP16R_14598,"44,029.34",Programme System File
BEIS,Skills Funding Agency,11/08/2016,16-18 Apprenticeships - Centralised Contract Management,Main Funding,AYLESBURY COLLEGE,AP16C_3254,"-5,861.41",Programme System File
BEIS,Skills Funding Agency,11/08/2016,16-18 Apprenticeships - Centralised Contract Management,Main Funding,AYLESBURY COLLEGE,AP16R_14102,"100,747.23",Programme System File
BEIS,Skills Funding Agency,11/08/2016,16-18 Apprenticeships - Centralised Contract Management,Main Funding,B SKILL LTD,AP16C_3514,"-11,485.18",Programme System File
BEIS,Skills Funding Agency,11/08/2016,16-18 Apprenticeships - Centralised Contract Management,Main Funding,B SKILL LTD,AP16R_14612,"61,548.20",Programme System File
BEIS,Skills Funding Agency,11/08/2016,16-18 Apprenticeships - Centralised Contract Management,Main Funding,BABCOCK SKILLS DEVELOPMENT & TRAINING LTD,AP16C_3217,"-18,286.46",Programme System File
BEIS,Skills Funding Agency,11/08/2016,16-18 Apprenticeships - Centralised Contract Management,Main Funding,BABCOCK SKILLS DEVELOPMENT & TRAINING LTD,AP16R_13997,"111,246.89",Programme System File
BEIS,Skills Funding Agency,11/08/2016,16-18 Apprenticeships - Centralised Contract Management,Main Funding,BABCOCK TRAINING LTD,AP16R_13392,"680,741.28",Programme System File
BEIS,Skills Funding Agency,11/08/2016,16-18 Apprenticeships - Centralised Contract Management,Main Funding,BABINGTON BUSINESS COLLEGE LTD,AP16R_14594,"306,489.11",Programme System File
BEIS,Skills Funding Agency,11/08/2016,16-18 Apprenticeships - Centralised Contract Management,Main Funding,BALTIC TRAINING SERVICES LTD,AP16R_13792,"455,371.75",Programme System File
BEIS,Skills Funding Agency,11/08/2016,16-18 Apprenticeships - Centralised Contract Management,Main Funding,BARCHESTER HEALTHCARE LTD,AP16R_14606,"9,220.71",Programme System File
BEIS,Skills Funding Agency,11/08/2016,16-18 Apprenticeships - Centralised Contract Management,Main Funding,BARKING & DAGENHAM COLLEGE,AP16R_14131,"133,211.74",Programme System File
BEIS,Skills Funding Agency,11/08/2016,16-18 Apprenticeships - Centralised Contract Management,Main Funding,BARKING & DAGENHAM LONDON BOROUGH COUNCIL,AP16C_3362,-601.5,Programme System File
BEIS,Skills Funding Agency,11/08/2016,16-18 Apprenticeships - Centralised Contract Management,Main Funding,BARKING & DAGENHAM LONDON BOROUGH COUNCIL,AP16R_14385,"2,415.86",Programme System File
BEIS,Skills Funding Agency,11/08/2016,16-18 Apprenticeships - Centralised Contract Management,Main Funding,BARNARDOS,AP16R_10636,"15,351.08",Programme System File
BEIS,Skills Funding Agency,11/08/2016,16-18 Apprenticeships - Centralised Contract Management,Main Funding,BARNARDOS,AP16R_11577,"14,600.46",Programme System File
BEIS,Skills Funding Agency,11/08/2016,16-18 Apprenticeships - Centralised Contract Management,Main Funding,BARNARDOS,AP16R_13257,"6,824.27",Programme System File
BEIS,Skills Funding Agency,11/08/2016,16-18 Apprenticeships - Centralised Contract Management,Main Funding,BARNARDOS,AP16R_14611,"9,403.78",Programme System File
BEIS,Skills Funding Agency,11/08/2016,16-18 Apprenticeships - Centralised Contract Management,Main Funding,BARNET AND SOUTHGATE COLLEGE,AP16R_14090,"56,835.04",Programme System File
BEIS,Skills Funding Agency,11/08/2016,16-18 Apprenticeships - Centralised Contract Management,Main Funding,BARNFIELD COLLEGE,AP16R_14123,"42,498.86",Programme System File
BEIS,Skills Funding Agency,11/08/2016,16-18 Apprenticeships - Centralised Contract Management,Main Funding,BARNSLEY COLLEGE,AP16R_14146,"247,101.91",Programme System File
BEIS,Skills Funding Agency,11/08/2016,16-18 Apprenticeships - Centralised Contract Management,Main Funding,BASINGSTOKE COLLEGE,AP16R_14176,"92,041.99",Programme System File
BEIS,Skills Funding Agency,11/08/2016,16-18 Apprenticeships - Centralised Contract Management,Main Funding,BASINGSTOKE YOUTH ACTION TRUST LTD,AP16R_14613,"11,182.24",Programme System File
BEIS,Skills Funding Agency,11/08/2016,16-18 Apprenticeships - Centralised Contract Management,Main Funding,BC ARCH LTD T/A ARCH APPRENTICES,AP16R_14031,"231,499.39",Programme System File
BEIS,Skills Funding Agency,11/08/2016,16-18 Apprenticeships - Centralised Contract Management,Main Funding,BCTG LIMITED,AP16C_3106,"-17,052.42",Programme System File
BEIS,Skills Funding Agency,11/08/2016,16-18 Apprenticeships - Centralised Contract Management,Main Funding,BCTG LIMITED,AP16R_13646,"242,573.21",Programme System File
BEIS,Skills Funding Agency,11/08/2016,16-18 Apprenticeships - Centralised Contract Management,Main Funding,BE TOTALLY YOU,AP16C_3159,"-26,672.84",Programme System File
BEIS,Skills Funding Agency,11/08/2016,16-18 Apprenticeships - Centralised Contract Management,Main Funding,BE TOTALLY YOU,AP16R_13802,"44,833.19",Programme System File
BEIS,Skills Funding Agency,11/08/2016,16-18 Apprenticeships - Centralised Contract Management,Main Funding,BE WISER INSURANCE SERVICES LIMITED,AP16R_14024,"8,795.94",Programme System File
BEIS,Skills Funding Agency,11/08/2016,16-18 Apprenticeships - Centralised Contract Management,Main Funding,BEDFORD COLLEGE,AP16R_14191,"256,738.38",Programme System File
BEIS,Skills Funding Agency,11/08/2016,16-18 Apprenticeships - Centralised Contract Management,Main Funding,BERKSHIRE COLLEGE OF AGRICULTURE,AP16R_14162,"9,011.46",Programme System File
BEIS,Skills Funding Agency,11/08/2016,16-18 Apprenticeships - Centralised Contract Management,Main Funding,BESTLAND SOLUTIONS LTD,AP16R_13798,"54,263.73",Programme System File
BEIS,Skills Funding Agency,11/08/2016,16-18 Apprenticeships - Centralised Contract Management,Main Funding,BEXHILL COLLEGE,AP16R_14183,"4,154.93",Programme System File
BEIS,Skills Funding Agency,11/08/2016,16-18 Apprenticeships - Centralised Contract Management,Main Funding,BEXLEY COLLEGE,AP16C_3308,"-5,983.75",Programme System File
BEIS,Skills Funding Agency,11/08/2016,16-18 Apprenticeships - Centralised Contract Management,Main Funding,BEXLEY COLLEGE,AP16R_14205,"62,620.72",Programme System File
BEIS,Skills Funding Agency,11/08/2016,16-18 Apprenticeships - Centralised Contract Management,Main Funding,BEXLEY LONDON BOROUGH COUNCIL,AP16C_3238,"-4,691.43",Programme System File
BEIS,Skills Funding Agency,11/08/2016,16-18 Apprenticeships - Centralised Contract Management,Main Funding,BEXLEY LONDON BOROUGH COUNCIL,AP16R_14069,"5,586.47",Programme System File
BEIS,Skills Funding Agency,11/08/2016,16-18 Apprenticeships - Centralised Contract Management,Main Funding,BEXLEY YOUTH TRAINING GROUP,AP16R_14615,"72,330.96",Programme System File
BEIS,Skills Funding Agency,11/08/2016,16-18 Apprenticeships - Centralised Contract Management,Main Funding,BIRMINGHAM ELECTRICAL TRAINING LTD,AP16C_3516,-203.11,Programme System File
BEIS,Skills Funding Agency,11/08/2016,16-18 Apprenticeships - Centralised Contract Management,Main Funding,BIRMINGHAM ELECTRICAL TRAINING LTD,AP16R_14619,"35,545.85",Programme System File
BEIS,Skills Funding Agency,11/08/2016,16-18 Apprenticeships - Centralised Contract Management,Main Funding,BIRMINGHAM METROPOLITAN COLLEGE,AP16C_3413,"-77,935.35",Programme System File
BEIS,Skills Funding Agency,11/08/2016,16-18 Apprenticeships - Centralised Contract Management,Main Funding,BIRMINGHAM METROPOLITAN COLLEGE,AP16R_14408,"261,456.79",Programme System File
BEIS,Skills Funding Agency,11/08/2016,16-18 Apprenticeships - Centralised Contract Management,Main Funding,BISHOP AUCKLAND COLLEGE,AP16C_3338,"-2,749.35",Programme System File
BEIS,Skills Funding Agency,11/08/2016,16-18 Apprenticeships - Centralised Contract Management,Main Funding,BISHOP AUCKLAND COLLEGE,AP16R_14262,"49,322.24",Programme System File
BEIS,Skills Funding Agency,11/08/2016,16-18 Apprenticeships - Centralised Contract Management,Main Funding,BISHOP BURTON COLLEGE,AP16C_3351,"-8,904.32",Programme System File
BEIS,Skills Funding Agency,11/08/2016,16-18 Apprenticeships - Centralised Contract Management,Main Funding,BISHOP BURTON COLLEGE,AP16R_14296,"64,452.03",Programme System File
BEIS,Skills Funding Agency,11/08/2016,16-18 Apprenticeships - Centralised Contract Management,Main Funding,BL TRAINING LTD,AP16R_14607,"102,490.38",Programme System File
BEIS,Skills Funding Agency,11/08/2016,16-18 Apprenticeships - Centralised Contract Management,Main Funding,BLACKBURN COLLEGE,AP16R_14351,"86,963.72",Programme System File
BEIS,Skills Funding Agency,11/08/2016,16-18 Apprenticeships - Centralised Contract Management,Main Funding,BLACKPOOL & FLYDE COLLEGE,AP16R_14366,"123,103.52",Programme System File
BEIS,Skills Funding Agency,11/08/2016,16-18 Apprenticeships - Centralised Contract Management,Main Funding,BLUE ARROW LTD,AP16R_14075,369.64,Programme System File
BEIS,Skills Funding Agency,11/08/2016,16-18 Apprenticeships - Centralised Contract Management,Main Funding,BOLTON COMMUNITY COLLEGE,AP16C_3323,"-11,542.33",Programme System File
BEIS,Skills Funding Agency,11/08/2016,16-18 Apprenticeships - Centralised Contract Management,Main Funding,BOLTON COMMUNITY COLLEGE,AP16R_14235,"122,109.24",Programme System File
BEIS,Skills Funding Agency,11/08/2016,16-18 Apprenticeships - Centralised Contract Management,Main Funding,BOROUGH OF POOLE,AP16C_3364,"-1,948.97",Programme System File
BEIS,Skills Funding Agency,11/08/2016,16-18 Apprenticeships - Centralised Contract Management,Main Funding,BOROUGH OF POOLE,AP16R_14314,"4,524.11",Programme System File
BEIS,Skills Funding Agency,11/08/2016,16-18 Apprenticeships - Centralised Contract Management,Main Funding,BOSCH AUTOMOTIVE SERVICE SOLUTIONS LTD,AP16R_14013,"110,164.13",Programme System File
BEIS,Skills Funding Agency,11/08/2016,16-18 Apprenticeships - Centralised Contract Management,Main Funding,BOSTON COLLEGE,AP16R_14317,"84,504.72",Programme System File
BEIS,Skills Funding Agency,11/08/2016,16-18 Apprenticeships - Centralised Contract Management,Main Funding,BOURNEMOUTH & POOLE COLLEGE,AP16C_3369,"-8,732.86",Programme System File
BEIS,Skills Funding Agency,11/08/2016,16-18 Apprenticeships - Centralised Contract Management,Main Funding,BOURNEMOUTH & POOLE COLLEGE,AP16R_14332,"238,758.16",Programme System File
BEIS,Skills Funding Agency,11/08/2016,16-18 Apprenticeships - Centralised Contract Management,Main Funding,BPP HOLDINGS PLC,AP16R_13273,"418,842.25",Programme System File
BEIS,Skills Funding Agency,11/08/2016,16-18 Apprenticeships - Centralised Contract Management,Main Funding,BPP HOLDINGS PLC,AP16R_14625,"224,905.13",Programme System File
BEIS,Skills Funding Agency,11/08/2016,16-18 Apprenticeships - Centralised Contract Management,Main Funding,BRACKNELL & WOKINGHAM COLLEGE,AP16R_14431,"41,270.32",Programme System File
BEIS,Skills Funding Agency,11/08/2016,16-18 Apprenticeships - Centralised Contract Management,Main Funding,BRADFORD CITY COUNCIL,AP16R_14467,"14,426.84",Programme System File
BEIS,Skills Funding Agency,11/08/2016,16-18 Apprenticeships - Centralised Contract Management,Main Funding,BRADFORD COLLEGE,AP16C_3411,"-34,023.77",Programme System File
BEIS,Skills Funding Agency,11/08/2016,16-18 Apprenticeships - Centralised Contract Management,Main Funding,BRADFORD COLLEGE,AP16R_14411,"414,597.19",Programme System File
BEIS,Skills Funding Agency,11/08/2016,16-18 Apprenticeships - Centralised Contract Management,Main Funding,BRIDGWATER COLLEGE,AP16C_3459,"-15,832.00",Programme System File
BEIS,Skills Funding Agency,11/08/2016,16-18 Apprenticeships - Centralised Contract Management,Main Funding,BRIDGWATER COLLEGE,AP16R_14486,"229,045.21",Programme System File
BEIS,Skills Funding Agency,11/08/2016,16-18 Apprenticeships - Centralised Contract Management,Main Funding,BRIGHT HORIZONS FAMILY SOLUTIONS LTD,AP16R_13446,"7,322.78",Programme System File
BEIS,Skills Funding Agency,11/08/2016,16-18 Apprenticeships - Centralised Contract Management,Main Funding,BRINSWORTH TRAINING LIMITED,AP16R_13844,"42,084.19",Programme System File
BEIS,Skills Funding Agency,11/08/2016,16-18 Apprenticeships - Centralised Contract Management,Main Funding,BRISTOL CITY COUNCIL,AP16C_3482,"-46,983.41",Programme System File
BEIS,Skills Funding Agency,11/08/2016,16-18 Apprenticeships - Centralised Contract Management,Main Funding,BRISTOL CITY COUNCIL,AP16R_14532,"100,110.53",Programme System File
BEIS,Skills Funding Agency,11/08/2016,16-18 Apprenticeships - Centralised Contract Management,Main Funding,BRITISH GAS SERVICES LIMITED,AP16R_14617,"6,333.79",Programme System File
BEIS,Skills Funding Agency,11/08/2016,16-18 Apprenticeships - Centralised Contract Management,Main Funding,BRITISH NUCLEAR FUELS PLC,AP16R_13739,"8,583.13",Programme System File
BEIS,Skills Funding Agency,11/08/2016,16-18 Apprenticeships - Centralised Contract Management,Main Funding,BRITISH PRINTING INDUSTRIES FEDERATION LTD,AP16C_3517,"-7,883.75",Programme System File
BEIS,Skills Funding Agency,11/08/2016,16-18 Apprenticeships - Centralised Contract Management,Main Funding,BRITISH PRINTING INDUSTRIES FEDERATION LTD,AP16R_14620,"41,766.41",Programme System File
BEIS,Skills Funding Agency,11/08/2016,16-18 Apprenticeships - Centralised Contract Management,Main Funding,BRITISH TELECOM PLC,AP16R_13910,"77,709.33",Programme System File
BEIS,Skills Funding Agency,11/08/2016,16-18 Apprenticeships - Centralised Contract Management,Main Funding,BROADLAND DISTRICT COUNCIL,AP16R_14569,"49,317.05",Programme System File
BEIS,Skills Funding Agency,11/08/2016,16-18 Apprenticeships - Centralised Contract Management,Main Funding,BROCKENHURST COLLEGE,AP16R_14444,"32,168.05",Programme System File
BEIS,Skills Funding Agency,11/08/2016,16-18 Apprenticeships - Centralised Contract Management,Main Funding,BROMLEY COLLEGE OF FURTHER & HIGHER EDUCATION,AP16R_14509,"101,740.09",Programme System File
BEIS,Skills Funding Agency,11/08/2016,16-18 Apprenticeships - Centralised Contract Management,Main Funding,BROOKLANDS TECHNICAL COLLEGE,AP16R_14538,"566,800.85",Programme System File
BEIS,Skills Funding Agency,11/08/2016,16-18 Apprenticeships - Centralised Contract Management,Main Funding,BROOKSBY MELTON COLLEGE,AP16R_14554,"40,487.58",Programme System File
BEIS,Skills Funding Agency,11/08/2016,16-18 Apprenticeships - Centralised Contract Management,Main Funding,BUCKINGHAMSHIRE COUNTY COUNCIL,AP16R_14587,"9,389.86",Programme System File
BEIS,Skills Funding Agency,11/08/2016,16-18 Apprenticeships - Centralised Contract Management,Main Funding,BUILDING CRAFTS COLLEGE,AP16C_3128,"-7,314.13",Programme System File
BEIS,Skills Funding Agency,11/08/2016,16-18 Apprenticeships - Centralised Contract Management,Main Funding,BUILDING CRAFTS COLLEGE,AP16R_13726,"11,332.87",Programme System File
BEIS,Skills Funding Agency,11/08/2016,16-18 Apprenticeships - Centralised Contract Management,Main Funding,BURNLEY COLLEGE,AP16C_3510,"-27,592.61",Programme System File
BEIS,Skills Funding Agency,11/08/2016,16-18 Apprenticeships - Centralised Contract Management,Main Funding,BURNLEY COLLEGE,AP16R_14605,"246,862.62",Programme System File
BEIS,Skills Funding Agency,11/08/2016,16-18 Apprenticeships - Centralised Contract Management,Main Funding,BURTON & SOUTH DERBYSHIRE COLLEGE,AP16C_3533,"-129,480.10",Programme System File
BEIS,Skills Funding Agency,11/08/2016,16-18 Apprenticeships - Centralised Contract Management,Main Funding,BURTON & SOUTH DERBYSHIRE COLLEGE,AP16R_14670,"209,598.09",Programme System File
BEIS,Skills Funding Agency,11/08/2016,16-18 Apprenticeships - Centralised Contract Management,Main Funding,BUSINESS MANAGEMENT RESOURCES UK LTD,AP16R_14627,"5,731.23",Programme System File
BEIS,Skills Funding Agency,11/08/2016,16-18 Apprenticeships - Centralised Contract Management,Main Funding,BUSY BEES NURSERIES,AP16R_13933,"102,942.12",Programme System File
BEIS,Skills Funding Agency,11/08/2016,16-18 Apprenticeships - Centralised Contract Management,Main Funding,CABLECOM TRAINING LTD,AP16R_14629,"4,823.68",Programme System File
BEIS,Skills Funding Agency,11/08/2016,16-18 Apprenticeships - Centralised Contract Management,Main Funding,CALDERDALE COLLEGE,AP16C_3047,-885.52,Programme System File
BEIS,Skills Funding Agency,11/08/2016,16-18 Apprenticeships - Centralised Contract Management,Main Funding,CALDERDALE COLLEGE,AP16R_13448,"77,451.64",Programme System File
BEIS,Skills Funding Agency,11/08/2016,16-18 Apprenticeships - Centralised Contract Management,Main Funding,CAPEL MANOR COLLEGE,AP16C_3062,"-10,186.19",Programme System File
BEIS,Skills Funding Agency,11/08/2016,16-18 Apprenticeships - Centralised Contract Management,Main Funding,CAPEL MANOR COLLEGE,AP16R_13477,"29,268.83",Programme System File
BEIS,Skills Funding Agency,11/08/2016,16-18 Apprenticeships - Centralised Contract Management,Main Funding,CAPITA PLC,AP16R_14637,"177,299.11",Programme System File
BEIS,Skills Funding Agency,11/08/2016,16-18 Apprenticeships - Centralised Contract Management,Main Funding,CAPITAL ENGINEERING GROUP HOLDINGS LTD,AP16R_13845,"21,206.10",Programme System File
BEIS,Skills Funding Agency,11/08/2016,16-18 Apprenticeships - Centralised Contract Management,Main Funding,CARE LEARNING CENTRE ISLE OF WIGHT LTD,AP16R_13650,"7,713.58",Programme System File
BEIS,Skills Funding Agency,11/08/2016,16-18 Apprenticeships - Centralised Contract Management,Main Funding,CARE TRAINING EAST MIDLANDS LIMITED,AP16C_3525,"-9,540.84",Programme System File
BEIS,Skills Funding Agency,11/08/2016,16-18 Apprenticeships - Centralised Contract Management,Main Funding,CARE TRAINING EAST MIDLANDS LIMITED,AP16R_14640,"65,181.70",Programme System File
BEIS,Skills Funding Agency,11/08/2016,16-18 Apprenticeships - Centralised Contract Management,Main Funding,CARILLION CONSTRUCTION LTD,AP16C_3526,"-217,685.83",Programme System File
BEIS,Skills Funding Agency,11/08/2016,16-18 Apprenticeships - Centralised Contract Management,Main Funding,CARILLION CONSTRUCTION LTD,AP16R_14644,"706,251.11",Programme System File
BEIS,Skills Funding Agency,11/08/2016,16-18 Apprenticeships - Centralised Contract Management,Main Funding,CARLISLE COLLEGE,AP16R_13520,"63,658.24",Programme System File
BEIS,Skills Funding Agency,11/08/2016,16-18 Apprenticeships - Centralised Contract Management,Main Funding,CARSHALTON COLLEGE,AP16C_3089,"-19,866.12",Programme System File
BEIS,Skills Funding Agency,11/08/2016,16-18 Apprenticeships - Centralised Contract Management,Main Funding,CARSHALTON COLLEGE,AP16R_13584,"63,939.30",Programme System File
BEIS,Skills Funding Agency,11/08/2016,16-18 Apprenticeships - Centralised Contract Management,Main Funding,CATCH 22 CHARITY LTD,AP16R_13896,"64,276.73",Programme System File
BEIS,Skills Funding Agency,11/08/2016,16-18 Apprenticeships - Centralised Contract Management,Main Funding,CENTRAL BEDFORDSHIRE COLLEGE,AP16C_3257,"-123,001.39",Programme System File
BEIS,Skills Funding Agency,11/08/2016,16-18 Apprenticeships - Centralised Contract Management,Main Funding,CENTRAL BEDFORDSHIRE COLLEGE,AP16R_14099,"122,989.75",Programme System File
BEIS,Skills Funding Agency,11/08/2016,16-18 Apprenticeships - Centralised Contract Management,Main Funding,CENTRAL BEDFORDSHIRE COUNCIL,AP16R_14551,"3,720.98",Programme System File
BEIS,Skills Funding Agency,11/08/2016,16-18 Apprenticeships - Centralised Contract Management,Main Funding,CENTRAL COLLEGE NOTTINGHAM,AP16R_14362,"201,533.81",Programme System File
BEIS,Skills Funding Agency,11/08/2016,16-18 Apprenticeships - Centralised Contract Management,Main Funding,CENTRAL SUSSEX COLLEGE,AP16C_3230,"-7,090.16",Programme System File
BEIS,Skills Funding Agency,11/08/2016,16-18 Apprenticeships - Centralised Contract Management,Main Funding,CENTRAL SUSSEX COLLEGE,AP16R_14055,"77,600.86",Programme System File
BEIS,Skills Funding Agency,11/08/2016,16-18 Apprenticeships - Centralised Contract Management,Main Funding,CENTRAL TRAINING ACADEMY LTD,AP16R_14634,"141,255.15",Programme System File
BEIS,Skills Funding Agency,11/08/2016,16-18 Apprenticeships - Centralised Contract Management,Main Funding,CHAMBER TRAINING HUMBER LTD,AP16R_14646,"59,694.93",Programme System File
BEIS,Skills Funding Agency,11/08/2016,16-18 Apprenticeships - Centralised Contract Management,Main Funding,CHAPMAN BENNETT ASSOCIATES LIMITED,AP16R_13889,"13,334.72",Programme System File
BEIS,Skills Funding Agency,11/08/2016,16-18 Apprenticeships - Centralised Contract Management,Main Funding,CHEADLE & MARPLE SIXTH FORM COLLEGE,AP16C_3074,-935.95,Programme System File
BEIS,Skills Funding Agency,11/08/2016,16-18 Apprenticeships - Centralised Contract Management,Main Funding,CHEADLE & MARPLE SIXTH FORM COLLEGE,AP16R_13512,"23,312.45",Programme System File
BEIS,Skills Funding Agency,11/08/2016,16-18 Apprenticeships - Centralised Contract Management,Main Funding,CHELMSFORD COLLEGE,AP16C_3079,"-9,425.37",Programme System File
BEIS,Skills Funding Agency,11/08/2016,16-18 Apprenticeships - Centralised Contract Management,Main Funding,CHELMSFORD COLLEGE,AP16R_13550,"73,158.74",Programme System File
BEIS,Skills Funding Agency,11/08/2016,16-18 Apprenticeships - Centralised Contract Management,Main Funding,CHESTERFIELD COLLEGE,AP16R_13611,"310,964.99",Programme System File
BEIS,Skills Funding Agency,11/08/2016,16-18 Apprenticeships - Centralised Contract Management,Main Funding,CHEYNES MANAGEMENT LTD,AP16C_3123,"-28,771.76",Programme System File
BEIS,Skills Funding Agency,11/08/2016,16-18 Apprenticeships - Centralised Contract Management,Main Funding,CHEYNES MANAGEMENT LTD,AP16R_13706,"160,870.49",Programme System File
BEIS,Skills Funding Agency,11/08/2016,16-18 Apprenticeships - Centralised Contract Management,Main Funding,CHICHESTER COLLEGE,AP16R_14506,"119,938.23",Programme System File
BEIS,Skills Funding Agency,11/08/2016,16-18 Apprenticeships - Centralised Contract Management,Main Funding,CHILDRENS LINKS,AP16C_3529,"-2,810.68",Programme System File
BEIS,Skills Funding Agency,11/08/2016,16-18 Apprenticeships - Centralised Contract Management,Main Funding,CHILDRENS LINKS,AP16R_14648,"25,184.44",Programme System File
BEIS,Skills Funding Agency,11/08/2016,16-18 Apprenticeships - Centralised Contract Management,Main Funding,CHILTERN TRAINING LTD,AP16R_14651,"79,621.46",Programme System File
BEIS,Skills Funding Agency,11/08/2016,16-18 Apprenticeships - Centralised Contract Management,Main Funding,CIRENCESTER TERTIARY COLLEGE,AP16C_3104,"-10,365.58",Programme System File
BEIS,Skills Funding Agency,11/08/2016,16-18 Apprenticeships - Centralised Contract Management,Main Funding,CIRENCESTER TERTIARY COLLEGE,AP16R_13647,"21,354.64",Programme System File
BEIS,Skills Funding Agency,11/08/2016,16-18 Apprenticeships - Centralised Contract Management,Main Funding,CITB CONSTRUCTIONSKILLS,AP16R_14655,"2,485,668.60",Programme System File
BEIS,Skills Funding Agency,11/08/2016,16-18 Apprenticeships - Centralised Contract Management,Main Funding,CITROEN UK LTD,AP16R_13797,"24,675.04",Programme System File
BEIS,Skills Funding Agency,11/08/2016,16-18 Apprenticeships - Centralised Contract Management,Main Funding,CITY AND ISLINGTON COLLEGE,AP16R_13628,"13,249.33",Programme System File
BEIS,Skills Funding Agency,11/08/2016,16-18 Apprenticeships - Centralised Contract Management,Main Funding,CITY COLLEGE BRIGHTON & HOVE,AP16C_3111,"-4,329.09",Programme System File
BEIS,Skills Funding Agency,11/08/2016,16-18 Apprenticeships - Centralised Contract Management,Main Funding,CITY COLLEGE BRIGHTON & HOVE,AP16R_13661,"49,721.65",Programme System File
BEIS,Skills Funding Agency,11/08/2016,16-18 Apprenticeships - Centralised Contract Management,Main Funding,CITY COLLEGE COVENTRY,AP16R_13708,"58,776.07",Programme System File
BEIS,Skills Funding Agency,11/08/2016,16-18 Apprenticeships - Centralised Contract Management,Main Funding,CITY COLLEGE PLYMOUTH,AP16C_3361,-965.41,Programme System File
BEIS,Skills Funding Agency,11/08/2016,16-18 Apprenticeships - Centralised Contract Management,Main Funding,CITY COLLEGE PLYMOUTH,AP16R_14311,"245,110.25",Programme System File
BEIS,Skills Funding Agency,11/08/2016,16-18 Apprenticeships - Centralised Contract Management,Main Funding,CITY GATEWAY LTD,AP16R_13805,"16,446.11",Programme System File
BEIS,Skills Funding Agency,11/08/2016,16-18 Apprenticeships - Centralised Contract Management,Main Funding,CITY OF BATH COLLEGE,AP16R_13687,"47,046.98",Programme System File
BEIS,Skills Funding Agency,11/08/2016,16-18 Apprenticeships - Centralised Contract Management,Main Funding,CITY OF BRISTOL COLLEGE,AP16C_3126,"-64,658.52",Programme System File
BEIS,Skills Funding Agency,11/08/2016,16-18 Apprenticeships - Centralised Contract Management,Main Funding,CITY OF BRISTOL COLLEGE,AP16R_13725,"215,998.63",Programme System File
BEIS,Skills Funding Agency,11/08/2016,16-18 Apprenticeships - Centralised Contract Management,Main Funding,CITY OF LONDON ADULT EDUCATION,AP16C_3483,"-1,029.89",Programme System File
BEIS,Skills Funding Agency,11/08/2016,16-18 Apprenticeships - Centralised Contract Management,Main Funding,CITY OF LONDON ADULT EDUCATION,AP16R_14525,"14,034.35",Programme System File
BEIS,Skills Funding Agency,11/08/2016,16-18 Apprenticeships - Centralised Contract Management,Main Funding,CITY OF SUNDERLAND COLLEGE,AP16R_13788,"52,247.68",Programme System File
BEIS,Skills Funding Agency,11/08/2016,16-18 Apprenticeships - Centralised Contract Management,Main Funding,CITY OF WESTMINSTER COLLEGE,AP16C_3179,"-29,595.20",Programme System File
BEIS,Skills Funding Agency,11/08/2016,16-18 Apprenticeships - Centralised Contract Management,Main Funding,CITY OF WESTMINSTER COLLEGE,AP16R_13870,"28,430.05",Programme System File
BEIS,Skills Funding Agency,11/08/2016,16-18 Apprenticeships - Centralised Contract Management,Main Funding,CITY OF WOLVERHAMPTON COLLEGE,AP16R_14488,"93,419.79",Programme System File
BEIS,Skills Funding Agency,11/08/2016,16-18 Apprenticeships - Centralised Contract Management,Main Funding,CITY OF YORK COUNCIL,AP16C_3158,"-1,129.97",Programme System File
BEIS,Skills Funding Agency,11/08/2016,16-18 Apprenticeships - Centralised Contract Management,Main Funding,CITY OF YORK COUNCIL,AP16R_13804,"9,583.18",Programme System File
BEIS,Skills Funding Agency,11/08/2016,16-18 Apprenticeships - Centralised Contract Management,Main Funding,CLEVELAND YOUTH ASSOCIATION,AP16R_13607,"24,988.38",Programme System File
BEIS,Skills Funding Agency,11/08/2016,16-18 Apprenticeships - Centralised Contract Management,Main Funding,COLCHESTER INSTITUTE,AP16C_3163,"-38,346.91",Programme System File
BEIS,Skills Funding Agency,11/08/2016,16-18 Apprenticeships - Centralised Contract Management,Main Funding,COLCHESTER INSTITUTE,AP16R_13821,"233,230.95",Programme System File
BEIS,Skills Funding Agency,11/08/2016,16-18 Apprenticeships - Centralised Contract Management,Main Funding,COLLEGE OF ANIMAL WELFARE LTD,AP16C_3530,"-28,196.60",Programme System File
BEIS,Skills Funding Agency,11/08/2016,16-18 Apprenticeships - Centralised Contract Management,Main Funding,COLLEGE OF ANIMAL WELFARE LTD,AP16R_14658,"47,687.33",Programme System File
BEIS,Skills Funding Agency,11/08/2016,16-18 Apprenticeships - Centralised Contract Management,Main Funding,COLLEGE OF NORTH EAST LONDON,AP16C_3185,"-3,290.79",Programme System File
BEIS,Skills Funding Agency,11/08/2016,16-18 Apprenticeships - Centralised Contract Management,Main Funding,COLLEGE OF NORTH EAST LONDON,AP16R_13888,"52,190.63",Programme System File
BEIS,Skills Funding Agency,11/08/2016,16-18 Apprenticeships - Centralised Contract Management,Main Funding,COLLEGE OF NORTH WEST LONDON,AP16R_13915,"62,746.17",Programme System File
BEIS,Skills Funding Agency,11/08/2016,16-18 Apprenticeships - Centralised Contract Management,Main Funding,COLLEGE OF RICHARD COLLYER,AP16R_13983,"3,839.88",Programme System File
BEIS,Skills Funding Agency,11/08/2016,16-18 Apprenticeships - Centralised Contract Management,Main Funding,COLLEGE OF WEST ANGLIA,AP16R_14513,"145,287.03",Programme System File
BEIS,Skills Funding Agency,11/08/2016,16-18 Apprenticeships - Centralised Contract Management,Main Funding,COMMUNITY TRAINING SERVICES LTD,AP16R_14664,"41,392.90",Programme System File
BEIS,Skills Funding Agency,11/08/2016,16-18 Apprenticeships - Centralised Contract Management,Main Funding,COMPASS GROUP UK & IRELAND LTD,AP16R_13883,"4,421.34",Programme System File
BEIS,Skills Funding Agency,11/08/2016,16-18 Apprenticeships - Centralised Contract Management,Main Funding,CONSORTIA TRAINING LIMITED,AP16C_3208,"-72,494.93",Programme System File
BEIS,Skills Funding Agency,11/08/2016,16-18 Apprenticeships - Centralised Contract Management,Main Funding,CONSORTIA TRAINING LIMITED,AP16R_13959,"135,564.92",Programme System File
BEIS,Skills Funding Agency,11/08/2016,16-18 Apprenticeships - Centralised Contract Management,Main Funding,CORNWALL COLLEGE,AP16C_3204,"-70,449.09",Programme System File
BEIS,Skills Funding Agency,11/08/2016,16-18 Apprenticeships - Centralised Contract Management,Main Funding,CORNWALL COLLEGE,AP16R_13957,"398,218.21",Programme System File
BEIS,Skills Funding Agency,11/08/2016,16-18 Apprenticeships - Centralised Contract Management,Main Funding,COVENTRY & WARWICKSHIRE CHAMBERS OF COMMERCE TRAINING LIMITED,AP16R_14641,"96,455.80",Programme System File
BEIS,Skills Funding Agency,11/08/2016,16-18 Apprenticeships - Centralised Contract Management,Main Funding,COVENTRY CITY COUNCIL,AP16C_3239,"-48,299.52",Programme System File
BEIS,Skills Funding Agency,11/08/2016,16-18 Apprenticeships - Centralised Contract Management,Main Funding,COVENTRY CITY COUNCIL,AP16R_14071,"56,475.39",Programme System File
BEIS,Skills Funding Agency,11/08/2016,16-18 Apprenticeships - Centralised Contract Management,Main Funding,COVET LTD,AP16R_12606,"-211,974.79",Programme System File
BEIS,Skills Funding Agency,11/08/2016,16-18 Apprenticeships - Centralised Contract Management,Main Funding,COVET LTD,AP16R_13963,"245,119.68",Programme System File
BEIS,Skills Funding Agency,11/08/2016,16-18 Apprenticeships - Centralised Contract Management,Main Funding,CRACKERJACK TRAINING LTD,AP16R_14654,"41,599.13",Programme System File
BEIS,Skills Funding Agency,11/08/2016,16-18 Apprenticeships - Centralised Contract Management,Main Funding,CRAVEN COLLEGE,AP16R_13992,"157,163.56",Programme System File
BEIS,Skills Funding Agency,11/08/2016,16-18 Apprenticeships - Centralised Contract Management,Main Funding,CREATIVE PROCESS,AP16R_13876,"37,080.76",Programme System File
BEIS,Skills Funding Agency,11/08/2016,16-18 Apprenticeships - Centralised Contract Management,Main Funding,CROYDON COLLEGE,AP16C_3220,"-35,710.33",Programme System File
BEIS,Skills Funding Agency,11/08/2016,16-18 Apprenticeships - Centralised Contract Management,Main Funding,CROYDON COLLEGE,AP16R_14009,"67,833.34",Programme System File
BEIS,Skills Funding Agency,11/08/2016,16-18 Apprenticeships - Centralised Contract Management,Main Funding,CSM CONSULTING LTD,AP16C_3532,"-145,029.77",Programme System File
BEIS,Skills Funding Agency,11/08/2016,16-18 Apprenticeships - Centralised Contract Management,Main Funding,CSM CONSULTING LTD,AP16R_14660,143295.3,Programme System File
BEIS,Skills Funding Agency,11/08/2016,16-18 Apprenticeships - Centralised Contract Management,Main Funding,CUMBRIA COUNTY COUNCIL,AP16R_14038,318.07,Programme System File
BEIS,Skills Funding Agency,11/08/2016,16-18 Apprenticeships - Centralised Contract Management,Main Funding,D M T BUSINESS SERVICES LTD,AP16R_14678,"4,474.52",Programme System File
BEIS,Skills Funding Agency,11/08/2016,16-18 Apprenticeships - Centralised Contract Management,Main Funding,D MANTLE LIMITED,AP16R_13942,"6,191.12",Programme System File
BEIS,Skills Funding Agency,11/08/2016,16-18 Apprenticeships - Centralised Contract Management,Main Funding,DAMAR LTD,AP16R_14666,"189,154.39",Programme System File
BEIS,Skills Funding Agency,11/08/2016,16-18 Apprenticeships - Centralised Contract Management,Main Funding,DARLINGTON BOROUGH COUNCIL,AP16R_14081,"17,336.16",Programme System File
BEIS,Skills Funding Agency,11/08/2016,16-18 Apprenticeships - Centralised Contract Management,Main Funding,DARLINGTON COLLEGE,AP16C_3245,"-58,297.39",Programme System File
BEIS,Skills Funding Agency,11/08/2016,16-18 Apprenticeships - Centralised Contract Management,Main Funding,DARLINGTON COLLEGE,AP16R_14083,"359,580.37",Programme System File
BEIS,Skills Funding Agency,11/08/2016,16-18 Apprenticeships - Centralised Contract Management,Main Funding,DART LTD,AP16R_14662,"51,287.14",Programme System File
BEIS,Skills Funding Agency,11/08/2016,16-18 Apprenticeships - Centralised Contract Management,Main Funding,DAVIDSON TRAINING UK LIMITED,AP16R_14665,"9,933.72",Programme System File
BEIS,Skills Funding Agency,11/08/2016,16-18 Apprenticeships - Centralised Contract Management,Main Funding,DAWN HODGE ASSOCIATES LTD,AP16R_13832,"18,459.85",Programme System File
BEIS,Skills Funding Agency,11/08/2016,16-18 Apprenticeships - Centralised Contract Management,Main Funding,DEARNE VALLEY COLLEGE,AP16C_3250,"-11,066.35",Programme System File
BEIS,Skills Funding Agency,11/08/2016,16-18 Apprenticeships - Centralised Contract Management,Main Funding,DEARNE VALLEY COLLEGE,AP16R_14091,"56,484.94",Programme System File
BEIS,Skills Funding Agency,11/08/2016,16-18 Apprenticeships - Centralised Contract Management,Main Funding,DERBY BUSINESS COLLEGE,AP16R_13556,"6,995.70",Programme System File
BEIS,Skills Funding Agency,11/08/2016,16-18 Apprenticeships - Centralised Contract Management,Main Funding,DERBY CITY COUNCIL,AP16C_3242,-833.22,Programme System File
BEIS,Skills Funding Agency,11/08/2016,16-18 Apprenticeships - Centralised Contract Management,Main Funding,DERBY CITY COUNCIL,AP16R_14079,"16,504.75",Programme System File
BEIS,Skills Funding Agency,11/08/2016,16-18 Apprenticeships - Centralised Contract Management,Main Funding,DERBY COLLEGE,AP16C_3246,"-25,232.35",Programme System File
BEIS,Skills Funding Agency,11/08/2016,16-18 Apprenticeships - Centralised Contract Management,Main Funding,DERBY COLLEGE,AP16R_14084,"276,587.82",Programme System File
BEIS,Skills Funding Agency,11/08/2016,16-18 Apprenticeships - Centralised Contract Management,Main Funding,DERBYSHIRE & NOTTINGHAMSHIRE CHAMBER OF COMMERCE & INDUSTRY,AP16R_14671,"33,836.75",Programme System File
BEIS,Skills Funding Agency,11/08/2016,16-18 Apprenticeships - Centralised Contract Management,Main Funding,DERBYSHIRE COUNTY COUNCIL,AP16C_3248,"-26,741.29",Programme System File
BEIS,Skills Funding Agency,11/08/2016,16-18 Apprenticeships - Centralised Contract Management,Main Funding,DERBYSHIRE COUNTY COUNCIL,AP16R_14086,"26,732.70",Programme System File
BEIS,Skills Funding Agency,11/08/2016,16-18 Apprenticeships - Centralised Contract Management,Main Funding,DERBYSHIRE NETWORK,AP16C_3112,"-3,080.68",Programme System File
BEIS,Skills Funding Agency,11/08/2016,16-18 Apprenticeships - Centralised Contract Management,Main Funding,DERBYSHIRE NETWORK,AP16R_13655,"33,710.77",Programme System File
BEIS,Skills Funding Agency,11/08/2016,16-18 Apprenticeships - Centralised Contract Management,Main Funding,DERWENTSIDE COLLEGE,AP16R_14095,"81,123.45",Programme System File
BEIS,Skills Funding Agency,11/08/2016,16-18 Apprenticeships - Centralised Contract Management,Main Funding,DHL INTERNATIONAL UK LTD,AP16C_3188,"-96,510.03",Programme System File
BEIS,Skills Funding Agency,11/08/2016,16-18 Apprenticeships - Centralised Contract Management,Main Funding,DHL INTERNATIONAL UK LTD,AP16R_13894,"96,523.87",Programme System File
BEIS,Skills Funding Agency,11/08/2016,16-18 Apprenticeships - Centralised Contract Management,Main Funding,DIDAC LTD,AP16R_14674,"22,042.60",Programme System File
BEIS,Skills Funding Agency,11/08/2016,16-18 Apprenticeships - Centralised Contract Management,Main Funding,DIMENSIONS TRAINING SOLUTIONS LTD,AP16R_14676,"34,382.03",Programme System File
BEIS,Skills Funding Agency,11/08/2016,16-18 Apprenticeships - Centralised Contract Management,Main Funding,DONCASTER COLLEGE,AP16C_3252,"-5,047.31",Programme System File
BEIS,Skills Funding Agency,11/08/2016,16-18 Apprenticeships - Centralised Contract Management,Main Funding,DONCASTER COLLEGE,AP16R_14093,"114,366.80",Programme System File
BEIS,Skills Funding Agency,11/08/2016,16-18 Apprenticeships - Centralised Contract Management,Main Funding,DONCASTER METRO BOROUGH COUNCIL,AP16R_14096,"11,080.70",Programme System File
BEIS,Skills Funding Agency,11/08/2016,16-18 Apprenticeships - Centralised Contract Management,Main Funding,DONCASTER ROTHERHAM & DISTRICT MOTOR TRADES GROUP TRAINING ASSOCIATION LTD,AP16R_14668,"82,290.77",Programme System File
BEIS,Skills Funding Agency,11/08/2016,16-18 Apprenticeships - Centralised Contract Management,Main Funding,DOOSAN BABCOCK LTD,AP16R_13504,"143,586.75",Programme System File
BEIS,Skills Funding Agency,11/08/2016,16-18 Apprenticeships - Centralised Contract Management,Main Funding,DUDLEY COLLEGE OF TECHNOLOGY,AP16C_3479,"-131,391.60",Programme System File
BEIS,Skills Funding Agency,11/08/2016,16-18 Apprenticeships - Centralised Contract Management,Main Funding,DUDLEY COLLEGE OF TECHNOLOGY,AP16R_14518,"710,170.25",Programme System File
BEIS,Skills Funding Agency,11/08/2016,16-18 Apprenticeships - Centralised Contract Management,Main Funding,DURHAM COUNTY COUNCIL,AP16C_3261,"-21,520.33",Programme System File
BEIS,Skills Funding Agency,11/08/2016,16-18 Apprenticeships - Centralised Contract Management,Main Funding,DURHAM COUNTY COUNCIL,AP16R_14104,"21,622.23",Programme System File
BEIS,Skills Funding Agency,11/08/2016,16-18 Apprenticeships - Centralised Contract Management,Main Funding,E TRAINING LTD,AP16R_14673,"6,479.56",Programme System File
BEIS,Skills Funding Agency,11/08/2016,16-18 Apprenticeships - Centralised Contract Management,Main Funding,EALING HAMMERSMITH & WEST LONDON COLLEGE,AP16R_14108,"47,940.86",Programme System File
BEIS,Skills Funding Agency,11/08/2016,16-18 Apprenticeships - Centralised Contract Management,Main Funding,EAST BERKSHIRE COLLEGE,AP16C_3255,"-35,867.32",Programme System File
BEIS,Skills Funding Agency,11/08/2016,16-18 Apprenticeships - Centralised Contract Management,Main Funding,EAST BERKSHIRE COLLEGE,AP16R_14097,"135,887.77",Programme System File
BEIS,Skills Funding Agency,11/08/2016,16-18 Apprenticeships - Centralised Contract Management,Main Funding,EAST DURHAM COLLEGE,AP16C_3259,"-32,893.42",Programme System File
BEIS,Skills Funding Agency,11/08/2016,16-18 Apprenticeships - Centralised Contract Management,Main Funding,EAST DURHAM COLLEGE,AP16R_14101,"72,222.07",Programme System File
BEIS,Skills Funding Agency,11/08/2016,16-18 Apprenticeships - Centralised Contract Management,Main Funding,EAST LINDSEY INFORMATION TECHNOLOGY CENTRE,AP16R_14685,"39,148.34",Programme System File
BEIS,Skills Funding Agency,11/08/2016,16-18 Apprenticeships - Centralised Contract Management,Main Funding,EAST RIDING COLLEGE,AP16R_14106,"32,289.96",Programme System File
BEIS,Skills Funding Agency,11/08/2016,16-18 Apprenticeships - Centralised Contract Management,Main Funding,EAST RIDING OF YORKSHIRE COUNCIL,AP16R_14528,"4,477.39",Programme System File
BEIS,Skills Funding Agency,11/08/2016,16-18 Apprenticeships - Centralised Contract Management,Main Funding,EAST SURREY COLLEGE,AP16C_3264,"-10,232.08",Programme System File
BEIS,Skills Funding Agency,11/08/2016,16-18 Apprenticeships - Centralised Contract Management,Main Funding,EAST SURREY COLLEGE,AP16R_14110,"70,801.75",Programme System File
BEIS,Skills Funding Agency,11/08/2016,16-18 Apprenticeships - Centralised Contract Management,Main Funding,EASTLEIGH COLLEGE,AP16C_3265,"-33,828.91",Programme System File
BEIS,Skills Funding Agency,11/08/2016,16-18 Apprenticeships - Centralised Contract Management,Main Funding,EASTLEIGH COLLEGE,AP16R_14112,"148,149.24",Programme System File
BEIS,Skills Funding Agency,11/08/2016,16-18 Apprenticeships - Centralised Contract Management,Main Funding,EASTON & OTLEY COLLEGE,AP16C_3489,"-23,646.03",Programme System File
BEIS,Skills Funding Agency,11/08/2016,16-18 Apprenticeships - Centralised Contract Management,Main Funding,EASTON & OTLEY COLLEGE,AP16R_14539,"87,516.55",Programme System File
BEIS,Skills Funding Agency,11/08/2016,16-18 Apprenticeships - Centralised Contract Management,Main Funding,ECONOMIC SOLUTIONS LTD,AP16R_13487,"587,038.74",Programme System File
BEIS,Skills Funding Agency,11/08/2016,16-18 Apprenticeships - Centralised Contract Management,Main Funding,EDEN TRAINING SOLUTIONS LTD,AP16C_3193,"-1,668.85",Programme System File
BEIS,Skills Funding Agency,11/08/2016,16-18 Apprenticeships - Centralised Contract Management,Main Funding,EDEN TRAINING SOLUTIONS LTD,AP16R_13914,"43,620.66",Programme System File
BEIS,Skills Funding Agency,11/08/2016,16-18 Apprenticeships - Centralised Contract Management,Main Funding,EDUCATION & TRAINING SKILLS LTD,AP16C_3539,"-12,694.25",Programme System File
BEIS,Skills Funding Agency,11/08/2016,16-18 Apprenticeships - Centralised Contract Management,Main Funding,EDUCATION & TRAINING SKILLS LTD,AP16R_14682,"23,653.40",Programme System File
BEIS,Skills Funding Agency,11/08/2016,16-18 Apprenticeships - Centralised Contract Management,Main Funding,EEF LTD,AP16R_13903,"95,400.26",Programme System File
BEIS,Skills Funding Agency,11/08/2016,16-18 Apprenticeships - Centralised Contract Management,Main Funding,ELATT,AP16C_3535,-117.31,Programme System File
BEIS,Skills Funding Agency,11/08/2016,16-18 Apprenticeships - Centralised Contract Management,Main Funding,ELATT,AP16R_14675,"12,553.18",Programme System File
BEIS,Skills Funding Agency,11/08/2016,16-18 Apprenticeships - Centralised Contract Management,Main Funding,ENFIELD LONDON BOROUGH COUNCIL,AP16R_14114,"5,740.18",Programme System File
BEIS,Skills Funding Agency,11/08/2016,16-18 Apprenticeships - Centralised Contract Management,Main Funding,EON UK PLC,AP16C_3184,"-47,388.92",Programme System File
BEIS,Skills Funding Agency,11/08/2016,16-18 Apprenticeships - Centralised Contract Management,Main Funding,EON UK PLC,AP16R_13875,"53,378.29",Programme System File
BEIS,Skills Funding Agency,11/08/2016,16-18 Apprenticeships - Centralised Contract Management,Main Funding,EPPING FOREST COLLEGE,AP16C_3267,"-7,097.66",Programme System File
BEIS,Skills Funding Agency,11/08/2016,16-18 Apprenticeships - Centralised Contract Management,Main Funding,EPPING FOREST COLLEGE,AP16R_14118,"29,124.45",Programme System File
BEIS,Skills Funding Agency,11/08/2016,16-18 Apprenticeships - Centralised Contract Management,Main Funding,EQL SOLUTIONS LTD,AP16R_14029,"266,200.37",Programme System File
BEIS,Skills Funding Agency,11/08/2016,16-18 Apprenticeships - Centralised Contract Management,Main Funding,ESG (SKILLS) LIMITED,AP16R_13975,"397,218.41",Programme System File
BEIS,Skills Funding Agency,11/08/2016,16-18 Apprenticeships - Centralised Contract Management,Main Funding,ESSEX COUNTY COUNCIL,AP16C_3269,"-1,029.85",Programme System File
BEIS,Skills Funding Agency,11/08/2016,16-18 Apprenticeships - Centralised Contract Management,Main Funding,ESSEX COUNTY COUNCIL,AP16R_14121,"13,407.67",Programme System File
BEIS,Skills Funding Agency,11/08/2016,16-18 Apprenticeships - Centralised Contract Management,Main Funding,EXETER COLLEGE,AP16R_14115,"178,714.01",Programme System File
BEIS,Skills Funding Agency,11/08/2016,16-18 Apprenticeships - Centralised Contract Management,Main Funding,EXPEDIENT TRAINING SERVICES LTD,AP16R_14072,"2,962.80",Programme System File
BEIS,Skills Funding Agency,11/08/2016,16-18 Apprenticeships - Centralised Contract Management,Main Funding,FAREHAM COLLEGE,AP16C_3477,"-1,382.49",Programme System File
BEIS,Skills Funding Agency,11/08/2016,16-18 Apprenticeships - Centralised Contract Management,Main Funding,FAREHAM COLLEGE,AP16R_14515,"161,147.00",Programme System File
BEIS,Skills Funding Agency,11/08/2016,16-18 Apprenticeships - Centralised Contract Management,Main Funding,FAREPORT TRAINING ORGANISATION LTD,AP16R_13367,"42,654.49",Programme System File
BEIS,Skills Funding Agency,11/08/2016,16-18 Apprenticeships - Centralised Contract Management,Main Funding,FARNBOROUGH COLLEGE,AP16C_3271,"-17,415.97",Programme System File
BEIS,Skills Funding Agency,11/08/2016,16-18 Apprenticeships - Centralised Contract Management,Main Funding,FARNBOROUGH COLLEGE,AP16R_14124,"160,719.99",Programme System File
BEIS,Skills Funding Agency,11/08/2016,16-18 Apprenticeships - Centralised Contract Management,Main Funding,FASHION RETAIL ACADEMY,AP16R_12376,985.52,Programme System File
BEIS,Skills Funding Agency,11/08/2016,16-18 Apprenticeships - Centralised Contract Management,Main Funding,FASHION RETAIL ACADEMY,AP16R_13727,985.52,Programme System File
BEIS,Skills Funding Agency,11/08/2016,16-18 Apprenticeships - Centralised Contract Management,Main Funding,FINMECCANICA UK LTD,AP16C_3161,"-43,979.38",Programme System File
BEIS,Skills Funding Agency,11/08/2016,16-18 Apprenticeships - Centralised Contract Management,Main Funding,FINMECCANICA UK LTD,AP16R_13809,"78,390.77",Programme System File
BEIS,Skills Funding Agency,11/08/2016,16-18 Apprenticeships - Centralised Contract Management,Main Funding,FINNING (UK) LTD,AP16R_14684,"13,770.38",Programme System File
BEIS,Skills Funding Agency,11/08/2016,16-18 Apprenticeships - Centralised Contract Management,Main Funding,FIRST CITY TRAINING LTD,AP16R_13742,758.25,Programme System File
BEIS,Skills Funding Agency,11/08/2016,16-18 Apprenticeships - Centralised Contract Management,Main Funding,FIRST4SKILLS LIMITED,AP16R_14002,"275,758.98",Programme System File
BEIS,Skills Funding Agency,11/08/2016,16-18 Apprenticeships - Centralised Contract Management,Main Funding,FNTC TRAINING & CONSULTANCY LTD,AP16R_13370,"39,206.35",Programme System File
BEIS,Skills Funding Agency,11/08/2016,16-18 Apprenticeships - Centralised Contract Management,Main Funding,FOCUS TRAINING & DEVELOPMENT LTD,AP16R_13737,"36,914.26",Programme System File
BEIS,Skills Funding Agency,11/08/2016,16-18 Apprenticeships - Centralised Contract Management,Main Funding,FOCUS TRAINING (SW) LTD,AP16R_13905,"37,040.71",Programme System File
BEIS,Skills Funding Agency,11/08/2016,16-18 Apprenticeships - Centralised Contract Management,Main Funding,FOOTBALL ASSOCIATION PREMIER LEAGUE LTD,AP16R_14034,"136,438.04",Programme System File
BEIS,Skills Funding Agency,11/08/2016,16-18 Apprenticeships - Centralised Contract Management,Main Funding,FORSTER COMMUNITY COLLEGE,AP16R_14630,592.6,Programme System File
BEIS,Skills Funding Agency,11/08/2016,16-18 Apprenticeships - Centralised Contract Management,Main Funding,FRANCESCO GROUP HOLDINGS LTD,AP16R_13366,"56,247.62",Programme System File
BEIS,Skills Funding Agency,11/08/2016,16-18 Apprenticeships - Centralised Contract Management,Main Funding,FRANKLIN COLLEGE,AP16R_14126,"2,515.29",Programme System File
BEIS,Skills Funding Agency,11/08/2016,16-18 Apprenticeships - Centralised Contract Management,Main Funding,FURNESS COLLEGE,AP16R_14129,"43,685.71",Programme System File
BEIS,Skills Funding Agency,11/08/2016,16-18 Apprenticeships - Centralised Contract Management,Main Funding,G B TRAINING UK LTD,AP16R_13374,"39,307.54",Programme System File
BEIS,Skills Funding Agency,11/08/2016,16-18 Apprenticeships - Centralised Contract Management,Main Funding,GATESHEAD COLLEGE,AP16C_3274,"-109,832.76",Programme System File
BEIS,Skills Funding Agency,11/08/2016,16-18 Apprenticeships - Centralised Contract Management,Main Funding,GATESHEAD COLLEGE,AP16R_14132,"102,645.75",Programme System File
BEIS,Skills Funding Agency,11/08/2016,16-18 Apprenticeships - Centralised Contract Management,Main Funding,GATESHEAD COUNCIL,AP16C_3273,-888.67,Programme System File
BEIS,Skills Funding Agency,11/08/2016,16-18 Apprenticeships - Centralised Contract Management,Main Funding,GATESHEAD COUNCIL,AP16R_14130,"98,241.92",Programme System File
BEIS,Skills Funding Agency,11/08/2016,16-18 Apprenticeships - Centralised Contract Management,Main Funding,GEN II ENGINEERING & TECHNOLOGY TRAINING LTD,AP16C_3025,"-28,555.55",Programme System File
BEIS,Skills Funding Agency,11/08/2016,16-18 Apprenticeships - Centralised Contract Management,Main Funding,GEN II ENGINEERING & TECHNOLOGY TRAINING LTD,AP16R_13372,"236,651.73",Programme System File
BEIS,Skills Funding Agency,11/08/2016,16-18 Apprenticeships - Centralised Contract Management,Main Funding,GHQ TRAINING LTD,AP16R_13756,"27,161.26",Programme System File
BEIS,Skills Funding Agency,11/08/2016,16-18 Apprenticeships - Centralised Contract Management,Main Funding,GI GROUP RECRUITMENT LTD,AP16R_14006,"18,383.59",Programme System File
BEIS,Skills Funding Agency,11/08/2016,16-18 Apprenticeships - Centralised Contract Management,Main Funding,GLOUCESTERSHIRE COLLEGE OF ARTS & TECHNOLOGY,AP16R_14134,"179,614.23",Programme System File
BEIS,Skills Funding Agency,11/08/2016,16-18 Apprenticeships - Centralised Contract Management,Main Funding,GLOUCESTERSHIRE COUNTY COUNCIL,AP16R_14138,"2,698.86",Programme System File
BEIS,Skills Funding Agency,11/08/2016,16-18 Apprenticeships - Centralised Contract Management,Main Funding,GLOUCESTERSHIRE ENGINEERING TRAINING LTD,AP16R_13376,"69,395.02",Programme System File
BEIS,Skills Funding Agency,11/08/2016,16-18 Apprenticeships - Centralised Contract Management,Main Funding,GORDON FRANKS TRAINING LIMITED,AP16R_14020,"22,683.05",Programme System File
BEIS,Skills Funding Agency,11/08/2016,16-18 Apprenticeships - Centralised Contract Management,Main Funding,GP STRATEGIES TRAINING LTD,AP16C_3215,"-19,148.54",Programme System File
BEIS,Skills Funding Agency,11/08/2016,16-18 Apprenticeships - Centralised Contract Management,Main Funding,GP STRATEGIES TRAINING LTD,AP16R_13989,"266,955.47",Programme System File
BEIS,Skills Funding Agency,11/08/2016,16-18 Apprenticeships - Centralised Contract Management,Main Funding,GR & MM BLACKLEDGE PLC,AP16C_3519,"-42,650.33",Programme System File
BEIS,Skills Funding Agency,11/08/2016,16-18 Apprenticeships - Centralised Contract Management,Main Funding,GR & MM BLACKLEDGE PLC,AP16R_14623,"51,928.59",Programme System File
BEIS,Skills Funding Agency,11/08/2016,16-18 Apprenticeships - Centralised Contract Management,Main Funding,GRANTHAM COLLEGE,AP16C_3279,"-1,556.24",Programme System File
BEIS,Skills Funding Agency,11/08/2016,16-18 Apprenticeships - Centralised Contract Management,Main Funding,GRANTHAM COLLEGE,AP16R_14142,"52,198.67",Programme System File
BEIS,Skills Funding Agency,11/08/2016,16-18 Apprenticeships - Centralised Contract Management,Main Funding,GREAT YARMOUTH COLLEGE,AP16R_14144,"37,037.88",Programme System File
BEIS,Skills Funding Agency,11/08/2016,16-18 Apprenticeships - Centralised Contract Management,Main Funding,GREENBANK SERVICES LTD,AP16C_3191,-365.6,Programme System File
BEIS,Skills Funding Agency,11/08/2016,16-18 Apprenticeships - Centralised Contract Management,Main Funding,GREENBANK SERVICES LTD,AP16R_13898,540.12,Programme System File
BEIS,Skills Funding Agency,11/08/2016,16-18 Apprenticeships - Centralised Contract Management,Main Funding,GREENWICH COMMUNITY COLLEGE AT PLUMSTEAD CENTRE,AP16R_14137,"2,176.88",Programme System File
BEIS,Skills Funding Agency,11/08/2016,16-18 Apprenticeships - Centralised Contract Management,Main Funding,GRIMSBY INSTITUTE OF FURTHER & HIGHER EDUCATION,AP16R_14521,"113,724.80",Programme System File
BEIS,Skills Funding Agency,11/08/2016,16-18 Apprenticeships - Centralised Contract Management,Main Funding,GUILDFORD COLLEGE OF FURTHER & HIGHER EDUCATION,AP16C_3277,"-76,154.50",Programme System File
BEIS,Skills Funding Agency,11/08/2016,16-18 Apprenticeships - Centralised Contract Management,Main Funding,GUILDFORD COLLEGE OF FURTHER & HIGHER EDUCATION,AP16R_14140,"164,754.16",Programme System File
BEIS,Skills Funding Agency,11/08/2016,16-18 Apprenticeships - Centralised Contract Management,Main Funding,HACKNEY COMMUNITY COLLEGE,AP16R_14149,"51,866.38",Programme System File
BEIS,Skills Funding Agency,11/08/2016,16-18 Apprenticeships - Centralised Contract Management,Main Funding,HADDON TRAINING LTD,AP16R_13388,"130,696.82",Programme System File
BEIS,Skills Funding Agency,11/08/2016,16-18 Apprenticeships - Centralised Contract Management,Main Funding,HADLOW COLLEGE,AP16R_14052,"18,242.51",Programme System File
BEIS,Skills Funding Agency,11/08/2016,16-18 Apprenticeships - Centralised Contract Management,Main Funding,HAIR & BEAUTY INDUSTRY TRAINING LTD,AP16R_13386,"18,862.19",Programme System File
BEIS,Skills Funding Agency,11/08/2016,16-18 Apprenticeships - Centralised Contract Management,Main Funding,HAIR ACADEMY SOUTH WEST LIMITED,AP16R_13377,"93,676.72",Programme System File
BEIS,Skills Funding Agency,11/08/2016,16-18 Apprenticeships - Centralised Contract Management,Main Funding,HALESOWEN COLLEGE,AP16R_14152,"20,675.67",Programme System File
BEIS,Skills Funding Agency,11/08/2016,16-18 Apprenticeships - Centralised Contract Management,Main Funding,HALFORDS LTD,AP16C_3224,-687.06,Programme System File
BEIS,Skills Funding Agency,11/08/2016,16-18 Apprenticeships - Centralised Contract Management,Main Funding,HALFORDS LTD,AP16R_14027,"42,754.07",Programme System File
BEIS,Skills Funding Agency,11/08/2016,16-18 Apprenticeships - Centralised Contract Management,Main Funding,HAMPSHIRE COUNTY COUNCIL,AP16C_1046,"-25,455.50",Programme System File
BEIS,Skills Funding Agency,11/08/2016,16-18 Apprenticeships - Centralised Contract Management,Main Funding,HAMPSHIRE COUNTY COUNCIL,AP16C_137,"-19,472.25",Programme System File
BEIS,Skills Funding Agency,11/08/2016,16-18 Apprenticeships - Centralised Contract Management,Main Funding,HAMPSHIRE COUNTY COUNCIL,AP16C_1825,"-3,660.68",Programme System File
BEIS,Skills Funding Agency,11/08/2016,16-18 Apprenticeships - Centralised Contract Management,Main Funding,HAMPSHIRE COUNTY COUNCIL,AP16C_292,"-22,658.09",Programme System File
BEIS,Skills Funding Agency,11/08/2016,16-18 Apprenticeships - Centralised Contract Management,Main Funding,HAMPSHIRE COUNTY COUNCIL,AP16C_3283,"-1,263.48",Programme System File
BEIS,Skills Funding Agency,11/08/2016,16-18 Apprenticeships - Centralised Contract Management,Main Funding,HAMPSHIRE COUNTY COUNCIL,AP16C_630,"-20,063.93",Programme System File
BEIS,Skills Funding Agency,11/08/2016,16-18 Apprenticeships - Centralised Contract Management,Main Funding,HAMPSHIRE COUNTY COUNCIL,AP16R_10189,"29,140.50",Programme System File
BEIS,Skills Funding Agency,11/08/2016,16-18 Apprenticeships - Centralised Contract Management,Main Funding,HAMPSHIRE COUNTY COUNCIL,AP16R_11181,"7,622.49",Programme System File
BEIS,Skills Funding Agency,11/08/2016,16-18 Apprenticeships - Centralised Contract Management,Main Funding,HAMPSHIRE COUNTY COUNCIL,AP16R_12800,"6,082.87",Programme System File
BEIS,Skills Funding Agency,11/08/2016,16-18 Apprenticeships - Centralised Contract Management,Main Funding,HAMPSHIRE COUNTY COUNCIL,AP16R_14151,"4,144.12",Programme System File
BEIS,Skills Funding Agency,11/08/2016,16-18 Apprenticeships - Centralised Contract Management,Main Funding,HAMPSHIRE COUNTY COUNCIL,AP16R_4933,"19,472.25",Programme System File
BEIS,Skills Funding Agency,11/08/2016,16-18 Apprenticeships - Centralised Contract Management,Main Funding,HAMPSHIRE COUNTY COUNCIL,AP16R_6039,"22,658.09",Programme System File
BEIS,Skills Funding Agency,11/08/2016,16-18 Apprenticeships - Centralised Contract Management,Main Funding,HAMPSHIRE COUNTY COUNCIL,AP16R_7435,"25,843.93",Programme System File
BEIS,Skills Funding Agency,11/08/2016,16-18 Apprenticeships - Centralised Contract Management,Main Funding,HAMPSHIRE COUNTY COUNCIL,AP16R_8584,"25,455.50",Programme System File
BEIS,Skills Funding Agency,11/08/2016,16-18 Apprenticeships - Centralised Contract Management,Main Funding,HARLOW COLLEGE,AP16R_14154,"84,634.63",Programme System File
BEIS,Skills Funding Agency,11/08/2016,16-18 Apprenticeships - Centralised Contract Management,Main Funding,HARROW COLLEGE,AP16C_3284,"-2,214.92",Programme System File
BEIS,Skills Funding Agency,11/08/2016,16-18 Apprenticeships - Centralised Contract Management,Main Funding,HARROW COLLEGE,AP16R_14157,"36,134.38",Programme System File
BEIS,Skills Funding Agency,11/08/2016,16-18 Apprenticeships - Centralised Contract Management,Main Funding,HARTLEPOOL BOROUGH COUNCIL,AP16C_3288,"-1,983.07",Programme System File
BEIS,Skills Funding Agency,11/08/2016,16-18 Apprenticeships - Centralised Contract Management,Main Funding,HARTLEPOOL BOROUGH COUNCIL,AP16R_14163,"1,983.07",Programme System File
BEIS,Skills Funding Agency,11/08/2016,16-18 Apprenticeships - Centralised Contract Management,Main Funding,HARTLEPOOL COLLEGE OF HIGHER EDUCATION,AP16C_3286,"-10,541.10",Programme System File
BEIS,Skills Funding Agency,11/08/2016,16-18 Apprenticeships - Centralised Contract Management,Main Funding,HARTLEPOOL COLLEGE OF HIGHER EDUCATION,AP16R_14159,"296,407.01",Programme System File
BEIS,Skills Funding Agency,11/08/2016,16-18 Apprenticeships - Centralised Contract Management,Main Funding,HARTLEPOOL SIXTH FORM COLLEGE,AP16R_14164,"1,477.96",Programme System File
BEIS,Skills Funding Agency,11/08/2016,16-18 Apprenticeships - Centralised Contract Management,Main Funding,HARTPURY COLLEGE,AP16C_3290,-34.26,Programme System File
BEIS,Skills Funding Agency,11/08/2016,16-18 Apprenticeships - Centralised Contract Management,Main Funding,HARTPURY COLLEGE,AP16R_14166,"21,954.79",Programme System File
BEIS,Skills Funding Agency,11/08/2016,16-18 Apprenticeships - Centralised Contract Management,Main Funding,HAVANT COLLEGE,AP16C_3293,"-9,644.13",Programme System File
BEIS,Skills Funding Agency,11/08/2016,16-18 Apprenticeships - Centralised Contract Management,Main Funding,HAVANT COLLEGE,AP16R_14172,"9,644.13",Programme System File
BEIS,Skills Funding Agency,11/08/2016,16-18 Apprenticeships - Centralised Contract Management,Main Funding,HAVERING COLLEGE OF FURTHER & HIGHER EDUCATION,AP16C_3289,"-3,801.87",Programme System File
BEIS,Skills Funding Agency,11/08/2016,16-18 Apprenticeships - Centralised Contract Management,Main Funding,HAVERING COLLEGE OF FURTHER & HIGHER EDUCATION,AP16R_14165,"98,674.00",Programme System File
BEIS,Skills Funding Agency,11/08/2016,16-18 Apprenticeships - Centralised Contract Management,Main Funding,HAWK MANAGEMENT UK LTD,AP16C_3131,"-2,364.02",Programme System File
BEIS,Skills Funding Agency,11/08/2016,16-18 Apprenticeships - Centralised Contract Management,Main Funding,HAWK MANAGEMENT UK LTD,AP16R_13733,"184,824.27",Programme System File
BEIS,Skills Funding Agency,11/08/2016,16-18 Apprenticeships - Centralised Contract Management,Main Funding,HAYS TRAVEL LIMITED,AP16R_13934,"15,093.18",Programme System File
BEIS,Skills Funding Agency,11/08/2016,16-18 Apprenticeships - Centralised Contract Management,Main Funding,HEADMASTERS PARTNERSHIP LTD,AP16C_3129,"-221,384.85",Programme System File
BEIS,Skills Funding Agency,11/08/2016,16-18 Apprenticeships - Centralised Contract Management,Main Funding,HEADMASTERS PARTNERSHIP LTD,AP16R_13728,"226,852.21",Programme System File
BEIS,Skills Funding Agency,11/08/2016,16-18 Apprenticeships - Centralised Contract Management,Main Funding,HEALTH & SAFETY TRAINING LTD,AP16C_3225,"-1,679.51",Programme System File
BEIS,Skills Funding Agency,11/08/2016,16-18 Apprenticeships - Centralised Contract Management,Main Funding,HEALTH & SAFETY TRAINING LTD,AP16R_14033,"2,074.63",Programme System File
BEIS,Skills Funding Agency,11/08/2016,16-18 Apprenticeships - Centralised Contract Management,Main Funding,HEALTH EDUCATION NORTH EAST,AP16C_3222,"-11,766.56",Programme System File
BEIS,Skills Funding Agency,11/08/2016,16-18 Apprenticeships - Centralised Contract Management,Main Funding,HEALTH EDUCATION NORTH EAST,AP16R_14011,"60,135.43",Programme System File
BEIS,Skills Funding Agency,11/08/2016,16-18 Apprenticeships - Centralised Contract Management,Main Funding,HEART OF ENGLAND TRAINING LTD,AP16R_13379,174521.4,Programme System File
BEIS,Skills Funding Agency,11/08/2016,16-18 Apprenticeships - Centralised Contract Management,Main Funding,HEATHERCROFT TRAINING SERVICES LTD,AP16R_13381,"23,424.47",Programme System File
BEIS,Skills Funding Agency,11/08/2016,16-18 Apprenticeships - Centralised Contract Management,Main Funding,HENLEY COLLEGE COVENTRY,AP16R_14167,"24,741.31",Programme System File
BEIS,Skills Funding Agency,11/08/2016,16-18 Apprenticeships - Centralised Contract Management,Main Funding,HENLEY COLLEGE,AP16C_3291,"-3,001.76",Programme System File
BEIS,Skills Funding Agency,11/08/2016,16-18 Apprenticeships - Centralised Contract Management,Main Funding,HENLEY COLLEGE,AP16R_14169,"33,122.90",Programme System File
BEIS,Skills Funding Agency,11/08/2016,16-18 Apprenticeships - Centralised Contract Management,Main Funding,HEREFORDSHIRE & LUDLOW COLLEGE,AP16C_3295,"-199,280.10",Programme System File
BEIS,Skills Funding Agency,11/08/2016,16-18 Apprenticeships - Centralised Contract Management,Main Funding,HEREFORDSHIRE & LUDLOW COLLEGE,AP16R_14174,"199,157.75",Programme System File
BEIS,Skills Funding Agency,11/08/2016,16-18 Apprenticeships - Centralised Contract Management,Main Funding,HEREFORDSHIRE GROUP TRAINING ASSOCIATION LTD,AP16R_13387,"120,250.76",Programme System File
BEIS,Skills Funding Agency,11/08/2016,16-18 Apprenticeships - Centralised Contract Management,Main Funding,HEREWARD COLLEGE OF HIGHER EDUCATION,AP16C_3299,"-1,621.88",Programme System File
BEIS,Skills Funding Agency,11/08/2016,16-18 Apprenticeships - Centralised Contract Management,Main Funding,HEREWARD COLLEGE OF HIGHER EDUCATION,AP16R_14179,"1,857.71",Programme System File
BEIS,Skills Funding Agency,11/08/2016,16-18 Apprenticeships - Centralised Contract Management,Main Funding,HERTFORD REGIONAL COLLEGE,AP16C_3294,"-1,883.64",Programme System File
BEIS,Skills Funding Agency,11/08/2016,16-18 Apprenticeships - Centralised Contract Management,Main Funding,HERTFORD REGIONAL COLLEGE,AP16R_14173,"57,296.43",Programme System File
BEIS,Skills Funding Agency,11/08/2016,16-18 Apprenticeships - Centralised Contract Management,Main Funding,HIGHBURY COLLEGE,AP16R_14526,"216,142.73",Programme System File
BEIS,Skills Funding Agency,11/08/2016,16-18 Apprenticeships - Centralised Contract Management,Main Funding,HILLINGDON LONDON BOROUGH COUNCIL,AP16C_3240,"-12,039.08",Programme System File
BEIS,Skills Funding Agency,11/08/2016,16-18 Apprenticeships - Centralised Contract Management,Main Funding,HILLINGDON LONDON BOROUGH COUNCIL,AP16R_14073,"13,884.77",Programme System File
BEIS,Skills Funding Agency,11/08/2016,16-18 Apprenticeships - Centralised Contract Management,Main Funding,HILLINGDON TRAINING LTD,AP16C_3028,"-1,663.66",Programme System File
BEIS,Skills Funding Agency,11/08/2016,16-18 Apprenticeships - Centralised Contract Management,Main Funding,HILLINGDON TRAINING LTD,AP16R_13391,"49,782.55",Programme System File
BEIS,Skills Funding Agency,11/08/2016,16-18 Apprenticeships - Centralised Contract Management,Main Funding,HIT TRAINING LTD,AP16R_13763,"262,657.58",Programme System File
BEIS,Skills Funding Agency,11/08/2016,16-18 Apprenticeships - Centralised Contract Management,Main Funding,HOB SALON LIMITED,AP16R_14022,"34,691.88",Programme System File
BEIS,Skills Funding Agency,11/08/2016,16-18 Apprenticeships - Centralised Contract Management,Main Funding,HONDA MOTOR EUROPE LTD,AP16C_3140,"-1,557.20",Programme System File
BEIS,Skills Funding Agency,11/08/2016,16-18 Apprenticeships - Centralised Contract Management,Main Funding,HONDA MOTOR EUROPE LTD,AP16R_13755,"17,550.43",Programme System File
BEIS,Skills Funding Agency,11/08/2016,16-18 Apprenticeships - Centralised Contract Management,Main Funding,HOOPLE LTD,AP16R_13987,"12,679.21",Programme System File
BEIS,Skills Funding Agency,11/08/2016,16-18 Apprenticeships - Centralised Contract Management,Main Funding,HOPWOOD HALL COLLEGE,AP16C_3297,"-14,998.83",Programme System File
BEIS,Skills Funding Agency,11/08/2016,16-18 Apprenticeships - Centralised Contract Management,Main Funding,HOPWOOD HALL COLLEGE,AP16R_14177,"45,150.90",Programme System File
BEIS,Skills Funding Agency,11/08/2016,16-18 Apprenticeships - Centralised Contract Management,Main Funding,HOSPITALITY TRAINING PARTNERSHIP IOW LTD,AP16C_3030,-747.46,Programme System File
BEIS,Skills Funding Agency,11/08/2016,16-18 Apprenticeships - Centralised Contract Management,Main Funding,HOSPITALITY TRAINING PARTNERSHIP IOW LTD,AP16R_13396,"97,506.54",Programme System File
BEIS,Skills Funding Agency,11/08/2016,16-18 Apprenticeships - Centralised Contract Management,Main Funding,HOUSE OF CLIVE HAIR & BEAUTY LTD,AP16R_13576,"191,331.39",Programme System File
BEIS,Skills Funding Agency,11/08/2016,16-18 Apprenticeships - Centralised Contract Management,Main Funding,HSBC BANK PLC,AP16C_3141,-333.71,Programme System File
BEIS,Skills Funding Agency,11/08/2016,16-18 Apprenticeships - Centralised Contract Management,Main Funding,HSBC BANK PLC,AP16R_13759,"9,632.31",Programme System File
BEIS,Skills Funding Agency,11/08/2016,16-18 Apprenticeships - Centralised Contract Management,Main Funding,HUDDERSFIELD TEXTILE TRAINING LTD,AP16R_13402,"13,845.26",Programme System File
BEIS,Skills Funding Agency,11/08/2016,16-18 Apprenticeships - Centralised Contract Management,Main Funding,HUDSON & HUGHES TRAINING LTD,AP16R_12054,"2,457.21",Programme System File
BEIS,Skills Funding Agency,11/08/2016,16-18 Apprenticeships - Centralised Contract Management,Main Funding,HUDSON & HUGHES TRAINING LTD,AP16R_13406,"13,578.18",Programme System File
BEIS,Skills Funding Agency,11/08/2016,16-18 Apprenticeships - Centralised Contract Management,Main Funding,HUGH BAIRD COLLEGE,AP16R_14185,"47,690.68",Programme System File
BEIS,Skills Funding Agency,11/08/2016,16-18 Apprenticeships - Centralised Contract Management,Main Funding,HULL BUSINESS TRAINING CENTRE LTD,AP16R_13411,"39,040.10",Programme System File
BEIS,Skills Funding Agency,11/08/2016,16-18 Apprenticeships - Centralised Contract Management,Main Funding,HULL COLLEGE,AP16C_3300,"-8,083.68",Programme System File
BEIS,Skills Funding Agency,11/08/2016,16-18 Apprenticeships - Centralised Contract Management,Main Funding,HULL COLLEGE,AP16R_14182,"328,901.66",Programme System File
BEIS,Skills Funding Agency,11/08/2016,16-18 Apprenticeships - Centralised Contract Management,Main Funding,HUMBER LEARNING CONSORTIUM,AP16C_3032,"-4,961.47",Programme System File
BEIS,Skills Funding Agency,11/08/2016,16-18 Apprenticeships - Centralised Contract Management,Main Funding,HUMBER LEARNING CONSORTIUM,AP16R_13398,"21,590.83",Programme System File
BEIS,Skills Funding Agency,11/08/2016,16-18 Apprenticeships - Centralised Contract Management,Main Funding,HUMBERSIDE ENGINEERING TRAINING ASSOCIATION LTD,AP16R_13395,"167,375.66",Programme System File
BEIS,Skills Funding Agency,11/08/2016,16-18 Apprenticeships - Centralised Contract Management,Main Funding,HUNTINGDONSHIRE REGIONAL COLLEGE,AP16R_14529,"27,298.72",Programme System File
BEIS,Skills Funding Agency,11/08/2016,16-18 Apprenticeships - Centralised Contract Management,Main Funding,ICON VOCATIONAL TRAINING LTD,AP16C_3035,"-1,391.06",Programme System File
BEIS,Skills Funding Agency,11/08/2016,16-18 Apprenticeships - Centralised Contract Management,Main Funding,ICON VOCATIONAL TRAINING LTD,AP16R_13403,"47,521.25",Programme System File
BEIS,Skills Funding Agency,11/08/2016,16-18 Apprenticeships - Centralised Contract Management,Main Funding,IMPACT LEARNING & DATA SOLUTIONS LTD,AP16R_13858,652.92,Programme System File
BEIS,Skills Funding Agency,11/08/2016,16-18 Apprenticeships - Centralised Contract Management,Main Funding,IN-COMM TRAINING AND BUSINESS SERVICES LTD,AP16C_3043,"-4,415.10",Programme System File
BEIS,Skills Funding Agency,11/08/2016,16-18 Apprenticeships - Centralised Contract Management,Main Funding,IN-COMM TRAINING AND BUSINESS SERVICES LTD,AP16R_13419,"53,116.72",Programme System File
BEIS,Skills Funding Agency,11/08/2016,16-18 Apprenticeships - Centralised Contract Management,Main Funding,INDEPENDENT TRAINING SERVICES LTD,AP16R_13423,"47,301.13",Programme System File
BEIS,Skills Funding Agency,11/08/2016,16-18 Apprenticeships - Centralised Contract Management,Main Funding,INGEUS TRAINING LTD,AP16R_13702,"30,173.96",Programme System File
BEIS,Skills Funding Agency,11/08/2016,16-18 Apprenticeships - Centralised Contract Management,Main Funding,INSPIRE TO INDEPENDENCE (i2i) LTD,AP16R_13749,"4,934.42",Programme System File
BEIS,Skills Funding Agency,11/08/2016,16-18 Apprenticeships - Centralised Contract Management,Main Funding,INSTITUTE OF SWIMMING LTD,AP16R_7115,"100,174.43",Programme System File
BEIS,Skills Funding Agency,11/08/2016,16-18 Apprenticeships - Centralised Contract Management,Main Funding,INSTITUTE OF SWIMMING LTD,AP16R_9321,"74,183.48",Programme System File
BEIS,Skills Funding Agency,11/08/2016,16-18 Apprenticeships - Centralised Contract Management,Main Funding,INSTITUTE OF SWIMMING LTD,AP16R_9847,"-186,073.73",Programme System File
BEIS,Skills Funding Agency,11/08/2016,16-18 Apprenticeships - Centralised Contract Management,Main Funding,INTEC BUSINESS COLLEGES PLC,AP16R_13427,"54,478.61",Programme System File
BEIS,Skills Funding Agency,11/08/2016,16-18 Apprenticeships - Centralised Contract Management,Main Funding,INTER TRAINING SERVICES LTD,AP16R_13435,"17,635.11",Programme System File
BEIS,Skills Funding Agency,11/08/2016,16-18 Apprenticeships - Centralised Contract Management,Main Funding,INTERACTIVE DEVELOPMENT EDUCATION LTD,AP16R_13783,"10,804.13",Programme System File
BEIS,Skills Funding Agency,11/08/2016,16-18 Apprenticeships - Centralised Contract Management,Main Funding,INTROTRAIN (ACE) LTD,AP16C_3213,"-21,322.25",Programme System File
BEIS,Skills Funding Agency,11/08/2016,16-18 Apprenticeships - Centralised Contract Management,Main Funding,INTROTRAIN (ACE) LTD,AP16R_13978,"105,770.16",Programme System File
BEIS,Skills Funding Agency,11/08/2016,16-18 Apprenticeships - Centralised Contract Management,Main Funding,INTUITIONS LTD,AP16R_13415,"51,717.57",Programme System File
BEIS,Skills Funding Agency,11/08/2016,16-18 Apprenticeships - Centralised Contract Management,Main Funding,IPS INTERNATIONAL LTD,AP16R_13420,"58,416.54",Programme System File
BEIS,Skills Funding Agency,11/08/2016,16-18 Apprenticeships - Centralised Contract Management,Main Funding,ISIS TRAINING SERVICES LTD,AP16R_13425,"81,698.38",Programme System File
BEIS,Skills Funding Agency,11/08/2016,16-18 Apprenticeships - Centralised Contract Management,Main Funding,ISLE OF WIGHT COLLEGE,AP16R_14189,"53,992.01",Programme System File
BEIS,Skills Funding Agency,11/08/2016,16-18 Apprenticeships - Centralised Contract Management,Main Funding,ITEC NORTH EAST LTD,AP16R_13430,"43,850.55",Programme System File
BEIS,Skills Funding Agency,11/08/2016,16-18 Apprenticeships - Centralised Contract Management,Main Funding,ITS TRAINING LIMITED,AP16R_13982,"11,418.35",Programme System File
BEIS,Skills Funding Agency,11/08/2016,16-18 Apprenticeships - Centralised Contract Management,Main Funding,IXION GROUP CONTRACTS LTD,AP16R_13972,"85,158.96",Programme System File
BEIS,Skills Funding Agency,11/08/2016,16-18 Apprenticeships - Centralised Contract Management,Main Funding,JAGUAR LAND ROVER HOLDINGS LTD,AP16R_13735,"106,151.77",Programme System File
BEIS,Skills Funding Agency,11/08/2016,16-18 Apprenticeships - Centralised Contract Management,Main Funding,JANCETT CHILDCARE & JACE TRAINING LIMITED,AP16R_14008,"48,278.81",Programme System File
BEIS,Skills Funding Agency,11/08/2016,16-18 Apprenticeships - Centralised Contract Management,Main Funding,JARVIS TRAINING MANAGEMENT LTD,AP16R_13433,"86,311.02",Programme System File
BEIS,Skills Funding Agency,11/08/2016,16-18 Apprenticeships - Centralised Contract Management,Main Funding,JBC COMPUTER TRAINING LIMITED,AP16R_13801,"6,910.36",Programme System File
BEIS,Skills Funding Agency,11/08/2016,16-18 Apprenticeships - Centralised Contract Management,Main Funding,JGA LTD,AP16R_13642,"48,536.11",Programme System File
BEIS,Skills Funding Agency,11/08/2016,16-18 Apprenticeships - Centralised Contract Management,Main Funding,JOBWISE TRAINING LTD,AP16C_3045,"-37,579.24",Programme System File
BEIS,Skills Funding Agency,11/08/2016,16-18 Apprenticeships - Centralised Contract Management,Main Funding,JOBWISE TRAINING LTD,AP16R_13437,"38,000.29",Programme System File
BEIS,Skills Funding Agency,11/08/2016,16-18 Apprenticeships - Centralised Contract Management,Main Funding,JOHN LAING TRAINING LTD,AP16R_13442,"18,167.86",Programme System File
BEIS,Skills Funding Agency,11/08/2016,16-18 Apprenticeships - Centralised Contract Management,Main Funding,JOHN LEGGOTT SIXTH FORM COLLEGE,AP16C_3495,"-5,926.58",Programme System File
BEIS,Skills Funding Agency,11/08/2016,16-18 Apprenticeships - Centralised Contract Management,Main Funding,JOHN LEGGOTT SIXTH FORM COLLEGE,AP16R_14550,"5,926.58",Programme System File
BEIS,Skills Funding Agency,11/08/2016,16-18 Apprenticeships - Centralised Contract Management,Main Funding,JOHN RUSKIN COLLEGE,AP16R_14193,"47,619.96",Programme System File
BEIS,Skills Funding Agency,11/08/2016,16-18 Apprenticeships - Centralised Contract Management,Main Funding,JOINT LEARNING PARTNERSHIP LTD,AP16R_13445,"84,550.56",Programme System File
BEIS,Skills Funding Agency,11/08/2016,16-18 Apprenticeships - Centralised Contract Management,Main Funding,JTL,AP16C_3048,"-20,351.93",Programme System File
BEIS,Skills Funding Agency,11/08/2016,16-18 Apprenticeships - Centralised Contract Management,Main Funding,JTL,AP16R_13447,"1,387,060.11",Programme System File
BEIS,Skills Funding Agency,11/08/2016,16-18 Apprenticeships - Centralised Contract Management,Main Funding,K & G HAIR LLP,AP16R_13965,"57,150.85",Programme System File
BEIS,Skills Funding Agency,11/08/2016,16-18 Apprenticeships - Centralised Contract Management,Main Funding,KAPLAN FINANCIAL LIMITED,AP16C_3507,"-42,363.20",Programme System File
BEIS,Skills Funding Agency,11/08/2016,16-18 Apprenticeships - Centralised Contract Management,Main Funding,KAPLAN FINANCIAL LIMITED,AP16R_14590,"235,042.04",Programme System File
BEIS,Skills Funding Agency,11/08/2016,16-18 Apprenticeships - Centralised Contract Management,Main Funding,KEITS TRAINING SERVICES LTD,AP16R_13454,"165,166.39",Programme System File
BEIS,Skills Funding Agency,11/08/2016,16-18 Apprenticeships - Centralised Contract Management,Main Funding,KENDAL COLLEGE,AP16C_3307,"-2,327.31",Programme System File
BEIS,Skills Funding Agency,11/08/2016,16-18 Apprenticeships - Centralised Contract Management,Main Funding,KENDAL COLLEGE,AP16R_14197,"67,505.20",Programme System File
BEIS,Skills Funding Agency,11/08/2016,16-18 Apprenticeships - Centralised Contract Management,Main Funding,KENSINGTON & CHELSEA COLLEGE,AP16C_3304,"-6,756.27",Programme System File
BEIS,Skills Funding Agency,11/08/2016,16-18 Apprenticeships - Centralised Contract Management,Main Funding,KENSINGTON & CHELSEA COLLEGE,AP16R_14192,"13,167.73",Programme System File
BEIS,Skills Funding Agency,11/08/2016,16-18 Apprenticeships - Centralised Contract Management,Main Funding,KENT COUNTY COUNCIL,AP16C_3305,"-18,131.75",Programme System File
BEIS,Skills Funding Agency,11/08/2016,16-18 Apprenticeships - Centralised Contract Management,Main Funding,KENT COUNTY COUNCIL,AP16R_14195,"64,948.21",Programme System File
BEIS,Skills Funding Agency,11/08/2016,16-18 Apprenticeships - Centralised Contract Management,Main Funding,KENTUCKY FRIED CHICKEN GREAT BRITAIN LTD,AP16R_13939,"17,524.86",Programme System File
BEIS,Skills Funding Agency,11/08/2016,16-18 Apprenticeships - Centralised Contract Management,Main Funding,KEY TRAINING LTD,AP16R_13443,"321,025.93",Programme System File
BEIS,Skills Funding Agency,11/08/2016,16-18 Apprenticeships - Centralised Contract Management,Main Funding,KINGSTON COLLEGE,AP16C_3310,"-3,250.48",Programme System File
BEIS,Skills Funding Agency,11/08/2016,16-18 Apprenticeships - Centralised Contract Management,Main Funding,KINGSTON COLLEGE,AP16R_14199,"38,107.93",Programme System File
BEIS,Skills Funding Agency,11/08/2016,16-18 Apprenticeships - Centralised Contract Management,Main Funding,KINGSTON MAURWARD COLLEGE,AP16R_14201,"44,287.04",Programme System File
BEIS,Skills Funding Agency,11/08/2016,16-18 Apprenticeships - Centralised Contract Management,Main Funding,KINGSTON UPON HULL CITY COUNCIL,AP16C_3302,"-6,675.97",Programme System File
BEIS,Skills Funding Agency,11/08/2016,16-18 Apprenticeships - Centralised Contract Management,Main Funding,KINGSTON UPON HULL CITY COUNCIL,AP16R_14187,"135,658.88",Programme System File
BEIS,Skills Funding Agency,11/08/2016,16-18 Apprenticeships - Centralised Contract Management,Main Funding,KIRKDALE INDUSTRIAL TRAINING SERVICES LTD,AP16C_3054,-319.93,Programme System File
BEIS,Skills Funding Agency,11/08/2016,16-18 Apprenticeships - Centralised Contract Management,Main Funding,KIRKDALE INDUSTRIAL TRAINING SERVICES LTD,AP16R_13453,"84,980.80",Programme System File
BEIS,Skills Funding Agency,11/08/2016,16-18 Apprenticeships - Centralised Contract Management,Main Funding,KIRKLEES COLLEGE,AP16R_14180,"221,910.99",Programme System File
BEIS,Skills Funding Agency,11/08/2016,16-18 Apprenticeships - Centralised Contract Management,Main Funding,KNOWSLEY COMMUNITY COLLEGE,AP16R_14203,"27,439.09",Programme System File
BEIS,Skills Funding Agency,11/08/2016,16-18 Apprenticeships - Centralised Contract Management,Main Funding,KWIK FIT GB LTD,AP16R_13458,"130,358.18",Programme System File
BEIS,Skills Funding Agency,11/08/2016,16-18 Apprenticeships - Centralised Contract Management,Main Funding,LAGAT LTD,AP16R_13459,"32,886.86",Programme System File
BEIS,Skills Funding Agency,11/08/2016,16-18 Apprenticeships - Centralised Contract Management,Main Funding,LAKES COLLEGE WEST CUMBRIA,AP16R_14208,"84,092.32",Programme System File
BEIS,Skills Funding Agency,11/08/2016,16-18 Apprenticeships - Centralised Contract Management,Main Funding,LAMBETH COLLEGE AT CLAPHAM CENTRE,AP16R_14211,"-604,616.48",Programme System File
BEIS,Skills Funding Agency,11/08/2016,16-18 Apprenticeships - Centralised Contract Management,Main Funding,LANCASTER & MORECAMBE COLLEGE,AP16R_14215,"54,189.89",Programme System File
BEIS,Skills Funding Agency,11/08/2016,16-18 Apprenticeships - Centralised Contract Management,Main Funding,LANCASTER TRAINING SERVICES LTD,AP16C_3058,"-2,595.95",Programme System File
BEIS,Skills Funding Agency,11/08/2016,16-18 Apprenticeships - Centralised Contract Management,Main Funding,LANCASTER TRAINING SERVICES LTD,AP16R_13468,"61,776.01",Programme System File
BEIS,Skills Funding Agency,11/08/2016,16-18 Apprenticeships - Centralised Contract Management,Main Funding,LAWN TENNIS ASSOCIATION LTD,AP16R_13860,"31,606.12",Programme System File
BEIS,Skills Funding Agency,11/08/2016,16-18 Apprenticeships - Centralised Contract Management,Main Funding,LEAGUE FOOTBALL EDUCATION,AP16R_14037,"649,378.71",Programme System File
BEIS,Skills Funding Agency,11/08/2016,16-18 Apprenticeships - Centralised Contract Management,Main Funding,LEARNDIRECT LTD,AP16C_3063,"-172,028.02",Programme System File
BEIS,Skills Funding Agency,11/08/2016,16-18 Apprenticeships - Centralised Contract Management,Main Funding,LEARNDIRECT LTD,AP16R_13471,"1,137,351.89",Programme System File
BEIS,Skills Funding Agency,11/08/2016,16-18 Apprenticeships - Centralised Contract Management,Main Funding,LEARNING CURVE JAA LIMITED,AP16R_12365,"148,053.48",Programme System File
BEIS,Skills Funding Agency,11/08/2016,16-18 Apprenticeships - Centralised Contract Management,Main Funding,LEARNING CURVE JAA LIMITED,AP16R_13717,"146,392.65",Programme System File
BEIS,Skills Funding Agency,11/08/2016,16-18 Apprenticeships - Centralised Contract Management,Main Funding,LEARNING CURVE,AP16R_13645,257.29,Programme System File
BEIS,Skills Funding Agency,11/08/2016,16-18 Apprenticeships - Centralised Contract Management,Main Funding,LEARNING PARTNERSHIP FOR CORNWALL AND THE ISLES OF SCILLY LIMITED,AP16C_3108,"-8,848.03",Programme System File
BEIS,Skills Funding Agency,11/08/2016,16-18 Apprenticeships - Centralised Contract Management,Main Funding,LEARNING PARTNERSHIP FOR CORNWALL AND THE ISLES OF SCILLY LIMITED,AP16R_13649,"16,822.55",Programme System File
BEIS,Skills Funding Agency,11/08/2016,16-18 Apprenticeships - Centralised Contract Management,Main Funding,LEARNING SKILLS PARTNERSHIP LIMITED,AP16R_13958,"87,680.82",Programme System File
BEIS,Skills Funding Agency,11/08/2016,16-18 Apprenticeships - Centralised Contract Management,Main Funding,LEEDS CITY COLLEGE,AP16C_3491,"-4,302.47",Programme System File
BEIS,Skills Funding Agency,11/08/2016,16-18 Apprenticeships - Centralised Contract Management,Main Funding,LEEDS CITY COLLEGE,AP16R_14544,"87,410.32",Programme System File
BEIS,Skills Funding Agency,11/08/2016,16-18 Apprenticeships - Centralised Contract Management,Main Funding,LEEDS COLLEGE OF BUILDING,AP16C_3312,"-18,310.19",Programme System File
BEIS,Skills Funding Agency,11/08/2016,16-18 Apprenticeships - Centralised Contract Management,Main Funding,LEEDS COLLEGE OF BUILDING,AP16R_14206,"174,707.63",Programme System File
BEIS,Skills Funding Agency,11/08/2016,16-18 Apprenticeships - Centralised Contract Management,Main Funding,LEICESTER CITY COUNCIL,AP16R_14210,94.11,Programme System File
BEIS,Skills Funding Agency,11/08/2016,16-18 Apprenticeships - Centralised Contract Management,Main Funding,LEICESTER COLLEGE CO FREEMENS PARK CAMPUS,AP16C_3314,"-40,194.93",Programme System File
BEIS,Skills Funding Agency,11/08/2016,16-18 Apprenticeships - Centralised Contract Management,Main Funding,LEICESTER COLLEGE CO FREEMENS PARK CAMPUS,AP16R_14213,"225,565.89",Programme System File
BEIS,Skills Funding Agency,11/08/2016,16-18 Apprenticeships - Centralised Contract Management,Main Funding,LEICESTERSHIRE COUNTY COUNCIL,AP16R_14217,"8,444.46",Programme System File
BEIS,Skills Funding Agency,11/08/2016,16-18 Apprenticeships - Centralised Contract Management,Main Funding,LESLIE FRANCES HAIR FASHIONS LTD,AP16C_3061,"-2,472.11",Programme System File
BEIS,Skills Funding Agency,11/08/2016,16-18 Apprenticeships - Centralised Contract Management,Main Funding,LESLIE FRANCES HAIR FASHIONS LTD,AP16R_13470,"31,556.18",Programme System File
BEIS,Skills Funding Agency,11/08/2016,16-18 Apprenticeships - Centralised Contract Management,Main Funding,LIFESKILLS SOLUTIONS LTD,AP16R_13474,"51,661.51",Programme System File
BEIS,Skills Funding Agency,11/08/2016,16-18 Apprenticeships - Centralised Contract Management,Main Funding,LIFETIME TRAINING GROUP LTD,AP16C_3066,"-156,207.79",Programme System File
BEIS,Skills Funding Agency,11/08/2016,16-18 Apprenticeships - Centralised Contract Management,Main Funding,LIFETIME TRAINING GROUP LTD,AP16R_13478,"945,663.23",Programme System File
BEIS,Skills Funding Agency,11/08/2016,16-18 Apprenticeships - Centralised Contract Management,Main Funding,LIGA (UK) LTD,AP16R_12624,"46,403.14",Programme System File
BEIS,Skills Funding Agency,11/08/2016,16-18 Apprenticeships - Centralised Contract Management,Main Funding,LIGA (UK) LTD,AP16R_13980,"46,593.14",Programme System File
BEIS,Skills Funding Agency,11/08/2016,16-18 Apprenticeships - Centralised Contract Management,Main Funding,LINCOLN COLLEGE,AP16R_14218,"142,040.23",Programme System File
BEIS,Skills Funding Agency,11/08/2016,16-18 Apprenticeships - Centralised Contract Management,Main Funding,LITE STOCKPORT LTD,AP16R_13712,"19,809.68",Programme System File
BEIS,Skills Funding Agency,11/08/2016,16-18 Apprenticeships - Centralised Contract Management,Main Funding,LITS LTD,AP16R_13467,"10,048.17",Programme System File
BEIS,Skills Funding Agency,11/08/2016,16-18 Apprenticeships - Centralised Contract Management,Main Funding,LIVERPOOL CHAMBER TRAINING LTD,AP16R_13924,"52,794.61",Programme System File
BEIS,Skills Funding Agency,11/08/2016,16-18 Apprenticeships - Centralised Contract Management,Main Funding,LOCOMOTIVATION LTD,AP16R_13485,"29,698.89",Programme System File
BEIS,Skills Funding Agency,11/08/2016,16-18 Apprenticeships - Centralised Contract Management,Main Funding,LONDON BOROUGH OF WALTHAM FOREST,AP16R_14454,"4,703.71",Programme System File
BEIS,Skills Funding Agency,11/08/2016,16-18 Apprenticeships - Centralised Contract Management,Main Funding,LONDON COLLEGE OF BEAUTY THERAPY LTD,AP16R_13480,-875.94,Programme System File
BEIS,Skills Funding Agency,11/08/2016,16-18 Apprenticeships - Centralised Contract Management,Main Funding,LONDON LEARNING CONSORTIUM C.I.C.,AP16R_13819,"10,388.88",Programme System File
BEIS,Skills Funding Agency,11/08/2016,16-18 Apprenticeships - Centralised Contract Management,Main Funding,LONDON SKILLS & DEVELOPMENT NETWORK LIMITED,AP16C_3177,"-1,441.72",Programme System File
BEIS,Skills Funding Agency,11/08/2016,16-18 Apprenticeships - Centralised Contract Management,Main Funding,LONDON SKILLS & DEVELOPMENT NETWORK LIMITED,AP16R_13856,"6,213.07",Programme System File
BEIS,Skills Funding Agency,11/08/2016,16-18 Apprenticeships - Centralised Contract Management,Main Funding,LONDON VESTA COLLEGE LIMITED,AP16C_3228,-293.6,Programme System File
BEIS,Skills Funding Agency,11/08/2016,16-18 Apprenticeships - Centralised Contract Management,Main Funding,LONDON VESTA COLLEGE LIMITED,AP16R_12689,"27,975.84",Programme System File
BEIS,Skills Funding Agency,11/08/2016,16-18 Apprenticeships - Centralised Contract Management,Main Funding,LONDON VESTA COLLEGE LIMITED,AP16R_14044,"13,922.34",Programme System File
BEIS,Skills Funding Agency,11/08/2016,16-18 Apprenticeships - Centralised Contract Management,Main Funding,LOOKFANTASTIC TRAINING LIMITED,AP16R_13766,"30,688.23",Programme System File
BEIS,Skills Funding Agency,11/08/2016,16-18 Apprenticeships - Centralised Contract Management,Main Funding,LOUGHBOROUGH COLLEGE,AP16C_3321,"-63,792.20",Programme System File
BEIS,Skills Funding Agency,11/08/2016,16-18 Apprenticeships - Centralised Contract Management,Main Funding,LOUGHBOROUGH COLLEGE,AP16R_14226,"295,475.42",Programme System File
BEIS,Skills Funding Agency,11/08/2016,16-18 Apprenticeships - Centralised Contract Management,Main Funding,LOWESTOFT COLLEGE,AP16R_14228,"77,674.13",Programme System File
BEIS,Skills Funding Agency,11/08/2016,16-18 Apprenticeships - Centralised Contract Management,Main Funding,LUTON BOROUGH COUNCIL,AP16R_14229,"30,250.53",Programme System File
BEIS,Skills Funding Agency,11/08/2016,16-18 Apprenticeships - Centralised Contract Management,Main Funding,M I T SKILLS LIMITED,AP16R_13505,"131,899.38",Programme System File
BEIS,Skills Funding Agency,11/08/2016,16-18 Apprenticeships - Centralised Contract Management,Main Funding,MACCLESFIELD COLLEGE,AP16C_3324,"-1,019.26",Programme System File
BEIS,Skills Funding Agency,11/08/2016,16-18 Apprenticeships - Centralised Contract Management,Main Funding,MACCLESFIELD COLLEGE,AP16R_14231,"28,431.03",Programme System File
BEIS,Skills Funding Agency,11/08/2016,16-18 Apprenticeships - Centralised Contract Management,Main Funding,MAINSTREAM TRAINING LTD,AP16R_13730,"5,614.16",Programme System File
BEIS,Skills Funding Agency,11/08/2016,16-18 Apprenticeships - Centralised Contract Management,Main Funding,MANCHESTER COLLEGE,AP16C_3487,"-46,435.64",Programme System File
BEIS,Skills Funding Agency,11/08/2016,16-18 Apprenticeships - Centralised Contract Management,Main Funding,MANCHESTER COLLEGE,AP16R_14536,"188,203.27",Programme System File
BEIS,Skills Funding Agency,11/08/2016,16-18 Apprenticeships - Centralised Contract Management,Main Funding,MANCHESTER METRO UNIVERSITY,AP16C_3326,-878.89,Programme System File
BEIS,Skills Funding Agency,11/08/2016,16-18 Apprenticeships - Centralised Contract Management,Main Funding,MANCHESTER METRO UNIVERSITY,AP16R_14233,"15,482.17",Programme System File
BEIS,Skills Funding Agency,11/08/2016,16-18 Apprenticeships - Centralised Contract Management,Main Funding,MANTRA LEARNING LTD,AP16R_13492,"27,174.31",Programme System File
BEIS,Skills Funding Agency,11/08/2016,16-18 Apprenticeships - Centralised Contract Management,Main Funding,MARDELL ASSOCIATES LTD,AP16R_13619,"100,363.68",Programme System File
BEIS,Skills Funding Agency,11/08/2016,16-18 Apprenticeships - Centralised Contract Management,Main Funding,MARITIME & ENGINEERING COLLEGE NORTH WEST,AP16R_13464,"62,496.40",Programme System File
BEIS,Skills Funding Agency,11/08/2016,16-18 Apprenticeships - Centralised Contract Management,Main Funding,MARR CORPORTATION LIMITED,AP16R_13880,"91,619.47",Programme System File
BEIS,Skills Funding Agency,11/08/2016,16-18 Apprenticeships - Centralised Contract Management,Main Funding,MATRIX TRAINING & DEVELOPMENT LTD,AP16C_3226,-979.01,Programme System File
BEIS,Skills Funding Agency,11/08/2016,16-18 Apprenticeships - Centralised Contract Management,Main Funding,MATRIX TRAINING & DEVELOPMENT LTD,AP16R_14041,"16,112.85",Programme System File
BEIS,Skills Funding Agency,11/08/2016,16-18 Apprenticeships - Centralised Contract Management,Main Funding,MCARTHUR DEAN TRAINING LTD,AP16R_13496,"52,110.25",Programme System File
BEIS,Skills Funding Agency,11/08/2016,16-18 Apprenticeships - Centralised Contract Management,Main Funding,MEADOWHALL TRAINING LIMITED,AP16R_13746,"44,197.80",Programme System File
BEIS,Skills Funding Agency,11/08/2016,16-18 Apprenticeships - Centralised Contract Management,Main Funding,MERCEDES-BENZ UK LTD,AP16R_13859,"120,305.90",Programme System File
BEIS,Skills Funding Agency,11/08/2016,16-18 Apprenticeships - Centralised Contract Management,Main Funding,MERCIA PARTNERSHIP UK LTD,AP16R_13490,"13,692.36",Programme System File
BEIS,Skills Funding Agency,11/08/2016,16-18 Apprenticeships - Centralised Contract Management,Main Funding,METSKILL LTD,AP16R_13491,"193,823.56",Programme System File
BEIS,Skills Funding Agency,11/08/2016,16-18 Apprenticeships - Centralised Contract Management,Main Funding,MI COMPUTSOLUTIONS INCORPORATED,AP16R_13795,"8,282.48",Programme System File
BEIS,Skills Funding Agency,11/08/2016,16-18 Apprenticeships - Centralised Contract Management,Main Funding,MICHAEL JOHN OF LIVERPOOL,AP16C_3151,"-1,885.40",Programme System File
BEIS,Skills Funding Agency,11/08/2016,16-18 Apprenticeships - Centralised Contract Management,Main Funding,MICHAEL JOHN OF LIVERPOOL,AP16R_13786,"55,325.54",Programme System File
BEIS,Skills Funding Agency,11/08/2016,16-18 Apprenticeships - Centralised Contract Management,Main Funding,MICHAELJOHN TRAINING,AP16R_13769,"45,363.11",Programme System File
BEIS,Skills Funding Agency,11/08/2016,16-18 Apprenticeships - Centralised Contract Management,Main Funding,MID KENT COLLEGE,AP16C_3328,"-16,216.22",Programme System File
BEIS,Skills Funding Agency,11/08/2016,16-18 Apprenticeships - Centralised Contract Management,Main Funding,MID KENT COLLEGE,AP16R_14241,"100,502.57",Programme System File
BEIS,Skills Funding Agency,11/08/2016,16-18 Apprenticeships - Centralised Contract Management,Main Funding,MIDDLESBROUGH COLLEGE,AP16C_3333,"-11,697.92",Programme System File
BEIS,Skills Funding Agency,11/08/2016,16-18 Apprenticeships - Centralised Contract Management,Main Funding,MIDDLESBROUGH COLLEGE,AP16R_14248,"92,191.26",Programme System File
BEIS,Skills Funding Agency,11/08/2016,16-18 Apprenticeships - Centralised Contract Management,Main Funding,MIDDLESBROUGH COUNCIL,AP16R_14244,"20,952.98",Programme System File
BEIS,Skills Funding Agency,11/08/2016,16-18 Apprenticeships - Centralised Contract Management,Main Funding,MILLBROOK MANAGEMENT SERVICES LTD,AP16R_13581,37516.52,Programme System File
BEIS,Skills Funding Agency,11/08/2016,16-18 Apprenticeships - Centralised Contract Management,Main Funding,MILTON KEYNES COLLEGE,AP16R_14239,"69,439.21",Programme System File
BEIS,Skills Funding Agency,11/08/2016,16-18 Apprenticeships - Centralised Contract Management,Main Funding,MILTON KEYNES COUNCIL,AP16R_14243,872.28,Programme System File
BEIS,Skills Funding Agency,11/08/2016,16-18 Apprenticeships - Centralised Contract Management,Main Funding,MINISTRY OF DEFENCE,AP16C_3206,"-156,951.76",Programme System File
BEIS,Skills Funding Agency,11/08/2016,16-18 Apprenticeships - Centralised Contract Management,Main Funding,MINISTRY OF DEFENCE,AP16C_3211,"-655,425.83",Programme System File
BEIS,Skills Funding Agency,11/08/2016,16-18 Apprenticeships - Centralised Contract Management,Main Funding,MINISTRY OF DEFENCE,AP16R_13752,"2,069.93",Programme System File
BEIS,Skills Funding Agency,11/08/2016,16-18 Apprenticeships - Centralised Contract Management,Main Funding,MINISTRY OF DEFENCE,AP16R_13954,"156,951.76",Programme System File
BEIS,Skills Funding Agency,11/08/2016,16-18 Apprenticeships - Centralised Contract Management,Main Funding,MINISTRY OF DEFENCE,AP16R_13967,"694,604.43",Programme System File
BEIS,Skills Funding Agency,11/08/2016,16-18 Apprenticeships - Centralised Contract Management,Main Funding,MITIE GROUP PLC,AP16R_13884,"2,652.99",Programme System File
BEIS,Skills Funding Agency,11/08/2016,16-18 Apprenticeships - Centralised Contract Management,Main Funding,MOBILE CARE QUALIFICATIONS LTD,AP16R_13500,"15,805.64",Programme System File
BEIS,Skills Funding Agency,11/08/2016,16-18 Apprenticeships - Centralised Contract Management,Main Funding,MOMENTUM TRAINING & CONSULTANCY LTD,AP16R_14017,"24,405.10",Programme System File
BEIS,Skills Funding Agency,11/08/2016,16-18 Apprenticeships - Centralised Contract Management,Main Funding,MOTOR INSURANCE REPAIR RESEARCH CENTRE,AP16R_13640,"25,598.00",Programme System File
BEIS,Skills Funding Agency,11/08/2016,16-18 Apprenticeships - Centralised Contract Management,Main Funding,MOULTON COLLEGE,AP16C_3331,"-2,906.88",Programme System File
BEIS,Skills Funding Agency,11/08/2016,16-18 Apprenticeships - Centralised Contract Management,Main Funding,MOULTON COLLEGE,AP16R_14246,"67,745.00",Programme System File
BEIS,Skills Funding Agency,11/08/2016,16-18 Apprenticeships - Centralised Contract Management,Main Funding,MPOWER TRAINING SOLUTIONS LTD,AP16R_13874,"4,147.10",Programme System File
BEIS,Skills Funding Agency,11/08/2016,16-18 Apprenticeships - Centralised Contract Management,Main Funding,MYERSCOUGH COLLEGE,AP16C_3335,"-21,184.11",Programme System File
BEIS,Skills Funding Agency,11/08/2016,16-18 Apprenticeships - Centralised Contract Management,Main Funding,MYERSCOUGH COLLEGE,AP16R_14251,"105,486.35",Programme System File
BEIS,Skills Funding Agency,11/08/2016,16-18 Apprenticeships - Centralised Contract Management,Main Funding,N & B TRAINING CO LTD,AP16R_13508,"15,616.43",Programme System File
BEIS,Skills Funding Agency,11/08/2016,16-18 Apprenticeships - Centralised Contract Management,Main Funding,NATIONAL BUSINESS COLLEGE LIMITED,AP16C_2481,"-89,499.50",Programme System File
BEIS,Skills Funding Agency,11/08/2016,16-18 Apprenticeships - Centralised Contract Management,Main Funding,NATIONAL BUSINESS COLLEGE LIMITED,AP16C_2600,"-89,499.50",Programme System File
BEIS,Skills Funding Agency,11/08/2016,16-18 Apprenticeships - Centralised Contract Management,Main Funding,NATIONAL BUSINESS COLLEGE LIMITED,AP16R_11702,"26,565.89",Programme System File
BEIS,Skills Funding Agency,11/08/2016,16-18 Apprenticeships - Centralised Contract Management,Main Funding,NATIONAL BUSINESS COLLEGE LIMITED,AP16R_12163,"114,823.43",Programme System File
BEIS,Skills Funding Agency,11/08/2016,16-18 Apprenticeships - Centralised Contract Management,Main Funding,NATIONAL BUSINESS COLLEGE LIMITED,AP16R_13516,"113,419.74",Programme System File
BEIS,Skills Funding Agency,11/08/2016,16-18 Apprenticeships - Centralised Contract Management,Main Funding,NATIONAL GRID PLC,AP16R_13507,"10,769.71",Programme System File
BEIS,Skills Funding Agency,11/08/2016,16-18 Apprenticeships - Centralised Contract Management,Main Funding,NATIONAL TYRE SERVICE LTD,AP16R_14043,"17,546.18",Programme System File
